{"text_format":"1","workbook":"xlsx","n_sheets":12,"sheets":["dropdowns","Breakfast Worksheet Instruction","SFA Notes","All Meals","Monday","Tuesday","Wednesday","Thursday","Friday","Weekly Report","Nutrient Instructions","Simplified Nutrient Assessment"],"not_rendered":{"charts":0,"images":0,"macros":0,"external_links":6,"defined_names":85,"comments":0,"pivot_tables":0},"unopened":[],"bounds":{"document_bytes":16777216,"sheet_cells":100000,"rows_first":2000,"rows_last":500,"rows_between":2000,"halvings":0,"cell_chars":16384,"cell_head_chars":4096},"cells_cut":0,"cells_raw":0,"read":"whole","date_system":"1900"}

{"sheet":"dropdowns","index":0,"n_rows":25,"n_cols":6,"rows_kept":25,"cut":false,"hidden":true,"merged":[]}
[]
[0.125,null,0.25,0.125,null,"Total offerings"]
[0.25,null,0.5,0.25,null,"Total oz equivalents"]
[0.375,null,0.75,0.375]
[0.5,null,1,0.5]
[0.625,null,1.25,0.625]
[0.75,null,1.5,0.75]
[0.875,null,1.75,0.875]
[1,null,2,1]
[1.125,null,null,1.125]
[1.25,null,null,1.25]
[1.375,null,null,1.375]
[1.5,null,null,1.5]
[1.625,null,null,1.625]
[1.75,null,null,1.75]
[1.875,null,null,1.875]
[2,null,null,2]
[null,null,null,2.125]
[null,null,null,2.25]
[null,null,null,2.375]
[null,null,null,2.5]
[null,null,null,2.625]
[null,null,null,2.75]
[null,null,null,2.875]
[null,null,null,3]

{"sheet":"Breakfast Worksheet Instruction","index":1,"n_rows":101,"n_cols":1,"rows_kept":101,"cut":false,"hidden":false,"merged":[]}
[]
["Directions for Breakfast Menu worksheet"]
["2016-08-16"]
[]
["Getting Started"]
["REMEMBER TO PERIODICALLY SAVE THE WORKSHEET AS IT IS BEING COMPLETED!!!!"]
["Materials needed:"]
["1 week menu (5 days)"]
["Portion sizes for all reimbursable menu items"]
["Contribution information for each menu item (CN Label, USDA Food Fact Sheet)"]
["Standardized Recipes"]
["Production Records  "]
["Click here for Team Nutrition resources like the Food Buying Guide"]
["Click here to go to the Food Buying Guide Calculator"]
["Complete a Menu worksheet for the grade groups (K-5, 6-8, and 9-12) as appropriate. Separate Menu worksheets have been developed for breakfast and lunch. "]
["Each Excel file has 11 tabs including the instructions\n The name of each tab is located at the bottom of the workbook."]
["Click on the tab at the bottom of each tab to transfer to a different tab."]
["***It is very important to follow these steps in order; otherwise, the worksheet will not provide accurate results. The accuracy of the menu certification results are based on the accuracy of the information entered by the user. "]
[]
["Crediting Considerations"]
["Some vegetables and fruits do not credit on a volume as served basis (e.g. 1 cup credits as 1 cup)"]
["Tomato paste - refer to manufacturing information"]
["Dried fruit- twice the volume as served (1/2 cup credits as 1 cup)"]
["Raw leafy greens- half the volume as served (2 cups credits as 1 cup)"]
["Conversion must be made first, and CREDITABLE amounts entered into the menu worksheet. "]
[]
["SFA Notes"]
["This tab is for SFAs to provide notes and any additional information the State agency may instruct to include"]
[]
["Entering Meals into the “All Meals” Spreadsheet"]
["“Meal Name.” "]
["***IMPORTANT: For purposes of Menu worksheet, SFAs must list reimbursable meals offered on the menu. Each reimbursable meal consists of all required food components: any grain/meat/meat alternates in a main dish and/or side dish, total amount of fruit/vegetable offered with this meal, and amount of milk. "]
[" To simplify the menu entry process, type the name of the complete reimbursable meal by main dish name only."]
["To assist the State Agency reviewer, enter the name of the main dish to match the menu submitted for certification.\n (e.g. type \"bagel with cream cheese” into the menu worksheet)."]
["Once the meal name for Meal #1 has been entered, the meal components and corresponding serving sizes must be entered. "]
["ALL unique reimbursable meals offered over the course of the entire week must be entered.  If a bagel with cream cheese is available every day, enter it once."]
["Each row should contain one meal until all meals offered over the week are entered"]
["Component Data Entry"]
["Each food component column lists the appropriate unit of measure (e.g. ounce equivalent for grains, cup for fruit). "]
["Each component is color coded (e.g. Fruit/Vegetable/Juice is purple). This color scheme is consistent throughout."]
["The Fruit/Vegetable/Juice column includes a dropdown menu. Clicking on the gray box with the black downward arrow opens a list of serving sizes."]
["Total grains, whole grain-rich grains, meat/meat alternates and milk do not have dropdown menus, the user will need to enter in the appropriate food quantities within the blank cells. "]
["***Do NOT enter text (such as “4 oz”) in these cells. Attempts to do so will result in an error message."]
["To assist in calculations there is an optional fraction calculator as well as a decimal to fraction converter to the left of the component entry section in the \"All Meals\" tab"]
[]
["Grains"]
["SFAs must use ounce equivalents (based on 16 gram creditable grain)."]
["*For SY 2016-17, SFAs with State approval to offer non-whole grain-rich products may count these products as “whole grain-rich” for purposes of certification but should note this in the “SFA notes” section to ensure the State is aware of this temporary flexibility."]
["Type in a value in ounce equivalents (to the nearest quarter ounce, or 0.25 ounce equivalents) for Grains and Meat/Meat Alternates"]
["Column 2a: GRAINS plus meat/Meat Alternates Counting Toward Grains (ounce equivalents)"]
["Enter amount of grains AND credited meat/meat alternates in the reimbursable meal. Include ALL whole grain-rich grains, non-whole grain-rich grains, AND creditable meat/meat alternates here."]
["Because there is wide variation in serving sizes, type in the correct serving sizes."]
[" Do NOT enter text (such as “4 oz”); this will result in an error message."]
["All grains and meat/meat alternates are measured in ounce equivalents and must be rounded down to the nearest quarter. Make this calculation prior to entering in worksheet. The worksheet also makes this adjustment automatically."]
["SFAs must use ounce equivalents for all grains (based on 16 gram creditable grain)"]
["Column 2b: Whole grain-rich Grains (ounce equivalents)"]
["Enter quantity of whole grain-rich grains contained in meal (Meal #1). Report in ounce equivalents (e.g. 1.25 oz eq roll). "]
["If no whole grain-rich grains in this meal, either leave cell blank or type in zero (“0”)"]
["Grains Example:  "]
["Meal offers 1 slice enriched bread (1 oz eq grain) and 0.5 oz eq whole grain-rich crackers"]
["Result: 0.5 oz eq whole grain-rich grains (enter “0.5” into column 2a)"]
["Column 2c: meat/Meat Alternates Crediting Toward Grains (ounce equivalents)"]
[" Enter amount of meat/meat alternates offered in the entrée and/or side dishes in ounce equivalents (to the nearest quarter ounce)."]
[" Do NOT enter text (such as “4 oz”) this will result in an error message."]
[" If no credited meat/meat alternates in this meal, either leave cell blank or type in zero (“0”)."]
[]
["Fruit, Vegetable, 100% Fruit Juice or Vegetable Juice"]
[]
["Use drop down menu to enter total minimum quantity of fruit, juice (fruit and vegetable), nonstarchy vegetables and starchy vegetables offered with this meal. Options range from 1/8 cup (smallest creditable amount) to 2 cups. "]
[]
["This component includes both fruit and vegetable pieces and juice. Column 4 is a total of both fruit pieces and juice offered with each meal."]
[]
["In column 3a, select only the cups of fruit OR vegetable juice offered with the meal."]
[]
["In column3b, select the cups of nonstarchy vegetables being credited toward the fruit component."]
[]
["In column 4c, select the cups of starchy vegetables being credited toward the fruit component. It is important to capture this information to make sure that within the week, at least 2 cups of nonstarchy vegetables are offered in order to allow starchy vegetables to also credit toward the fruits component."]
[]
["The crediting calculation for dried fruit must be done PRIOR to entering fruit quantities in worksheet enter only CREDITABLE amounts"]
["***IMPORTANT  scroll up or down through the options until “1” is highlighted.  The “enter” key must be pressed before moving to the next column. "]
["Milk"]
["Milk (cups): Enter the amount of milk offered. Milk is measured in cups and may be credited in 1/8 cup increments. "]
[]
["Selecting Meals for each day of the week"]
["Step 1: Using the dropdown boxes in the “Meal Name\" column, select the meal offered for each day(one meal per box). Only select the meals served on that day. "]
["Do NOT account for multiple serving lines. List all meals available to a child for the day."]
["Once the meal is selected, columns in that row will automatically fill in from the data entered in the “All Meals” tab."]
["The worksheet will automatically check the daily requirements for each component and indicate with a \"yes\" or \"no\" whether the meal meets the daily minimum requirements."]
[]
["Step 2: Milk type: Scroll (go to the bottom of the screen and slide the bar to the right) to the right side of the screen until the table entitled “Milk Type” is viewable."]
["There are 5 types of milk listed. Click the small checkbox to the right of each type of milk offered on Mondays. Depending on varieties selected, the last column in this section will turn green (Yes) or red (No)."]
["To assist in calculations there is an optional fraction calculator as well as a decimal to fraction converter under the \"Milk Type\" box."]
[]
["Weekly Report"]
["Click on the “Weekly Report” tab. "]
["There are columns for Monday through Friday to summarize whether the daily requirements are met."]
["On the left side of the sheet, in rows, are the food components. "]
["The weekly requirement check, similar to the daily requirement check, shows up as green (Yes) if the menu offered at least the minimum requirement. Red (No) indicates if less than the requirement was offered."]
["For grains, the weekly summary checks to ensure at least 1 oz equivalents/servings were offered daily."]
["For fruit/vegetable/juice and milk, the daily quantity requirement as well as the milk variety requirement is summarized for each day of the week."]
["There is a section to the right of the requirement checks for SFAs and State agencies to provide comments."]

{"sheet":"SFA Notes","index":2,"n_rows":3,"n_cols":1,"rows_kept":3,"cut":false,"hidden":false,"merged":[[0,0,1,14],[2,0,43,14]]}
["SFA Certification Worksheet Notes\nBreakfast"]
[]
["\n"]

{"sheet":"All Meals","index":3,"n_rows":62,"n_cols":25,"rows_kept":62,"cut":false,"hidden":false,"merged":[[0,0,0,18],[1,1,1,4],[1,5,1,18],[2,1,2,4],[2,5,2,18],[3,1,3,18],[3,21,3,24],[5,2,5,3],[5,4,5,5],[5,6,5,18],[5,21,12,21],[6,1,6,2],[7,1,9,2],[7,3,7,5],[7,6,7,15],[8,3,9,3],[8,4,9,4],[8,5,9,5],[8,6,9,6],[8,9,9,9],[8,12,9,12],[8,13,9,13],[16,21,17,21],[16,24,17,24],[8,14,9,14],[8,15,9,15],[8,18,9,18],[10,24,12,24],[13,21,13,24],[14,21,15,21],[14,24,15,24]]}
["Meal Pattern\nReimbursable Breakfast\nGrades K-8\n"]
[null,"SFA Name:"]
[null,"K-8 Menu #:\n"]
[null,"Enter each reimbursable breakfast offered during the reference week and select or enter the quantity of each component. \nEach reimbursable meal consists of all required food components: any grain/meat/meat alternates in a main dish and/or side dish, total amount of fruit offered with this meal, total amount of vegetables in a main dish and/or side dish, and amount of milk. The vegetable subgroups and types of milk will be recorded on a different tab.  \n",null,null,null,null,null,null,null,null,null,null,null,null,null,null,null,null,null,null,null,"OPTIONAL Tools to Assist in Fraction and Decimal Calculations"]
[1,2,3,4,5,6,7,8,9,10,11,12,13,14,15,16,17,18,19]
[null,null,"Click here to go the Food Buying Guide Calculator","http://fbg.nfsmi.org/","Click here to go the Instructions","'Breakfast Worksheet Instruction'!A1","Click here to the Weekly Report","'Weekly Report'!A1","'Weekly Report'!A1","'Weekly Report'!A1","'Weekly Report'!A1","'Weekly Report'!A1","'Weekly Report'!A1","'Weekly Report'!A1","'Weekly Report'!A1","'Weekly Report'!A1","'Weekly Report'!A1","'Weekly Report'!A1","'Weekly Report'!A1",null,null,"\n\nFraction Calculator: \nUse this calculator to add the number of cups.",1,{"$f":"INDEX(Cups,W6)","v":null}]
[null,1,null,2,"2a","2b",3,null,null,"3a",null,null,"3b",null,null,"3c",null,null,4]
[null,"Meal Name\nEnter the name of each reimbursable meal as found on the weekly menu.  Select the first blank if the component was not offered with the meal. \n** DO NOT DELETE ROWS**",null,"Grains\n**NOTE: Grains must be offered as ounce equivalents. Meats/Meat Alternates may credit toward Grains requirement. \n1 oz eq Meat/Meat Alternate = 1 oz eq Grains\n",null,null,"Fruit (cups)\n**NOTE: Enter the CREDITABLE amount of dried fruit",null,null,null,null,null,null,null,null,null,null,null,"Fluid Milk\n(cups)",null,null,null,1,{"$f":"INDEX(Cups,W8)","v":null}]
[null,null,null,"Enter the TOTAL number of oz eq of GRAINS  + Meat/Meat Alternate counting toward Grains\n","Enter the number of oz eq/servings of Whole Grain-Rich Grains","Enter the number of oz eq of Meats/Meat Alternates counting toward Grains requirement","Select the number of cups of fruit including fruit/vegetables/juice offered with this meal","F_i","F_num","ONLY select the cups of fruit/vegetable juice","J_i","J_num","ONLY select the number of cups of non-starchy vegetables offered with this meal","V_i","V_num","ONLY select the number of cups of starchy vegetables offered with this meal","jv_i","jv_num","Enter the number of cups of fluid milk offered with this meal",null,null,null,1,{"$f":"INDEX(Cups,W9)","v":null}]
[null,null,null,null,null,null,null,null,null,null,null,null,null,null,null,null,null,null,null,null,null,null,1,{"$f":"INDEX(Cups,W10)","v":null}]
[null,null,"Example: Bagel and cream cheese /apples",2,2,0,null,9,{"$f":"IF(H11=1,\"\",INDEX(Cups,H11))","v":null},null,1,{"$f":"IF(K11=1,\"\",INDEX(Cups,K11))","v":null},null,1,{"$f":"IF(N11=1, \"\", INDEX(Cups,N11))","v":null},null,1,{"$f":"IF(Q11=1, \"\", INDEX(Cups,Q11))","v":null},1,null,null,null,1,{"$f":"INDEX(Cups,W11)","v":null},{"$f":"SUM(X6:X11)","v":null}]
[1]
[2,1,"SAND SLIDER SAUS EGG & CHS IW 72-2CT",3,2.25,0.75,null,9,{"$f":"IF(H13=1,\"\", INDEX(Cups,H13))","v":null},null,5,{"$f":"IF(K13=1,\"\",INDEX(Cups,K13))","v":null},null,1,{"$f":"IF(N13=1, \"\", INDEX(Cups,N13))","v":null},null,1,{"$f":"IF(Q13=1, \"\", INDEX(Cups,Q13))","v":null},1]
[3,2,"PIZZA BKFST EGG&BCN WGRAIN 128-2.95Z",3.5,2.5,1,null,9,{"$f":"IF(H14=1,\"\", INDEX(Cups,H14))","v":null},null,5,{"$f":"IF(K14=1,\"\",INDEX(Cups,K14))","v":null},null,1,{"$f":"IF(N14=1, \"\", INDEX(Cups,N14))","v":null},null,1,{"$f":"IF(Q14=1, \"\", INDEX(Cups,Q14))","v":null},1,null,null,"Decimal/Fraction Converter\n(Rounded down to the nearest 1/8)"]
[4,3,"BAR GRANOLA CKYS & CRM 125-1.37Z",3,2,1,null,9,{"$f":"IF(H15=1,\"\", INDEX(Cups,H15))","v":null},null,5,{"$f":"IF(K15=1,\"\",INDEX(Cups,K15))","v":null},null,1,{"$f":"IF(N15=1, \"\", INDEX(Cups,N15))","v":null},null,1,{"$f":"IF(Q15=1, \"\", INDEX(Cups,Q15))","v":null},1,null,null,"Enter the decimal you wish to convert to a fraction in the box:"]
[5,4,"PASTRY POP-TART WGRAIN STRAWB 120-1CT",2,2,0,null,9,{"$f":"IF(H16=1,\"\", INDEX(Cups,H16))","v":null},null,5,{"$f":"IF(K16=1,\"\",INDEX(Cups,K16))","v":null},null,1,{"$f":"IF(N16=1, \"\", INDEX(Cups,N16))","v":null},null,1,{"$f":"IF(Q16=1, \"\", INDEX(Cups,Q16))","v":null},1]
[6,5,"TOAST TEXAS APPL CINN IW 96-3.3Z S&F",3.25,3.25,0,null,9,{"$f":"IF(H17=1,\"\", INDEX(Cups,H17))","v":null},null,5,{"$f":"IF(K17=1,\"\",INDEX(Cups,K17))","v":null},null,1,{"$f":"IF(N17=1, \"\", INDEX(Cups,N17))","v":null},null,1,{"$f":"IF(Q17=1, \"\", INDEX(Cups,Q17))","v":null},1,null,null,"The decimal entered above has been converted to the following fraction:",null,null,{"$f":"FLOOR(Y15, 0.125)","v":null}]
[7,6,null,null,null,null,null,1,{"$f":"IF(H18=1,\"\", INDEX(Cups,H18))","v":null},null,1,{"$f":"IF(K18=1,\"\",INDEX(Cups,K18))","v":null},null,1,{"$f":"IF(N18=1, \"\", INDEX(Cups,N18))","v":null},null,1,{"$f":"IF(Q18=1, \"\", INDEX(Cups,Q18))","v":null}]
[8,7,null,null,null,null,null,1,{"$f":"IF(H19=1,\"\", INDEX(Cups,H19))","v":null},null,1,{"$f":"IF(K19=1,\"\",INDEX(Cups,K19))","v":null},null,1,{"$f":"IF(N19=1, \"\", INDEX(Cups,N19))","v":null},null,1,{"$f":"IF(Q19=1, \"\", INDEX(Cups,Q19))","v":null}]
[9,8,null,null,null,null,null,1,{"$f":"IF(H20=1,\"\", INDEX(Cups,H20))","v":null},null,1,{"$f":"IF(K20=1,\"\",INDEX(Cups,K20))","v":null},null,1,{"$f":"IF(N20=1, \"\", INDEX(Cups,N20))","v":null},null,1,{"$f":"IF(Q20=1, \"\", INDEX(Cups,Q20))","v":null}]
[10,9,null,null,null,null,null,1,{"$f":"IF(H21=1,\"\", INDEX(Cups,H21))","v":null},null,1,{"$f":"IF(K21=1,\"\",INDEX(Cups,K21))","v":null},null,1,{"$f":"IF(N21=1, \"\", INDEX(Cups,N21))","v":null},null,1,{"$f":"IF(Q21=1, \"\", INDEX(Cups,Q21))","v":null}]
[11,10,null,null,null,null,null,1,{"$f":"IF(H22=1,\"\", INDEX(Cups,H22))","v":null},null,1,{"$f":"IF(K22=1,\"\",INDEX(Cups,K22))","v":null},null,1,{"$f":"IF(N22=1, \"\", INDEX(Cups,N22))","v":null},null,1,{"$f":"IF(Q22=1, \"\", INDEX(Cups,Q22))","v":null}]
[12,11,null,null,null,null,null,1,{"$f":"IF(H23=1,\"\", INDEX(Cups,H23))","v":null},null,1,{"$f":"IF(K23=1,\"\",INDEX(Cups,K23))","v":null},null,1,{"$f":"IF(N23=1, \"\", INDEX(Cups,N23))","v":null},null,1,{"$f":"IF(Q23=1, \"\", INDEX(Cups,Q23))","v":null}]
[13,12,null,null,null,null,null,1,{"$f":"IF(H24=1,\"\", INDEX(Cups,H24))","v":null},null,1,{"$f":"IF(K24=1,\"\",INDEX(Cups,K24))","v":null},null,1,{"$f":"IF(N24=1, \"\", INDEX(Cups,N24))","v":null},null,1,{"$f":"IF(Q24=1, \"\", INDEX(Cups,Q24))","v":null}]
[14,13,null,null,null,null,null,1,{"$f":"IF(H25=1,\"\", INDEX(Cups,H25))","v":null},null,1,{"$f":"IF(K25=1,\"\",INDEX(Cups,K25))","v":null},null,1,{"$f":"IF(N25=1, \"\", INDEX(Cups,N25))","v":null},null,1,{"$f":"IF(Q25=1, \"\", INDEX(Cups,Q25))","v":null}]
[15,14,null,null,null,null,null,1,{"$f":"IF(H26=1,\"\", INDEX(Cups,H26))","v":null},null,1,{"$f":"IF(K26=1,\"\",INDEX(Cups,K26))","v":null},null,1,{"$f":"IF(N26=1, \"\", INDEX(Cups,N26))","v":null},null,1,{"$f":"IF(Q26=1, \"\", INDEX(Cups,Q26))","v":null}]
[16,15,null,null,null,null,null,1,{"$f":"IF(H27=1,\"\", INDEX(Cups,H27))","v":null},null,1,{"$f":"IF(K27=1,\"\",INDEX(Cups,K27))","v":null},null,1,{"$f":"IF(N27=1, \"\", INDEX(Cups,N27))","v":null},null,1,{"$f":"IF(Q27=1, \"\", INDEX(Cups,Q27))","v":null}]
[17,16,null,null,null,null,null,1,{"$f":"IF(H28=1,\"\", INDEX(Cups,H28))","v":null},null,1,{"$f":"IF(K28=1,\"\",INDEX(Cups,K28))","v":null},null,1,{"$f":"IF(N28=1, \"\", INDEX(Cups,N28))","v":null},null,1,{"$f":"IF(Q28=1, \"\", INDEX(Cups,Q28))","v":null}]
[18,17,null,null,null,null,null,1,{"$f":"IF(H29=1,\"\", INDEX(Cups,H29))","v":null},null,1,{"$f":"IF(K29=1,\"\",INDEX(Cups,K29))","v":null},null,1,{"$f":"IF(N29=1, \"\", INDEX(Cups,N29))","v":null},null,1,{"$f":"IF(Q29=1, \"\", INDEX(Cups,Q29))","v":null}]
[19,18,null,null,null,null,null,1,{"$f":"IF(H30=1,\"\", INDEX(Cups,H30))","v":null},null,1,{"$f":"IF(K30=1,\"\",INDEX(Cups,K30))","v":null},null,1,{"$f":"IF(N30=1, \"\", INDEX(Cups,N30))","v":null},null,1,{"$f":"IF(Q30=1, \"\", INDEX(Cups,Q30))","v":null}]
[20,19,null,null,null,null,null,1,{"$f":"IF(H31=1,\"\", INDEX(Cups,H31))","v":null},null,1,{"$f":"IF(K31=1,\"\",INDEX(Cups,K31))","v":null},null,1,{"$f":"IF(N31=1, \"\", INDEX(Cups,N31))","v":null},null,1,{"$f":"IF(Q31=1, \"\", INDEX(Cups,Q31))","v":null}]
[21,20,null,null,null,null,null,1,{"$f":"IF(H32=1,\"\", INDEX(Cups,H32))","v":null},null,1,{"$f":"IF(K32=1,\"\",INDEX(Cups,K32))","v":null},null,1,{"$f":"IF(N32=1, \"\", INDEX(Cups,N32))","v":null},null,1,{"$f":"IF(Q32=1, \"\", INDEX(Cups,Q32))","v":null}]
[22,21,null,null,null,null,null,1,{"$f":"IF(H33=1,\"\", INDEX(Cups,H33))","v":null},null,1,{"$f":"IF(K33=1,\"\",INDEX(Cups,K33))","v":null},null,1,{"$f":"IF(N33=1, \"\", INDEX(Cups,N33))","v":null},null,1,{"$f":"IF(Q33=1, \"\", INDEX(Cups,Q33))","v":null}]
[23,22,null,null,null,null,null,1,{"$f":"IF(H34=1,\"\", INDEX(Cups,H34))","v":null},null,1,{"$f":"IF(K34=1,\"\",INDEX(Cups,K34))","v":null},null,1,{"$f":"IF(N34=1, \"\", INDEX(Cups,N34))","v":null},null,1,{"$f":"IF(Q34=1, \"\", INDEX(Cups,Q34))","v":null}]
[24,23,null,null,null,null,null,1,{"$f":"IF(H35=1,\"\", INDEX(Cups,H35))","v":null},null,1,{"$f":"IF(K35=1,\"\",INDEX(Cups,K35))","v":null},null,1,{"$f":"IF(N35=1, \"\", INDEX(Cups,N35))","v":null},null,1,{"$f":"IF(Q35=1, \"\", INDEX(Cups,Q35))","v":null}]
[25,24,null,null,null,null,null,1,{"$f":"IF(H36=1,\"\", INDEX(Cups,H36))","v":null},null,1,{"$f":"IF(K36=1,\"\",INDEX(Cups,K36))","v":null},null,1,{"$f":"IF(N36=1, \"\", INDEX(Cups,N36))","v":null},null,1,{"$f":"IF(Q36=1, \"\", INDEX(Cups,Q36))","v":null}]
[26,25,null,null,null,null,null,1,{"$f":"IF(H37=1,\"\", INDEX(Cups,H37))","v":null},null,1,{"$f":"IF(K37=1,\"\",INDEX(Cups,K37))","v":null},null,1,{"$f":"IF(N37=1, \"\", INDEX(Cups,N37))","v":null},null,1,{"$f":"IF(Q37=1, \"\", INDEX(Cups,Q37))","v":null}]
[27,26,null,null,null,null,null,1,{"$f":"IF(H38=1,\"\", INDEX(Cups,H38))","v":null},null,1,{"$f":"IF(K38=1,\"\",INDEX(Cups,K38))","v":null},null,1,{"$f":"IF(N38=1, \"\", INDEX(Cups,N38))","v":null},null,1,{"$f":"IF(Q38=1, \"\", INDEX(Cups,Q38))","v":null}]
[28,27,null,null,null,null,null,1,{"$f":"IF(H39=1,\"\", INDEX(Cups,H39))","v":null},null,1,{"$f":"IF(K39=1,\"\",INDEX(Cups,K39))","v":null},null,1,{"$f":"IF(N39=1, \"\", INDEX(Cups,N39))","v":null},null,1,{"$f":"IF(Q39=1, \"\", INDEX(Cups,Q39))","v":null}]
[29,28,null,null,null,null,null,1,{"$f":"IF(H40=1,\"\", INDEX(Cups,H40))","v":null},null,1,{"$f":"IF(K40=1,\"\",INDEX(Cups,K40))","v":null},null,1,{"$f":"IF(N40=1, \"\", INDEX(Cups,N40))","v":null},null,1,{"$f":"IF(Q40=1, \"\", INDEX(Cups,Q40))","v":null}]
[30,29,null,null,null,null,null,1,{"$f":"IF(H41=1,\"\", INDEX(Cups,H41))","v":null},null,1,{"$f":"IF(K41=1,\"\",INDEX(Cups,K41))","v":null},null,1,{"$f":"IF(N41=1, \"\", INDEX(Cups,N41))","v":null},null,1,{"$f":"IF(Q41=1, \"\", INDEX(Cups,Q41))","v":null}]
[31,30,null,null,null,null,null,1,{"$f":"IF(H42=1,\"\", INDEX(Cups,H42))","v":null},null,1,{"$f":"IF(K42=1,\"\",INDEX(Cups,K42))","v":null},null,1,{"$f":"IF(N42=1, \"\", INDEX(Cups,N42))","v":null},null,1,{"$f":"IF(Q42=1, \"\", INDEX(Cups,Q42))","v":null}]
[32,31,null,null,null,null,null,1,{"$f":"IF(H43=1,\"\", INDEX(Cups,H43))","v":null},null,1,{"$f":"IF(K43=1,\"\",INDEX(Cups,K43))","v":null},null,1,{"$f":"IF(N43=1, \"\", INDEX(Cups,N43))","v":null},null,1,{"$f":"IF(Q43=1, \"\", INDEX(Cups,Q43))","v":null}]
[33,32,null,null,null,null,null,1,{"$f":"IF(H44=1,\"\", INDEX(Cups,H44))","v":null},null,1,{"$f":"IF(K44=1,\"\",INDEX(Cups,K44))","v":null},null,1,{"$f":"IF(N44=1, \"\", INDEX(Cups,N44))","v":null},null,1,{"$f":"IF(Q44=1, \"\", INDEX(Cups,Q44))","v":null}]
[34,33,null,null,null,null,null,1,{"$f":"IF(H45=1,\"\", INDEX(Cups,H45))","v":null},null,1,{"$f":"IF(K45=1,\"\",INDEX(Cups,K45))","v":null},null,1,{"$f":"IF(N45=1, \"\", INDEX(Cups,N45))","v":null},null,1,{"$f":"IF(Q45=1, \"\", INDEX(Cups,Q45))","v":null}]
[35,34,null,null,null,null,null,1,{"$f":"IF(H46=1,\"\", INDEX(Cups,H46))","v":null},null,1,{"$f":"IF(K46=1,\"\",INDEX(Cups,K46))","v":null},null,1,{"$f":"IF(N46=1, \"\", INDEX(Cups,N46))","v":null},null,1,{"$f":"IF(Q46=1, \"\", INDEX(Cups,Q46))","v":null}]
[36,35,null,null,null,null,null,1,{"$f":"IF(H47=1,\"\", INDEX(Cups,H47))","v":null},null,1,{"$f":"IF(K47=1,\"\",INDEX(Cups,K47))","v":null},null,1,{"$f":"IF(N47=1, \"\", INDEX(Cups,N47))","v":null},null,1,{"$f":"IF(Q47=1, \"\", INDEX(Cups,Q47))","v":null}]
[37,36,null,null,null,null,null,1,{"$f":"IF(H48=1,\"\", INDEX(Cups,H48))","v":null},null,1,{"$f":"IF(K48=1,\"\",INDEX(Cups,K48))","v":null},null,1,{"$f":"IF(N48=1, \"\", INDEX(Cups,N48))","v":null},null,1,{"$f":"IF(Q48=1, \"\", INDEX(Cups,Q48))","v":null}]
[38,37,null,null,null,null,null,1,{"$f":"IF(H49=1,\"\", INDEX(Cups,H49))","v":null},null,1,{"$f":"IF(K49=1,\"\",INDEX(Cups,K49))","v":null},null,1,{"$f":"IF(N49=1, \"\", INDEX(Cups,N49))","v":null},null,1,{"$f":"IF(Q49=1, \"\", INDEX(Cups,Q49))","v":null}]
[39,38,null,null,null,null,null,1,{"$f":"IF(H50=1,\"\", INDEX(Cups,H50))","v":null},null,1,{"$f":"IF(K50=1,\"\",INDEX(Cups,K50))","v":null},null,1,{"$f":"IF(N50=1, \"\", INDEX(Cups,N50))","v":null},null,1,{"$f":"IF(Q50=1, \"\", INDEX(Cups,Q50))","v":null}]
[40,39,null,null,null,null,null,1,{"$f":"IF(H51=1,\"\", INDEX(Cups,H51))","v":null},null,1,{"$f":"IF(K51=1,\"\",INDEX(Cups,K51))","v":null},null,1,{"$f":"IF(N51=1, \"\", INDEX(Cups,N51))","v":null},null,1,{"$f":"IF(Q51=1, \"\", INDEX(Cups,Q51))","v":null}]
[41,40,null,null,null,null,null,1,{"$f":"IF(H52=1,\"\", INDEX(Cups,H52))","v":null},null,1,{"$f":"IF(K52=1,\"\",INDEX(Cups,K52))","v":null},null,1,{"$f":"IF(N52=1, \"\", INDEX(Cups,N52))","v":null},null,1,{"$f":"IF(Q52=1, \"\", INDEX(Cups,Q52))","v":null}]
[42,41,null,null,null,null,null,1,{"$f":"IF(H53=1,\"\", INDEX(Cups,H53))","v":null},null,1,{"$f":"IF(K53=1,\"\",INDEX(Cups,K53))","v":null},null,1,{"$f":"IF(N53=1, \"\", INDEX(Cups,N53))","v":null},null,1,{"$f":"IF(Q53=1, \"\", INDEX(Cups,Q53))","v":null}]
[43,42,null,null,null,null,null,1,{"$f":"IF(H54=1,\"\", INDEX(Cups,H54))","v":null},null,1,{"$f":"IF(K54=1,\"\",INDEX(Cups,K54))","v":null},null,1,{"$f":"IF(N54=1, \"\", INDEX(Cups,N54))","v":null},null,1,{"$f":"IF(Q54=1, \"\", INDEX(Cups,Q54))","v":null}]
[44,43,null,null,null,null,null,1,{"$f":"IF(H55=1,\"\", INDEX(Cups,H55))","v":null},null,1,{"$f":"IF(K55=1,\"\",INDEX(Cups,K55))","v":null},null,1,{"$f":"IF(N55=1, \"\", INDEX(Cups,N55))","v":null},null,1,{"$f":"IF(Q55=1, \"\", INDEX(Cups,Q55))","v":null}]
[45,44,null,null,null,null,null,1,{"$f":"IF(H56=1,\"\", INDEX(Cups,H56))","v":null},null,1,{"$f":"IF(K56=1,\"\",INDEX(Cups,K56))","v":null},null,1,{"$f":"IF(N56=1, \"\", INDEX(Cups,N56))","v":null},null,1,{"$f":"IF(Q56=1, \"\", INDEX(Cups,Q56))","v":null}]
[46,45,null,null,null,null,null,1,{"$f":"IF(H57=1,\"\", INDEX(Cups,H57))","v":null},null,1,{"$f":"IF(K57=1,\"\",INDEX(Cups,K57))","v":null},null,1,{"$f":"IF(N57=1, \"\", INDEX(Cups,N57))","v":null},null,1,{"$f":"IF(Q57=1, \"\", INDEX(Cups,Q57))","v":null}]
[47,46,null,null,null,null,null,1,{"$f":"IF(H58=1,\"\", INDEX(Cups,H58))","v":null},null,1,{"$f":"IF(K58=1,\"\",INDEX(Cups,K58))","v":null},null,1,{"$f":"IF(N58=1, \"\", INDEX(Cups,N58))","v":null},null,1,{"$f":"IF(Q58=1, \"\", INDEX(Cups,Q58))","v":null}]
[48,47,null,null,null,null,null,1,{"$f":"IF(H59=1,\"\", INDEX(Cups,H59))","v":null},null,1,{"$f":"IF(K59=1,\"\",INDEX(Cups,K59))","v":null},null,1,{"$f":"IF(N59=1, \"\", INDEX(Cups,N59))","v":null},null,1,{"$f":"IF(Q59=1, \"\", INDEX(Cups,Q59))","v":null}]
[49,48,null,null,null,null,null,1,{"$f":"IF(H60=1,\"\", INDEX(Cups,H60))","v":null},null,1,{"$f":"IF(K60=1,\"\",INDEX(Cups,K60))","v":null},null,1,{"$f":"IF(N60=1, \"\", INDEX(Cups,N60))","v":null},null,1,{"$f":"IF(Q60=1, \"\", INDEX(Cups,Q60))","v":null}]
[50,49,null,null,null,null,null,1,{"$f":"IF(H61=1,\"\", INDEX(Cups,H61))","v":null},null,1,{"$f":"IF(K61=1,\"\",INDEX(Cups,K61))","v":null},null,1,{"$f":"IF(N61=1, \"\", INDEX(Cups,N61))","v":null},null,1,{"$f":"IF(Q61=1, \"\", INDEX(Cups,Q61))","v":null}]
[null,50,null,null,null,null,null,1,{"$f":"IF(H62=1,\"\", INDEX(Cups,H62))","v":null},null,1,{"$f":"IF(K62=1,\"\",INDEX(Cups,K62))","v":null},null,1,{"$f":"IF(N62=1, \"\", INDEX(Cups,N62))","v":null},null,1,{"$f":"IF(Q62=1, \"\", INDEX(Cups,Q62))","v":null}]

{"sheet":"Monday","index":4,"n_rows":26,"n_cols":23,"rows_kept":26,"cut":false,"hidden":false,"merged":[[0,17,0,19],[1,17,1,19],[3,12,5,12],[5,15,5,18],[4,14,5,14],[4,11,5,11],[0,2,0,14],[1,2,1,14],[3,9,3,11],[3,2,3,3],[3,4,3,8],[6,15,6,18],[4,5,5,5],[4,9,5,9],[4,7,5,7],[10,16,11,22],[18,16,18,22],[19,16,20,18],[19,21,20,22],[4,4,5,4],[2,2,2,22],[4,2,5,3],[4,15,4,18],[4,8,5,8],[4,22,6,22],[3,13,3,14],[3,15,3,22],[7,15,7,18],[4,10,5,10],[4,6,5,6],[8,15,8,18],[4,13,5,13],[21,16,22,18],[14,21,14,22],[17,21,17,22],[12,21,12,22],[16,21,16,22],[15,21,15,22],[13,21,13,22],[12,16,17,18],[21,21,22,22]]}
[null,null,"Monday Daily Breakfast Requirement Check\nGrades K-8",null,null,null,null,null,null,null,null,null,null,null,null,null,null,"Go to Weekly Report","'Weekly Report'!A1","'Weekly Report'!A1"]
[null,null,"The daily worksheet will perform daily requirement checks for the reimbursable meals offered each day. Requirements met are flagged \"Yes\" and the cell turns green. Requirements NOT met are flagged \"No\" and the cell turns red.  \nNOTE: The top row is frozen to display the column headers as the daily meals are entered.\nGrains and meat/meat alternates are rounded down to the nearest quarter ounce.\nOnce you are finished selecting the meals offered each day, make sure to scroll to the right to enter milk type information.",null,null,null,null,null,null,null,null,null,null,null,null,null,null,"Go to Instructions","'Breakfast Worksheet Instruction'!A1","'Breakfast Worksheet Instruction'!A1"]
["K-5 Menu #:\n",null,"Monday"]
[null,null,"Select the reimbursable breakfasts offered on Monday",null,"Fruit/Vegetable/100% Juice\n(cups)",null,null,null,null,"Grains or Meat/Meat Alternates Counting as Grains\n(ounce equivalents)",null,null,"Daily Breakfast Requirement Check\n1 oz equivalents","Milk\n(cups)",null,"Milk Type\nCheck the type of milk below if it is offered to students on Monday.\nAll types of milk included."]
[null,null,"Meal Name\nNote: You may not delete lines, if you want to clear a meal select the first blank in the drop down list",null,"Total fruit/vegetable/juice cups\n(cups)","Cups of fruit/vegetable juice","Cups of non-starchy vegetables","Cups of starchy vegetables","Daily Fruit Requirement Check\n 1 cup","Number of oz eq of GRAINS (Actual Grains + Meat/Meat Alternate counting toward Grains)","Number of oz eq of Whole Grain-Rich GRAINS","Number of oz eq of Meats/Meat Alternates",null,"Milk (cups)","Daily Milk Requirement Check\n1 cup","Skim/fat-free, unflavored",null,null,null,null,true,null,{"$f":"IF(AND(U5=FALSE,U6=FALSE,U7=FALSE),\"\",IF(AND(U5=TRUE,U6=TRUE),\"Yes\",IF(AND(U5=TRUE,U7=TRUE),\"Yes\",IF(AND(U6=TRUE,U7=TRUE),\"Yes\",\"No\"))))","v":null}]
[null,null,null,null,null,null,null,null,null,null,null,null,null,null,null,"Skim/fat-free, flavored",null,null,null,null,true]
[2,{"$f":"INDEX(meals,A7)","v":null},1,null,{"$f":"IF(B7=0,\"\",IF((VLOOKUP(A7,'All Meals'!$A$12:$S$62,9))=\"\",0,(VLOOKUP(A7,'All Meals'!$A$12:$S$62,9))))","v":null},{"$f":"IF(B7=0,\"\",IF((VLOOKUP(A7,'All Meals'!$A$12:$S$62,12))=\"\",0,(VLOOKUP(A7,'All Meals'!$A$12:$S$62,12))))","v":null},{"$f":"IF(B7=0,\"\",IF((VLOOKUP(A7,'All Meals'!$A$12:$S$62,15))=\"\",0,(VLOOKUP(A7,'All Meals'!$A$12:$S$62,15))))","v":null},{"$f":"IF(B7=0,\"\",IF((VLOOKUP(A7,'All Meals'!$A$12:$S$62,18))=\"\",0,(VLOOKUP(A7,'All Meals'!$A$12:$S$62,18))))","v":null},{"$f":"IF(B7=0,\"\",IF(E7=\"\",\"No\",IF(E7>=1,\"Yes\",\"No\")))","v":null},{"$f":"IF(B7=0,\"\",IF((VLOOKUP(A7,'All Meals'!$A$12:$S$62,4))=\"\",0,(VLOOKUP(A7,'All Meals'!$A$12:$S$62,4))))","v":null},{"$f":"IF(B7=0,\"\",IF((VLOOKUP(A7,'All Meals'!$A$12:$S$62,5))=\"\",0,(VLOOKUP(A7,'All Meals'!$A$12:$S$62,5))))","v":null},{"$f":"IF(B7=0,\"\",IF((VLOOKUP(A7,'All Meals'!$A$12:$S$62,6))=\"\",0,(VLOOKUP(A7,'All Meals'!$A$12:$S$62,6))))","v":null},{"$f":"IF(B7=0,\"\",IF(SUM(J7-L7)>=1,\"Yes\",\"No\"))","v":null},{"$f":"IF(B7=0,\"\",IF((VLOOKUP(A7,'All Meals'!$A$12:$S$62,19))=\"\",0,(VLOOKUP(A7,'All Meals'!$A$12:$S$62,19))))","v":null},{"$f":"IF(B7=0,\"\",IF(N7=\"\",\"No\",IF(N7>=1,\"Yes\",\"No\")))","v":null},"Low-fat (1% or less), unflavored",null,null,null,null,true]
[1,{"$f":"INDEX(meals,A8)","v":null},2,null,{"$f":"IF(B8=0,\"\",IF((VLOOKUP(A8,'All Meals'!$A$12:$S$62,9))=\"\",0,(VLOOKUP(A8,'All Meals'!$A$12:$S$62,9))))","v":null},{"$f":"IF(B8=0,\"\",IF((VLOOKUP(A8,'All Meals'!$A$12:$S$62,12))=\"\",0,(VLOOKUP(A8,'All Meals'!$A$12:$S$62,12))))","v":null},{"$f":"IF(B8=0,\"\",IF((VLOOKUP(A8,'All Meals'!$A$12:$S$62,15))=\"\",0,(VLOOKUP(A8,'All Meals'!$A$12:$S$62,15))))","v":null},{"$f":"IF(B8=0,\"\",IF((VLOOKUP(A8,'All Meals'!$A$12:$S$62,18))=\"\",0,(VLOOKUP(A8,'All Meals'!$A$12:$S$62,18))))","v":null},{"$f":"IF(B8=0,\"\",IF(E8=\"\",\"No\",IF(E8>=1,\"Yes\",\"No\")))","v":null},{"$f":"IF(B8=0,\"\",IF((VLOOKUP(A8,'All Meals'!$A$12:$S$62,4))=\"\",0,(VLOOKUP(A8,'All Meals'!$A$12:$S$62,4))))","v":null},{"$f":"IF(B8=0,\"\",IF((VLOOKUP(A8,'All Meals'!$A$12:$S$62,5))=\"\",0,(VLOOKUP(A8,'All Meals'!$A$12:$S$62,5))))","v":null},{"$f":"IF(B8=0,\"\",IF((VLOOKUP(A8,'All Meals'!$A$12:$S$62,6))=\"\",0,(VLOOKUP(A8,'All Meals'!$A$12:$S$62,6))))","v":null},{"$f":"IF(B8=0,\"\",IF(SUM(J8-L8)>=1,\"Yes\",\"No\"))","v":null},{"$f":"IF(B8=0,\"\",IF((VLOOKUP(A8,'All Meals'!$A$12:$S$62,19))=\"\",0,(VLOOKUP(A8,'All Meals'!$A$12:$S$62,19))))","v":null},{"$f":"IF(B8=0,\"\",IF(N8=\"\",\"No\",IF(N8>=1,\"Yes\",\"No\")))","v":null},"Low-fat (1% or less), flavored",null,null,null,null,false,null,{"$f":"IF(U8=TRUE,\"No\",\"\")","v":null}]
[1,{"$f":"INDEX(meals,A9)","v":null},3,null,{"$f":"IF(B9=0,\"\",IF((VLOOKUP(A9,'All Meals'!$A$12:$S$62,9))=\"\",0,(VLOOKUP(A9,'All Meals'!$A$12:$S$62,9))))","v":null},{"$f":"IF(B9=0,\"\",IF((VLOOKUP(A9,'All Meals'!$A$12:$S$62,12))=\"\",0,(VLOOKUP(A9,'All Meals'!$A$12:$S$62,12))))","v":null},{"$f":"IF(B9=0,\"\",IF((VLOOKUP(A9,'All Meals'!$A$12:$S$62,15))=\"\",0,(VLOOKUP(A9,'All Meals'!$A$12:$S$62,15))))","v":null},{"$f":"IF(B9=0,\"\",IF((VLOOKUP(A9,'All Meals'!$A$12:$S$62,18))=\"\",0,(VLOOKUP(A9,'All Meals'!$A$12:$S$62,18))))","v":null},{"$f":"IF(B9=0,\"\",IF(E9=\"\",\"No\",IF(E9>=1,\"Yes\",\"No\")))","v":null},{"$f":"IF(B9=0,\"\",IF((VLOOKUP(A9,'All Meals'!$A$12:$S$62,4))=\"\",0,(VLOOKUP(A9,'All Meals'!$A$12:$S$62,4))))","v":null},{"$f":"IF(B9=0,\"\",IF((VLOOKUP(A9,'All Meals'!$A$12:$S$62,5))=\"\",0,(VLOOKUP(A9,'All Meals'!$A$12:$S$62,5))))","v":null},{"$f":"IF(B9=0,\"\",IF((VLOOKUP(A9,'All Meals'!$A$12:$S$62,6))=\"\",0,(VLOOKUP(A9,'All Meals'!$A$12:$S$62,6))))","v":null},{"$f":"IF(B9=0,\"\",IF(SUM(J9-L9)>=1,\"Yes\",\"No\"))","v":null},{"$f":"IF(B9=0,\"\",IF((VLOOKUP(A9,'All Meals'!$A$12:$S$62,19))=\"\",0,(VLOOKUP(A9,'All Meals'!$A$12:$S$62,19))))","v":null},{"$f":"IF(B9=0,\"\",IF(N9=\"\",\"No\",IF(N9>=1,\"Yes\",\"No\")))","v":null},"Reduced fat (2% fat) or whole, unflavored and flavored",null,null,null,null,false,null,{"$f":"IF(U9=TRUE,\"No\",\"\")","v":null}]
[1,{"$f":"INDEX(meals,A10)","v":null},4,null,{"$f":"IF(B10=0,\"\",IF((VLOOKUP(A10,'All Meals'!$A$12:$S$62,9))=\"\",0,(VLOOKUP(A10,'All Meals'!$A$12:$S$62,9))))","v":null},{"$f":"IF(B10=0,\"\",IF((VLOOKUP(A10,'All Meals'!$A$12:$S$62,12))=\"\",0,(VLOOKUP(A10,'All Meals'!$A$12:$S$62,12))))","v":null},{"$f":"IF(B10=0,\"\",IF((VLOOKUP(A10,'All Meals'!$A$12:$S$62,15))=\"\",0,(VLOOKUP(A10,'All Meals'!$A$12:$S$62,15))))","v":null},{"$f":"IF(B10=0,\"\",IF((VLOOKUP(A10,'All Meals'!$A$12:$S$62,18))=\"\",0,(VLOOKUP(A10,'All Meals'!$A$12:$S$62,18))))","v":null},{"$f":"IF(B10=0,\"\",IF(E10=\"\",\"No\",IF(E10>=1,\"Yes\",\"No\")))","v":null},{"$f":"IF(B10=0,\"\",IF((VLOOKUP(A10,'All Meals'!$A$12:$S$62,4))=\"\",0,(VLOOKUP(A10,'All Meals'!$A$12:$S$62,4))))","v":null},{"$f":"IF(B10=0,\"\",IF((VLOOKUP(A10,'All Meals'!$A$12:$S$62,5))=\"\",0,(VLOOKUP(A10,'All Meals'!$A$12:$S$62,5))))","v":null},{"$f":"IF(B10=0,\"\",IF((VLOOKUP(A10,'All Meals'!$A$12:$S$62,6))=\"\",0,(VLOOKUP(A10,'All Meals'!$A$12:$S$62,6))))","v":null},{"$f":"IF(B10=0,\"\",IF(SUM(J10-L10)>=1,\"Yes\",\"No\"))","v":null},{"$f":"IF(B10=0,\"\",IF((VLOOKUP(A10,'All Meals'!$A$12:$S$62,19))=\"\",0,(VLOOKUP(A10,'All Meals'!$A$12:$S$62,19))))","v":null},{"$f":"IF(B10=0,\"\",IF(N10=\"\",\"No\",IF(N10>=1,\"Yes\",\"No\")))","v":null}]
[1,{"$f":"INDEX(meals,A11)","v":null},5,null,{"$f":"IF(B11=0,\"\",IF((VLOOKUP(A11,'All Meals'!$A$12:$S$62,9))=\"\",0,(VLOOKUP(A11,'All Meals'!$A$12:$S$62,9))))","v":null},{"$f":"IF(B11=0,\"\",IF((VLOOKUP(A11,'All Meals'!$A$12:$S$62,12))=\"\",0,(VLOOKUP(A11,'All Meals'!$A$12:$S$62,12))))","v":null},{"$f":"IF(B11=0,\"\",IF((VLOOKUP(A11,'All Meals'!$A$12:$S$62,15))=\"\",0,(VLOOKUP(A11,'All Meals'!$A$12:$S$62,15))))","v":null},{"$f":"IF(B11=0,\"\",IF((VLOOKUP(A11,'All Meals'!$A$12:$S$62,18))=\"\",0,(VLOOKUP(A11,'All Meals'!$A$12:$S$62,18))))","v":null},{"$f":"IF(B11=0,\"\",IF(E11=\"\",\"No\",IF(E11>=1,\"Yes\",\"No\")))","v":null},{"$f":"IF(B11=0,\"\",IF((VLOOKUP(A11,'All Meals'!$A$12:$S$62,4))=\"\",0,(VLOOKUP(A11,'All Meals'!$A$12:$S$62,4))))","v":null},{"$f":"IF(B11=0,\"\",IF((VLOOKUP(A11,'All Meals'!$A$12:$S$62,5))=\"\",0,(VLOOKUP(A11,'All Meals'!$A$12:$S$62,5))))","v":null},{"$f":"IF(B11=0,\"\",IF((VLOOKUP(A11,'All Meals'!$A$12:$S$62,6))=\"\",0,(VLOOKUP(A11,'All Meals'!$A$12:$S$62,6))))","v":null},{"$f":"IF(B11=0,\"\",IF(SUM(J11-L11)>=1,\"Yes\",\"No\"))","v":null},{"$f":"IF(B11=0,\"\",IF((VLOOKUP(A11,'All Meals'!$A$12:$S$62,19))=\"\",0,(VLOOKUP(A11,'All Meals'!$A$12:$S$62,19))))","v":null},{"$f":"IF(B11=0,\"\",IF(N11=\"\",\"No\",IF(N11>=1,\"Yes\",\"No\")))","v":null},null,"OPTIONAL Tools to Assist in Fraction and Decimal Calculations"]
[1,{"$f":"INDEX(meals,A12)","v":null},6,null,{"$f":"IF(B12=0,\"\",IF((VLOOKUP(A12,'All Meals'!$A$12:$S$62,9))=\"\",0,(VLOOKUP(A12,'All Meals'!$A$12:$S$62,9))))","v":null},{"$f":"IF(B12=0,\"\",IF((VLOOKUP(A12,'All Meals'!$A$12:$S$62,12))=\"\",0,(VLOOKUP(A12,'All Meals'!$A$12:$S$62,12))))","v":null},{"$f":"IF(B12=0,\"\",IF((VLOOKUP(A12,'All Meals'!$A$12:$S$62,15))=\"\",0,(VLOOKUP(A12,'All Meals'!$A$12:$S$62,15))))","v":null},{"$f":"IF(B12=0,\"\",IF((VLOOKUP(A12,'All Meals'!$A$12:$S$62,18))=\"\",0,(VLOOKUP(A12,'All Meals'!$A$12:$S$62,18))))","v":null},{"$f":"IF(B12=0,\"\",IF(E12=\"\",\"No\",IF(E12>=1,\"Yes\",\"No\")))","v":null},{"$f":"IF(B12=0,\"\",IF((VLOOKUP(A12,'All Meals'!$A$12:$S$62,4))=\"\",0,(VLOOKUP(A12,'All Meals'!$A$12:$S$62,4))))","v":null},{"$f":"IF(B12=0,\"\",IF((VLOOKUP(A12,'All Meals'!$A$12:$S$62,5))=\"\",0,(VLOOKUP(A12,'All Meals'!$A$12:$S$62,5))))","v":null},{"$f":"IF(B12=0,\"\",IF((VLOOKUP(A12,'All Meals'!$A$12:$S$62,6))=\"\",0,(VLOOKUP(A12,'All Meals'!$A$12:$S$62,6))))","v":null},{"$f":"IF(B12=0,\"\",IF(SUM(J12-L12)>=1,\"Yes\",\"No\"))","v":null},{"$f":"IF(B12=0,\"\",IF((VLOOKUP(A12,'All Meals'!$A$12:$S$62,19))=\"\",0,(VLOOKUP(A12,'All Meals'!$A$12:$S$62,19))))","v":null},{"$f":"IF(B12=0,\"\",IF(N12=\"\",\"No\",IF(N12>=1,\"Yes\",\"No\")))","v":null}]
[1,{"$f":"INDEX(meals,A13)","v":null},7,null,{"$f":"IF(B13=0,\"\",IF((VLOOKUP(A13,'All Meals'!$A$12:$S$62,9))=\"\",0,(VLOOKUP(A13,'All Meals'!$A$12:$S$62,9))))","v":null},{"$f":"IF(B13=0,\"\",IF((VLOOKUP(A13,'All Meals'!$A$12:$S$62,12))=\"\",0,(VLOOKUP(A13,'All Meals'!$A$12:$S$62,12))))","v":null},{"$f":"IF(B13=0,\"\",IF((VLOOKUP(A13,'All Meals'!$A$12:$S$62,15))=\"\",0,(VLOOKUP(A13,'All Meals'!$A$12:$S$62,15))))","v":null},{"$f":"IF(B13=0,\"\",IF((VLOOKUP(A13,'All Meals'!$A$12:$S$62,18))=\"\",0,(VLOOKUP(A13,'All Meals'!$A$12:$S$62,18))))","v":null},{"$f":"IF(B13=0,\"\",IF(E13=\"\",\"No\",IF(E13>=1,\"Yes\",\"No\")))","v":null},{"$f":"IF(B13=0,\"\",IF((VLOOKUP(A13,'All Meals'!$A$12:$S$62,4))=\"\",0,(VLOOKUP(A13,'All Meals'!$A$12:$S$62,4))))","v":null},{"$f":"IF(B13=0,\"\",IF((VLOOKUP(A13,'All Meals'!$A$12:$S$62,5))=\"\",0,(VLOOKUP(A13,'All Meals'!$A$12:$S$62,5))))","v":null},{"$f":"IF(B13=0,\"\",IF((VLOOKUP(A13,'All Meals'!$A$12:$S$62,6))=\"\",0,(VLOOKUP(A13,'All Meals'!$A$12:$S$62,6))))","v":null},{"$f":"IF(B13=0,\"\",IF(SUM(J13-L13)>=1,\"Yes\",\"No\"))","v":null},{"$f":"IF(B13=0,\"\",IF((VLOOKUP(A13,'All Meals'!$A$12:$S$62,19))=\"\",0,(VLOOKUP(A13,'All Meals'!$A$12:$S$62,19))))","v":null},{"$f":"IF(B13=0,\"\",IF(N13=\"\",\"No\",IF(N13>=1,\"Yes\",\"No\")))","v":null},null,"Fraction Calculator: \nUse this calculator to add the number of cups.",null,null,1,{"$f":"INDEX(Cups,T13)","v":null}]
[1,{"$f":"INDEX(meals,A14)","v":null},8,null,{"$f":"IF(B14=0,\"\",IF((VLOOKUP(A14,'All Meals'!$A$12:$S$62,9))=\"\",0,(VLOOKUP(A14,'All Meals'!$A$12:$S$62,9))))","v":null},{"$f":"IF(B14=0,\"\",IF((VLOOKUP(A14,'All Meals'!$A$12:$S$62,12))=\"\",0,(VLOOKUP(A14,'All Meals'!$A$12:$S$62,12))))","v":null},{"$f":"IF(B14=0,\"\",IF((VLOOKUP(A14,'All Meals'!$A$12:$S$62,15))=\"\",0,(VLOOKUP(A14,'All Meals'!$A$12:$S$62,15))))","v":null},{"$f":"IF(B14=0,\"\",IF((VLOOKUP(A14,'All Meals'!$A$12:$S$62,18))=\"\",0,(VLOOKUP(A14,'All Meals'!$A$12:$S$62,18))))","v":null},{"$f":"IF(B14=0,\"\",IF(E14=\"\",\"No\",IF(E14>=1,\"Yes\",\"No\")))","v":null},{"$f":"IF(B14=0,\"\",IF((VLOOKUP(A14,'All Meals'!$A$12:$S$62,4))=\"\",0,(VLOOKUP(A14,'All Meals'!$A$12:$S$62,4))))","v":null},{"$f":"IF(B14=0,\"\",IF((VLOOKUP(A14,'All Meals'!$A$12:$S$62,5))=\"\",0,(VLOOKUP(A14,'All Meals'!$A$12:$S$62,5))))","v":null},{"$f":"IF(B14=0,\"\",IF((VLOOKUP(A14,'All Meals'!$A$12:$S$62,6))=\"\",0,(VLOOKUP(A14,'All Meals'!$A$12:$S$62,6))))","v":null},{"$f":"IF(B14=0,\"\",IF(SUM(J14-L14)>=1,\"Yes\",\"No\"))","v":null},{"$f":"IF(B14=0,\"\",IF((VLOOKUP(A14,'All Meals'!$A$12:$S$62,19))=\"\",0,(VLOOKUP(A14,'All Meals'!$A$12:$S$62,19))))","v":null},{"$f":"IF(B14=0,\"\",IF(N14=\"\",\"No\",IF(N14>=1,\"Yes\",\"No\")))","v":null},null,null,null,null,1,{"$f":"INDEX(Cups,T14)","v":null}]
[1,{"$f":"INDEX(meals,A15)","v":null},9,null,{"$f":"IF(B15=0,\"\",IF((VLOOKUP(A15,'All Meals'!$A$12:$S$62,9))=\"\",0,(VLOOKUP(A15,'All Meals'!$A$12:$S$62,9))))","v":null},{"$f":"IF(B15=0,\"\",IF((VLOOKUP(A15,'All Meals'!$A$12:$S$62,12))=\"\",0,(VLOOKUP(A15,'All Meals'!$A$12:$S$62,12))))","v":null},{"$f":"IF(B15=0,\"\",IF((VLOOKUP(A15,'All Meals'!$A$12:$S$62,15))=\"\",0,(VLOOKUP(A15,'All Meals'!$A$12:$S$62,15))))","v":null},{"$f":"IF(B15=0,\"\",IF((VLOOKUP(A15,'All Meals'!$A$12:$S$62,18))=\"\",0,(VLOOKUP(A15,'All Meals'!$A$12:$S$62,18))))","v":null},{"$f":"IF(B15=0,\"\",IF(E15=\"\",\"No\",IF(E15>=1,\"Yes\",\"No\")))","v":null},{"$f":"IF(B15=0,\"\",IF((VLOOKUP(A15,'All Meals'!$A$12:$S$62,4))=\"\",0,(VLOOKUP(A15,'All Meals'!$A$12:$S$62,4))))","v":null},{"$f":"IF(B15=0,\"\",IF((VLOOKUP(A15,'All Meals'!$A$12:$S$62,5))=\"\",0,(VLOOKUP(A15,'All Meals'!$A$12:$S$62,5))))","v":null},{"$f":"IF(B15=0,\"\",IF((VLOOKUP(A15,'All Meals'!$A$12:$S$62,6))=\"\",0,(VLOOKUP(A15,'All Meals'!$A$12:$S$62,6))))","v":null},{"$f":"IF(B15=0,\"\",IF(SUM(J15-L15)>=1,\"Yes\",\"No\"))","v":null},{"$f":"IF(B15=0,\"\",IF((VLOOKUP(A15,'All Meals'!$A$12:$S$62,19))=\"\",0,(VLOOKUP(A15,'All Meals'!$A$12:$S$62,19))))","v":null},{"$f":"IF(B15=0,\"\",IF(N15=\"\",\"No\",IF(N15>=1,\"Yes\",\"No\")))","v":null},null,null,null,null,1,{"$f":"INDEX(Cups,T15)","v":null}]
[1,{"$f":"INDEX(meals,A16)","v":null},10,null,{"$f":"IF(B16=0,\"\",IF((VLOOKUP(A16,'All Meals'!$A$12:$S$62,9))=\"\",0,(VLOOKUP(A16,'All Meals'!$A$12:$S$62,9))))","v":null},{"$f":"IF(B16=0,\"\",IF((VLOOKUP(A16,'All Meals'!$A$12:$S$62,12))=\"\",0,(VLOOKUP(A16,'All Meals'!$A$12:$S$62,12))))","v":null},{"$f":"IF(B16=0,\"\",IF((VLOOKUP(A16,'All Meals'!$A$12:$S$62,15))=\"\",0,(VLOOKUP(A16,'All Meals'!$A$12:$S$62,15))))","v":null},{"$f":"IF(B16=0,\"\",IF((VLOOKUP(A16,'All Meals'!$A$12:$S$62,18))=\"\",0,(VLOOKUP(A16,'All Meals'!$A$12:$S$62,18))))","v":null},{"$f":"IF(B16=0,\"\",IF(E16=\"\",\"No\",IF(E16>=1,\"Yes\",\"No\")))","v":null},{"$f":"IF(B16=0,\"\",IF((VLOOKUP(A16,'All Meals'!$A$12:$S$62,4))=\"\",0,(VLOOKUP(A16,'All Meals'!$A$12:$S$62,4))))","v":null},{"$f":"IF(B16=0,\"\",IF((VLOOKUP(A16,'All Meals'!$A$12:$S$62,5))=\"\",0,(VLOOKUP(A16,'All Meals'!$A$12:$S$62,5))))","v":null},{"$f":"IF(B16=0,\"\",IF((VLOOKUP(A16,'All Meals'!$A$12:$S$62,6))=\"\",0,(VLOOKUP(A16,'All Meals'!$A$12:$S$62,6))))","v":null},{"$f":"IF(B16=0,\"\",IF(SUM(J16-L16)>=1,\"Yes\",\"No\"))","v":null},{"$f":"IF(B16=0,\"\",IF((VLOOKUP(A16,'All Meals'!$A$12:$S$62,19))=\"\",0,(VLOOKUP(A16,'All Meals'!$A$12:$S$62,19))))","v":null},{"$f":"IF(B16=0,\"\",IF(N16=\"\",\"No\",IF(N16>=1,\"Yes\",\"No\")))","v":null},null,null,null,null,1,{"$f":"INDEX(Cups,T16)","v":null}]
[1,{"$f":"INDEX(meals,A17)","v":null},11,null,{"$f":"IF(B17=0,\"\",IF((VLOOKUP(A17,'All Meals'!$A$12:$S$62,9))=\"\",0,(VLOOKUP(A17,'All Meals'!$A$12:$S$62,9))))","v":null},{"$f":"IF(B17=0,\"\",IF((VLOOKUP(A17,'All Meals'!$A$12:$S$62,12))=\"\",0,(VLOOKUP(A17,'All Meals'!$A$12:$S$62,12))))","v":null},{"$f":"IF(B17=0,\"\",IF((VLOOKUP(A17,'All Meals'!$A$12:$S$62,15))=\"\",0,(VLOOKUP(A17,'All Meals'!$A$12:$S$62,15))))","v":null},{"$f":"IF(B17=0,\"\",IF((VLOOKUP(A17,'All Meals'!$A$12:$S$62,18))=\"\",0,(VLOOKUP(A17,'All Meals'!$A$12:$S$62,18))))","v":null},{"$f":"IF(B17=0,\"\",IF(E17=\"\",\"No\",IF(E17>=1,\"Yes\",\"No\")))","v":null},{"$f":"IF(B17=0,\"\",IF((VLOOKUP(A17,'All Meals'!$A$12:$S$62,4))=\"\",0,(VLOOKUP(A17,'All Meals'!$A$12:$S$62,4))))","v":null},{"$f":"IF(B17=0,\"\",IF((VLOOKUP(A17,'All Meals'!$A$12:$S$62,5))=\"\",0,(VLOOKUP(A17,'All Meals'!$A$12:$S$62,5))))","v":null},{"$f":"IF(B17=0,\"\",IF((VLOOKUP(A17,'All Meals'!$A$12:$S$62,6))=\"\",0,(VLOOKUP(A17,'All Meals'!$A$12:$S$62,6))))","v":null},{"$f":"IF(B17=0,\"\",IF(SUM(J17-L17)>=1,\"Yes\",\"No\"))","v":null},{"$f":"IF(B17=0,\"\",IF((VLOOKUP(A17,'All Meals'!$A$12:$S$62,19))=\"\",0,(VLOOKUP(A17,'All Meals'!$A$12:$S$62,19))))","v":null},{"$f":"IF(B17=0,\"\",IF(N17=\"\",\"No\",IF(N17>=1,\"Yes\",\"No\")))","v":null},null,null,null,null,1,{"$f":"INDEX(Cups,T17)","v":null}]
[1,{"$f":"INDEX(meals,A18)","v":null},12,null,{"$f":"IF(B18=0,\"\",IF((VLOOKUP(A18,'All Meals'!$A$12:$S$62,9))=\"\",0,(VLOOKUP(A18,'All Meals'!$A$12:$S$62,9))))","v":null},{"$f":"IF(B18=0,\"\",IF((VLOOKUP(A18,'All Meals'!$A$12:$S$62,12))=\"\",0,(VLOOKUP(A18,'All Meals'!$A$12:$S$62,12))))","v":null},{"$f":"IF(B18=0,\"\",IF((VLOOKUP(A18,'All Meals'!$A$12:$S$62,15))=\"\",0,(VLOOKUP(A18,'All Meals'!$A$12:$S$62,15))))","v":null},{"$f":"IF(B18=0,\"\",IF((VLOOKUP(A18,'All Meals'!$A$12:$S$62,18))=\"\",0,(VLOOKUP(A18,'All Meals'!$A$12:$S$62,18))))","v":null},{"$f":"IF(B18=0,\"\",IF(E18=\"\",\"No\",IF(E18>=1,\"Yes\",\"No\")))","v":null},{"$f":"IF(B18=0,\"\",IF((VLOOKUP(A18,'All Meals'!$A$12:$S$62,4))=\"\",0,(VLOOKUP(A18,'All Meals'!$A$12:$S$62,4))))","v":null},{"$f":"IF(B18=0,\"\",IF((VLOOKUP(A18,'All Meals'!$A$12:$S$62,5))=\"\",0,(VLOOKUP(A18,'All Meals'!$A$12:$S$62,5))))","v":null},{"$f":"IF(B18=0,\"\",IF((VLOOKUP(A18,'All Meals'!$A$12:$S$62,6))=\"\",0,(VLOOKUP(A18,'All Meals'!$A$12:$S$62,6))))","v":null},{"$f":"IF(B18=0,\"\",IF(SUM(J18-L18)>=1,\"Yes\",\"No\"))","v":null},{"$f":"IF(B18=0,\"\",IF((VLOOKUP(A18,'All Meals'!$A$12:$S$62,19))=\"\",0,(VLOOKUP(A18,'All Meals'!$A$12:$S$62,19))))","v":null},{"$f":"IF(B18=0,\"\",IF(N18=\"\",\"No\",IF(N18>=1,\"Yes\",\"No\")))","v":null},null,null,null,null,null,null,{"$f":"SUM(U13:U17)","v":null}]
[1,{"$f":"INDEX(meals,A19)","v":null},13,null,{"$f":"IF(B19=0,\"\",IF((VLOOKUP(A19,'All Meals'!$A$12:$S$62,9))=\"\",0,(VLOOKUP(A19,'All Meals'!$A$12:$S$62,9))))","v":null},{"$f":"IF(B19=0,\"\",IF((VLOOKUP(A19,'All Meals'!$A$12:$S$62,12))=\"\",0,(VLOOKUP(A19,'All Meals'!$A$12:$S$62,12))))","v":null},{"$f":"IF(B19=0,\"\",IF((VLOOKUP(A19,'All Meals'!$A$12:$S$62,15))=\"\",0,(VLOOKUP(A19,'All Meals'!$A$12:$S$62,15))))","v":null},{"$f":"IF(B19=0,\"\",IF((VLOOKUP(A19,'All Meals'!$A$12:$S$62,18))=\"\",0,(VLOOKUP(A19,'All Meals'!$A$12:$S$62,18))))","v":null},{"$f":"IF(B19=0,\"\",IF(E19=\"\",\"No\",IF(E19>=1,\"Yes\",\"No\")))","v":null},{"$f":"IF(B19=0,\"\",IF((VLOOKUP(A19,'All Meals'!$A$12:$S$62,4))=\"\",0,(VLOOKUP(A19,'All Meals'!$A$12:$S$62,4))))","v":null},{"$f":"IF(B19=0,\"\",IF((VLOOKUP(A19,'All Meals'!$A$12:$S$62,5))=\"\",0,(VLOOKUP(A19,'All Meals'!$A$12:$S$62,5))))","v":null},{"$f":"IF(B19=0,\"\",IF((VLOOKUP(A19,'All Meals'!$A$12:$S$62,6))=\"\",0,(VLOOKUP(A19,'All Meals'!$A$12:$S$62,6))))","v":null},{"$f":"IF(B19=0,\"\",IF(SUM(J19-L19)>=1,\"Yes\",\"No\"))","v":null},{"$f":"IF(B19=0,\"\",IF((VLOOKUP(A19,'All Meals'!$A$12:$S$62,19))=\"\",0,(VLOOKUP(A19,'All Meals'!$A$12:$S$62,19))))","v":null},{"$f":"IF(B19=0,\"\",IF(N19=\"\",\"No\",IF(N19>=1,\"Yes\",\"No\")))","v":null},null,"Decimal/Fraction Converter\n(Rounded down to the nearest 1/8)"]
[1,{"$f":"INDEX(meals,A20)","v":null},14,null,{"$f":"IF(B20=0,\"\",IF((VLOOKUP(A20,'All Meals'!$A$12:$S$62,9))=\"\",0,(VLOOKUP(A20,'All Meals'!$A$12:$S$62,9))))","v":null},{"$f":"IF(B20=0,\"\",IF((VLOOKUP(A20,'All Meals'!$A$12:$S$62,12))=\"\",0,(VLOOKUP(A20,'All Meals'!$A$12:$S$62,12))))","v":null},{"$f":"IF(B20=0,\"\",IF((VLOOKUP(A20,'All Meals'!$A$12:$S$62,15))=\"\",0,(VLOOKUP(A20,'All Meals'!$A$12:$S$62,15))))","v":null},{"$f":"IF(B20=0,\"\",IF((VLOOKUP(A20,'All Meals'!$A$12:$S$62,18))=\"\",0,(VLOOKUP(A20,'All Meals'!$A$12:$S$62,18))))","v":null},{"$f":"IF(B20=0,\"\",IF(E20=\"\",\"No\",IF(E20>=1,\"Yes\",\"No\")))","v":null},{"$f":"IF(B20=0,\"\",IF((VLOOKUP(A20,'All Meals'!$A$12:$S$62,4))=\"\",0,(VLOOKUP(A20,'All Meals'!$A$12:$S$62,4))))","v":null},{"$f":"IF(B20=0,\"\",IF((VLOOKUP(A20,'All Meals'!$A$12:$S$62,5))=\"\",0,(VLOOKUP(A20,'All Meals'!$A$12:$S$62,5))))","v":null},{"$f":"IF(B20=0,\"\",IF((VLOOKUP(A20,'All Meals'!$A$12:$S$62,6))=\"\",0,(VLOOKUP(A20,'All Meals'!$A$12:$S$62,6))))","v":null},{"$f":"IF(B20=0,\"\",IF(SUM(J20-L20)>=1,\"Yes\",\"No\"))","v":null},{"$f":"IF(B20=0,\"\",IF((VLOOKUP(A20,'All Meals'!$A$12:$S$62,19))=\"\",0,(VLOOKUP(A20,'All Meals'!$A$12:$S$62,19))))","v":null},{"$f":"IF(B20=0,\"\",IF(N20=\"\",\"No\",IF(N20>=1,\"Yes\",\"No\")))","v":null},null,"Enter the decimal you wish to convert to a fraction in the box:"]
[1,{"$f":"INDEX(meals,A21)","v":null},15,null,{"$f":"IF(B21=0,\"\",IF((VLOOKUP(A21,'All Meals'!$A$12:$S$62,9))=\"\",0,(VLOOKUP(A21,'All Meals'!$A$12:$S$62,9))))","v":null},{"$f":"IF(B21=0,\"\",IF((VLOOKUP(A21,'All Meals'!$A$12:$S$62,12))=\"\",0,(VLOOKUP(A21,'All Meals'!$A$12:$S$62,12))))","v":null},{"$f":"IF(B21=0,\"\",IF((VLOOKUP(A21,'All Meals'!$A$12:$S$62,15))=\"\",0,(VLOOKUP(A21,'All Meals'!$A$12:$S$62,15))))","v":null},{"$f":"IF(B21=0,\"\",IF((VLOOKUP(A21,'All Meals'!$A$12:$S$62,18))=\"\",0,(VLOOKUP(A21,'All Meals'!$A$12:$S$62,18))))","v":null},{"$f":"IF(B21=0,\"\",IF(E21=\"\",\"No\",IF(E21>=1,\"Yes\",\"No\")))","v":null},{"$f":"IF(B21=0,\"\",IF((VLOOKUP(A21,'All Meals'!$A$12:$S$62,4))=\"\",0,(VLOOKUP(A21,'All Meals'!$A$12:$S$62,4))))","v":null},{"$f":"IF(B21=0,\"\",IF((VLOOKUP(A21,'All Meals'!$A$12:$S$62,5))=\"\",0,(VLOOKUP(A21,'All Meals'!$A$12:$S$62,5))))","v":null},{"$f":"IF(B21=0,\"\",IF((VLOOKUP(A21,'All Meals'!$A$12:$S$62,6))=\"\",0,(VLOOKUP(A21,'All Meals'!$A$12:$S$62,6))))","v":null},{"$f":"IF(B21=0,\"\",IF(SUM(J21-L21)>=1,\"Yes\",\"No\"))","v":null},{"$f":"IF(B21=0,\"\",IF((VLOOKUP(A21,'All Meals'!$A$12:$S$62,19))=\"\",0,(VLOOKUP(A21,'All Meals'!$A$12:$S$62,19))))","v":null},{"$f":"IF(B21=0,\"\",IF(N21=\"\",\"No\",IF(N21>=1,\"Yes\",\"No\")))","v":null}]
[1,{"$f":"INDEX(meals,A22)","v":null},16,null,{"$f":"IF(B22=0,\"\",IF((VLOOKUP(A22,'All Meals'!$A$12:$S$62,9))=\"\",0,(VLOOKUP(A22,'All Meals'!$A$12:$S$62,9))))","v":null},{"$f":"IF(B22=0,\"\",IF((VLOOKUP(A22,'All Meals'!$A$12:$S$62,12))=\"\",0,(VLOOKUP(A22,'All Meals'!$A$12:$S$62,12))))","v":null},{"$f":"IF(B22=0,\"\",IF((VLOOKUP(A22,'All Meals'!$A$12:$S$62,15))=\"\",0,(VLOOKUP(A22,'All Meals'!$A$12:$S$62,15))))","v":null},{"$f":"IF(B22=0,\"\",IF((VLOOKUP(A22,'All Meals'!$A$12:$S$62,18))=\"\",0,(VLOOKUP(A22,'All Meals'!$A$12:$S$62,18))))","v":null},{"$f":"IF(B22=0,\"\",IF(E22=\"\",\"No\",IF(E22>=1,\"Yes\",\"No\")))","v":null},{"$f":"IF(B22=0,\"\",IF((VLOOKUP(A22,'All Meals'!$A$12:$S$62,4))=\"\",0,(VLOOKUP(A22,'All Meals'!$A$12:$S$62,4))))","v":null},{"$f":"IF(B22=0,\"\",IF((VLOOKUP(A22,'All Meals'!$A$12:$S$62,5))=\"\",0,(VLOOKUP(A22,'All Meals'!$A$12:$S$62,5))))","v":null},{"$f":"IF(B22=0,\"\",IF((VLOOKUP(A22,'All Meals'!$A$12:$S$62,6))=\"\",0,(VLOOKUP(A22,'All Meals'!$A$12:$S$62,6))))","v":null},{"$f":"IF(B22=0,\"\",IF(SUM(J22-L22)>=1,\"Yes\",\"No\"))","v":null},{"$f":"IF(B22=0,\"\",IF((VLOOKUP(A22,'All Meals'!$A$12:$S$62,19))=\"\",0,(VLOOKUP(A22,'All Meals'!$A$12:$S$62,19))))","v":null},{"$f":"IF(B22=0,\"\",IF(N22=\"\",\"No\",IF(N22>=1,\"Yes\",\"No\")))","v":null},null,"The decimal entered above has been converted to the following fraction:",null,null,null,null,{"$f":"FLOOR(V20,0.125)","v":null}]
[1,{"$f":"INDEX(meals,A23)","v":null},17,null,{"$f":"IF(B23=0,\"\",IF((VLOOKUP(A23,'All Meals'!$A$12:$S$62,9))=\"\",0,(VLOOKUP(A23,'All Meals'!$A$12:$S$62,9))))","v":null},{"$f":"IF(B23=0,\"\",IF((VLOOKUP(A23,'All Meals'!$A$12:$S$62,12))=\"\",0,(VLOOKUP(A23,'All Meals'!$A$12:$S$62,12))))","v":null},{"$f":"IF(B23=0,\"\",IF((VLOOKUP(A23,'All Meals'!$A$12:$S$62,15))=\"\",0,(VLOOKUP(A23,'All Meals'!$A$12:$S$62,15))))","v":null},{"$f":"IF(B23=0,\"\",IF((VLOOKUP(A23,'All Meals'!$A$12:$S$62,18))=\"\",0,(VLOOKUP(A23,'All Meals'!$A$12:$S$62,18))))","v":null},{"$f":"IF(B23=0,\"\",IF(E23=\"\",\"No\",IF(E23>=1,\"Yes\",\"No\")))","v":null},{"$f":"IF(B23=0,\"\",IF((VLOOKUP(A23,'All Meals'!$A$12:$S$62,4))=\"\",0,(VLOOKUP(A23,'All Meals'!$A$12:$S$62,4))))","v":null},{"$f":"IF(B23=0,\"\",IF((VLOOKUP(A23,'All Meals'!$A$12:$S$62,5))=\"\",0,(VLOOKUP(A23,'All Meals'!$A$12:$S$62,5))))","v":null},{"$f":"IF(B23=0,\"\",IF((VLOOKUP(A23,'All Meals'!$A$12:$S$62,6))=\"\",0,(VLOOKUP(A23,'All Meals'!$A$12:$S$62,6))))","v":null},{"$f":"IF(B23=0,\"\",IF(SUM(J23-L23)>=1,\"Yes\",\"No\"))","v":null},{"$f":"IF(B23=0,\"\",IF((VLOOKUP(A23,'All Meals'!$A$12:$S$62,19))=\"\",0,(VLOOKUP(A23,'All Meals'!$A$12:$S$62,19))))","v":null},{"$f":"IF(B23=0,\"\",IF(N23=\"\",\"No\",IF(N23>=1,\"Yes\",\"No\")))","v":null}]
[1,{"$f":"INDEX(meals,A24)","v":null},18,null,{"$f":"IF(B24=0,\"\",IF((VLOOKUP(A24,'All Meals'!$A$12:$S$62,9))=\"\",0,(VLOOKUP(A24,'All Meals'!$A$12:$S$62,9))))","v":null},{"$f":"IF(B24=0,\"\",IF((VLOOKUP(A24,'All Meals'!$A$12:$S$62,12))=\"\",0,(VLOOKUP(A24,'All Meals'!$A$12:$S$62,12))))","v":null},{"$f":"IF(B24=0,\"\",IF((VLOOKUP(A24,'All Meals'!$A$12:$S$62,15))=\"\",0,(VLOOKUP(A24,'All Meals'!$A$12:$S$62,15))))","v":null},{"$f":"IF(B24=0,\"\",IF((VLOOKUP(A24,'All Meals'!$A$12:$S$62,18))=\"\",0,(VLOOKUP(A24,'All Meals'!$A$12:$S$62,18))))","v":null},{"$f":"IF(B24=0,\"\",IF(E24=\"\",\"No\",IF(E24>=1,\"Yes\",\"No\")))","v":null},{"$f":"IF(B24=0,\"\",IF((VLOOKUP(A24,'All Meals'!$A$12:$S$62,4))=\"\",0,(VLOOKUP(A24,'All Meals'!$A$12:$S$62,4))))","v":null},{"$f":"IF(B24=0,\"\",IF((VLOOKUP(A24,'All Meals'!$A$12:$S$62,5))=\"\",0,(VLOOKUP(A24,'All Meals'!$A$12:$S$62,5))))","v":null},{"$f":"IF(B24=0,\"\",IF((VLOOKUP(A24,'All Meals'!$A$12:$S$62,6))=\"\",0,(VLOOKUP(A24,'All Meals'!$A$12:$S$62,6))))","v":null},{"$f":"IF(B24=0,\"\",IF(SUM(J24-L24)>=1,\"Yes\",\"No\"))","v":null},{"$f":"IF(B24=0,\"\",IF((VLOOKUP(A24,'All Meals'!$A$12:$S$62,19))=\"\",0,(VLOOKUP(A24,'All Meals'!$A$12:$S$62,19))))","v":null},{"$f":"IF(B24=0,\"\",IF(N24=\"\",\"No\",IF(N24>=1,\"Yes\",\"No\")))","v":null}]
[1,{"$f":"INDEX(meals,A25)","v":null},19,null,{"$f":"IF(B25=0,\"\",IF((VLOOKUP(A25,'All Meals'!$A$12:$S$62,9))=\"\",0,(VLOOKUP(A25,'All Meals'!$A$12:$S$62,9))))","v":null},{"$f":"IF(B25=0,\"\",IF((VLOOKUP(A25,'All Meals'!$A$12:$S$62,12))=\"\",0,(VLOOKUP(A25,'All Meals'!$A$12:$S$62,12))))","v":null},{"$f":"IF(B25=0,\"\",IF((VLOOKUP(A25,'All Meals'!$A$12:$S$62,15))=\"\",0,(VLOOKUP(A25,'All Meals'!$A$12:$S$62,15))))","v":null},{"$f":"IF(B25=0,\"\",IF((VLOOKUP(A25,'All Meals'!$A$12:$S$62,18))=\"\",0,(VLOOKUP(A25,'All Meals'!$A$12:$S$62,18))))","v":null},{"$f":"IF(B25=0,\"\",IF(E25=\"\",\"No\",IF(E25>=1,\"Yes\",\"No\")))","v":null},{"$f":"IF(B25=0,\"\",IF((VLOOKUP(A25,'All Meals'!$A$12:$S$62,4))=\"\",0,(VLOOKUP(A25,'All Meals'!$A$12:$S$62,4))))","v":null},{"$f":"IF(B25=0,\"\",IF((VLOOKUP(A25,'All Meals'!$A$12:$S$62,5))=\"\",0,(VLOOKUP(A25,'All Meals'!$A$12:$S$62,5))))","v":null},{"$f":"IF(B25=0,\"\",IF((VLOOKUP(A25,'All Meals'!$A$12:$S$62,6))=\"\",0,(VLOOKUP(A25,'All Meals'!$A$12:$S$62,6))))","v":null},{"$f":"IF(B25=0,\"\",IF(SUM(J25-L25)>=1,\"Yes\",\"No\"))","v":null},{"$f":"IF(B25=0,\"\",IF((VLOOKUP(A25,'All Meals'!$A$12:$S$62,19))=\"\",0,(VLOOKUP(A25,'All Meals'!$A$12:$S$62,19))))","v":null},{"$f":"IF(B25=0,\"\",IF(N25=\"\",\"No\",IF(N25>=1,\"Yes\",\"No\")))","v":null}]
[1,{"$f":"INDEX(meals,A26)","v":null},20,null,{"$f":"IF(B26=0,\"\",IF((VLOOKUP(A26,'All Meals'!$A$12:$S$62,9))=\"\",0,(VLOOKUP(A26,'All Meals'!$A$12:$S$62,9))))","v":null},{"$f":"IF(B26=0,\"\",IF((VLOOKUP(A26,'All Meals'!$A$12:$S$62,12))=\"\",0,(VLOOKUP(A26,'All Meals'!$A$12:$S$62,12))))","v":null},{"$f":"IF(B26=0,\"\",IF((VLOOKUP(A26,'All Meals'!$A$12:$S$62,15))=\"\",0,(VLOOKUP(A26,'All Meals'!$A$12:$S$62,15))))","v":null},{"$f":"IF(B26=0,\"\",IF((VLOOKUP(A26,'All Meals'!$A$12:$S$62,18))=\"\",0,(VLOOKUP(A26,'All Meals'!$A$12:$S$62,18))))","v":null},{"$f":"IF(B26=0,\"\",IF(E26=\"\",\"No\",IF(E26>=1,\"Yes\",\"No\")))","v":null},{"$f":"IF(B26=0,\"\",IF((VLOOKUP(A26,'All Meals'!$A$12:$S$62,4))=\"\",0,(VLOOKUP(A26,'All Meals'!$A$12:$S$62,4))))","v":null},{"$f":"IF(B26=0,\"\",IF((VLOOKUP(A26,'All Meals'!$A$12:$S$62,5))=\"\",0,(VLOOKUP(A26,'All Meals'!$A$12:$S$62,5))))","v":null},{"$f":"IF(B26=0,\"\",IF((VLOOKUP(A26,'All Meals'!$A$12:$S$62,6))=\"\",0,(VLOOKUP(A26,'All Meals'!$A$12:$S$62,6))))","v":null},{"$f":"IF(B26=0,\"\",IF(SUM(J26-L26)>=1,\"Yes\",\"No\"))","v":null},{"$f":"IF(B26=0,\"\",IF((VLOOKUP(A26,'All Meals'!$A$12:$S$62,19))=\"\",0,(VLOOKUP(A26,'All Meals'!$A$12:$S$62,19))))","v":null},{"$f":"IF(B26=0,\"\",IF(N26=\"\",\"No\",IF(N26>=1,\"Yes\",\"No\")))","v":null}]

{"sheet":"Tuesday","index":5,"n_rows":28,"n_cols":23,"rows_kept":28,"cut":false,"hidden":false,"merged":[[21,16,22,18],[12,16,17,18],[13,21,13,22],[17,21,17,22],[19,16,20,18],[18,16,18,22],[19,21,20,22],[8,15,8,18],[10,16,11,22],[12,21,12,22],[7,15,7,18],[3,4,3,8],[4,8,5,8],[0,2,0,14],[21,21,22,22],[4,22,6,22],[14,21,14,22],[15,21,15,22],[16,21,16,22],[4,9,5,9],[6,15,6,18],[0,17,0,19],[1,17,1,19],[4,6,5,6],[4,5,5,5],[4,7,5,7],[5,15,5,18],[4,15,4,18],[4,11,5,11],[4,14,5,14],[1,2,1,14],[4,2,5,3],[3,13,3,14],[4,13,5,13],[2,2,2,22],[3,12,5,12],[3,2,3,3],[4,4,5,4],[3,15,3,22],[3,9,3,11],[4,10,5,10]]}
[null,null,"Tuesday Daily Breakfast Requirement Check\nGrades K-8",null,null,null,null,null,null,null,null,null,null,null,null,null,null,"Go to Weekly Report","'Weekly Report'!A1","'Weekly Report'!A1"]
[null,null,"The daily worksheet will perform daily requirement checks for the reimbursable meals offered each day. Requirements met are flagged \"Yes\" and the cell turns green. Requirements NOT met are flagged \"No\" and the cell turns red.  \nNOTE: The top row is frozen to display the column headers as the daily meals are entered.\nGrains and meat/meat alternates are rounded down to the nearest quarter ounce.\nOnce you are finished selecting the meals offered each day, make sure to scroll to the right to enter milk type information.",null,null,null,null,null,null,null,null,null,null,null,null,null,null,"Go to Instructions","'Breakfast Worksheet Instruction'!A1","'Breakfast Worksheet Instruction'!A1"]
["K-5 Menu #:\n",null,"Tuesday"]
[null,null,"Select the reimbursable breakfasts offered on Tuesday",null,"Fruit/Vegetable/100% Juice\n(cups)",null,null,null,null,"Grains or Meat/Meat Alternates Counting as Grains\n(ounce equivalents)",null,null,"Daily Breakfast Requirement Check\n1 oz equivalents","Milk\n(cups)",null,"Milk Type\nCheck the type of milk below if it is offered to students on Tuesday.\nAll types of milk included."]
[null,null,"Meal Name\nNote: You may not delete lines, if you want to clear a meal select the first blank in the drop down list",null,"Total fruit/vegetable/juice cups\n(cups)","Cups of fruit/vegetable juice","Cups of non-starchy vegetables","Cups of starchy vegetables","Daily Fruit Requirement Check\n 1 cup","Number of oz eq of GRAINS (Actual Grains + Meat/Meat Alternate counting toward Grains)","Number of oz eq of Whole Grain-Rich GRAINS","Number of oz eq of Meats/Meat Alternates",null,"Milk (cups)","Daily Milk Requirement Check\n1 cup","Skim/fat-free, unflavored",null,null,null,null,true,null,{"$f":"IF(AND(U5=FALSE,U6=FALSE,U7=FALSE),\"\",IF(AND(U5=TRUE,U6=TRUE),\"Yes\",IF(AND(U5=TRUE,U7=TRUE),\"Yes\",IF(AND(U6=TRUE,U7=TRUE),\"Yes\",\"No\"))))","v":null}]
[null,null,null,null,null,null,null,null,null,null,null,null,null,null,null,"Skim/fat-free, flavored",null,null,null,null,true]
[3,{"$f":"INDEX(meals,A7)","v":null},1,null,{"$f":"IF(B7=0,\"\",IF((VLOOKUP(A7,'All Meals'!$A$12:$S$62,9))=\"\",0,(VLOOKUP(A7,'All Meals'!$A$12:$S$62,9))))","v":null},{"$f":"IF(B7=0,\"\",IF((VLOOKUP(A7,'All Meals'!$A$12:$S$62,12))=\"\",0,(VLOOKUP(A7,'All Meals'!$A$12:$S$62,12))))","v":null},{"$f":"IF(B7=0,\"\",IF((VLOOKUP(A7,'All Meals'!$A$12:$S$62,15))=\"\",0,(VLOOKUP(A7,'All Meals'!$A$12:$S$62,15))))","v":null},{"$f":"IF(B7=0,\"\",IF((VLOOKUP(A7,'All Meals'!$A$12:$S$62,18))=\"\",0,(VLOOKUP(A7,'All Meals'!$A$12:$S$62,18))))","v":null},{"$f":"IF(B7=0,\"\",IF(E7=\"\",\"No\",IF(E7>=1,\"Yes\",\"No\")))","v":null},{"$f":"IF(B7=0,\"\",IF((VLOOKUP(A7,'All Meals'!$A$12:$S$62,4))=\"\",0,(VLOOKUP(A7,'All Meals'!$A$12:$S$62,4))))","v":null},{"$f":"IF(B7=0,\"\",IF((VLOOKUP(A7,'All Meals'!$A$12:$S$62,5))=\"\",0,(VLOOKUP(A7,'All Meals'!$A$12:$S$62,5))))","v":null},{"$f":"IF(B7=0,\"\",IF((VLOOKUP(A7,'All Meals'!$A$12:$S$62,6))=\"\",0,(VLOOKUP(A7,'All Meals'!$A$12:$S$62,6))))","v":null},{"$f":"IF(B7=0,\"\",IF(SUM(J7-L7)>=1,\"Yes\",\"No\"))","v":null},{"$f":"IF(B7=0,\"\",IF((VLOOKUP(A7,'All Meals'!$A$12:$S$62,19))=\"\",0,(VLOOKUP(A7,'All Meals'!$A$12:$S$62,19))))","v":null},{"$f":"IF(B7=0,\"\",IF(N7=\"\",\"No\",IF(N7>=1,\"Yes\",\"No\")))","v":null},"Low-fat (1% or less), unflavored",null,null,null,null,true]
[1,{"$f":"INDEX(meals,A8)","v":null},2,null,{"$f":"IF(B8=0,\"\",IF((VLOOKUP(A8,'All Meals'!$A$12:$S$62,9))=\"\",0,(VLOOKUP(A8,'All Meals'!$A$12:$S$62,9))))","v":null},{"$f":"IF(B8=0,\"\",IF((VLOOKUP(A8,'All Meals'!$A$12:$S$62,12))=\"\",0,(VLOOKUP(A8,'All Meals'!$A$12:$S$62,12))))","v":null},{"$f":"IF(B8=0,\"\",IF((VLOOKUP(A8,'All Meals'!$A$12:$S$62,15))=\"\",0,(VLOOKUP(A8,'All Meals'!$A$12:$S$62,15))))","v":null},{"$f":"IF(B8=0,\"\",IF((VLOOKUP(A8,'All Meals'!$A$12:$S$62,18))=\"\",0,(VLOOKUP(A8,'All Meals'!$A$12:$S$62,18))))","v":null},{"$f":"IF(B8=0,\"\",IF(E8=\"\",\"No\",IF(E8>=1,\"Yes\",\"No\")))","v":null},{"$f":"IF(B8=0,\"\",IF((VLOOKUP(A8,'All Meals'!$A$12:$S$62,4))=\"\",0,(VLOOKUP(A8,'All Meals'!$A$12:$S$62,4))))","v":null},{"$f":"IF(B8=0,\"\",IF((VLOOKUP(A8,'All Meals'!$A$12:$S$62,5))=\"\",0,(VLOOKUP(A8,'All Meals'!$A$12:$S$62,5))))","v":null},{"$f":"IF(B8=0,\"\",IF((VLOOKUP(A8,'All Meals'!$A$12:$S$62,6))=\"\",0,(VLOOKUP(A8,'All Meals'!$A$12:$S$62,6))))","v":null},{"$f":"IF(B8=0,\"\",IF(SUM(J8-L8)>=1,\"Yes\",\"No\"))","v":null},{"$f":"IF(B8=0,\"\",IF((VLOOKUP(A8,'All Meals'!$A$12:$S$62,19))=\"\",0,(VLOOKUP(A8,'All Meals'!$A$12:$S$62,19))))","v":null},{"$f":"IF(B8=0,\"\",IF(N8=\"\",\"No\",IF(N8>=1,\"Yes\",\"No\")))","v":null},"Low-fat (1% or less), flavored",null,null,null,null,false,null,{"$f":"IF(U8=TRUE,\"No\",\"\")","v":null}]
[1,{"$f":"INDEX(meals,A9)","v":null},3,null,{"$f":"IF(B9=0,\"\",IF((VLOOKUP(A9,'All Meals'!$A$12:$S$62,9))=\"\",0,(VLOOKUP(A9,'All Meals'!$A$12:$S$62,9))))","v":null},{"$f":"IF(B9=0,\"\",IF((VLOOKUP(A9,'All Meals'!$A$12:$S$62,12))=\"\",0,(VLOOKUP(A9,'All Meals'!$A$12:$S$62,12))))","v":null},{"$f":"IF(B9=0,\"\",IF((VLOOKUP(A9,'All Meals'!$A$12:$S$62,15))=\"\",0,(VLOOKUP(A9,'All Meals'!$A$12:$S$62,15))))","v":null},{"$f":"IF(B9=0,\"\",IF((VLOOKUP(A9,'All Meals'!$A$12:$S$62,18))=\"\",0,(VLOOKUP(A9,'All Meals'!$A$12:$S$62,18))))","v":null},{"$f":"IF(B9=0,\"\",IF(E9=\"\",\"No\",IF(E9>=1,\"Yes\",\"No\")))","v":null},{"$f":"IF(B9=0,\"\",IF((VLOOKUP(A9,'All Meals'!$A$12:$S$62,4))=\"\",0,(VLOOKUP(A9,'All Meals'!$A$12:$S$62,4))))","v":null},{"$f":"IF(B9=0,\"\",IF((VLOOKUP(A9,'All Meals'!$A$12:$S$62,5))=\"\",0,(VLOOKUP(A9,'All Meals'!$A$12:$S$62,5))))","v":null},{"$f":"IF(B9=0,\"\",IF((VLOOKUP(A9,'All Meals'!$A$12:$S$62,6))=\"\",0,(VLOOKUP(A9,'All Meals'!$A$12:$S$62,6))))","v":null},{"$f":"IF(B9=0,\"\",IF(SUM(J9-L9)>=1,\"Yes\",\"No\"))","v":null},{"$f":"IF(B9=0,\"\",IF((VLOOKUP(A9,'All Meals'!$A$12:$S$62,19))=\"\",0,(VLOOKUP(A9,'All Meals'!$A$12:$S$62,19))))","v":null},{"$f":"IF(B9=0,\"\",IF(N9=\"\",\"No\",IF(N9>=1,\"Yes\",\"No\")))","v":null},"Reduced fat (2% fat) or whole, unflavored and flavored",null,null,null,null,false,null,{"$f":"IF(U9=TRUE,\"No\",\"\")","v":null}]
[1,{"$f":"INDEX(meals,A10)","v":null},4,null,{"$f":"IF(B10=0,\"\",IF((VLOOKUP(A10,'All Meals'!$A$12:$S$62,9))=\"\",0,(VLOOKUP(A10,'All Meals'!$A$12:$S$62,9))))","v":null},{"$f":"IF(B10=0,\"\",IF((VLOOKUP(A10,'All Meals'!$A$12:$S$62,12))=\"\",0,(VLOOKUP(A10,'All Meals'!$A$12:$S$62,12))))","v":null},{"$f":"IF(B10=0,\"\",IF((VLOOKUP(A10,'All Meals'!$A$12:$S$62,15))=\"\",0,(VLOOKUP(A10,'All Meals'!$A$12:$S$62,15))))","v":null},{"$f":"IF(B10=0,\"\",IF((VLOOKUP(A10,'All Meals'!$A$12:$S$62,18))=\"\",0,(VLOOKUP(A10,'All Meals'!$A$12:$S$62,18))))","v":null},{"$f":"IF(B10=0,\"\",IF(E10=\"\",\"No\",IF(E10>=1,\"Yes\",\"No\")))","v":null},{"$f":"IF(B10=0,\"\",IF((VLOOKUP(A10,'All Meals'!$A$12:$S$62,4))=\"\",0,(VLOOKUP(A10,'All Meals'!$A$12:$S$62,4))))","v":null},{"$f":"IF(B10=0,\"\",IF((VLOOKUP(A10,'All Meals'!$A$12:$S$62,5))=\"\",0,(VLOOKUP(A10,'All Meals'!$A$12:$S$62,5))))","v":null},{"$f":"IF(B10=0,\"\",IF((VLOOKUP(A10,'All Meals'!$A$12:$S$62,6))=\"\",0,(VLOOKUP(A10,'All Meals'!$A$12:$S$62,6))))","v":null},{"$f":"IF(B10=0,\"\",IF(SUM(J10-L10)>=1,\"Yes\",\"No\"))","v":null},{"$f":"IF(B10=0,\"\",IF((VLOOKUP(A10,'All Meals'!$A$12:$S$62,19))=\"\",0,(VLOOKUP(A10,'All Meals'!$A$12:$S$62,19))))","v":null},{"$f":"IF(B10=0,\"\",IF(N10=\"\",\"No\",IF(N10>=1,\"Yes\",\"No\")))","v":null}]
[1,{"$f":"INDEX(meals,A11)","v":null},5,null,{"$f":"IF(B11=0,\"\",IF((VLOOKUP(A11,'All Meals'!$A$12:$S$62,9))=\"\",0,(VLOOKUP(A11,'All Meals'!$A$12:$S$62,9))))","v":null},{"$f":"IF(B11=0,\"\",IF((VLOOKUP(A11,'All Meals'!$A$12:$S$62,12))=\"\",0,(VLOOKUP(A11,'All Meals'!$A$12:$S$62,12))))","v":null},{"$f":"IF(B11=0,\"\",IF((VLOOKUP(A11,'All Meals'!$A$12:$S$62,15))=\"\",0,(VLOOKUP(A11,'All Meals'!$A$12:$S$62,15))))","v":null},{"$f":"IF(B11=0,\"\",IF((VLOOKUP(A11,'All Meals'!$A$12:$S$62,18))=\"\",0,(VLOOKUP(A11,'All Meals'!$A$12:$S$62,18))))","v":null},{"$f":"IF(B11=0,\"\",IF(E11=\"\",\"No\",IF(E11>=1,\"Yes\",\"No\")))","v":null},{"$f":"IF(B11=0,\"\",IF((VLOOKUP(A11,'All Meals'!$A$12:$S$62,4))=\"\",0,(VLOOKUP(A11,'All Meals'!$A$12:$S$62,4))))","v":null},{"$f":"IF(B11=0,\"\",IF((VLOOKUP(A11,'All Meals'!$A$12:$S$62,5))=\"\",0,(VLOOKUP(A11,'All Meals'!$A$12:$S$62,5))))","v":null},{"$f":"IF(B11=0,\"\",IF((VLOOKUP(A11,'All Meals'!$A$12:$S$62,6))=\"\",0,(VLOOKUP(A11,'All Meals'!$A$12:$S$62,6))))","v":null},{"$f":"IF(B11=0,\"\",IF(SUM(J11-L11)>=1,\"Yes\",\"No\"))","v":null},{"$f":"IF(B11=0,\"\",IF((VLOOKUP(A11,'All Meals'!$A$12:$S$62,19))=\"\",0,(VLOOKUP(A11,'All Meals'!$A$12:$S$62,19))))","v":null},{"$f":"IF(B11=0,\"\",IF(N11=\"\",\"No\",IF(N11>=1,\"Yes\",\"No\")))","v":null},null,"OPTIONAL Tools to Assist in Fraction and Decimal Calculations"]
[1,{"$f":"INDEX(meals,A12)","v":null},6,null,{"$f":"IF(B12=0,\"\",IF((VLOOKUP(A12,'All Meals'!$A$12:$S$62,9))=\"\",0,(VLOOKUP(A12,'All Meals'!$A$12:$S$62,9))))","v":null},{"$f":"IF(B12=0,\"\",IF((VLOOKUP(A12,'All Meals'!$A$12:$S$62,12))=\"\",0,(VLOOKUP(A12,'All Meals'!$A$12:$S$62,12))))","v":null},{"$f":"IF(B12=0,\"\",IF((VLOOKUP(A12,'All Meals'!$A$12:$S$62,15))=\"\",0,(VLOOKUP(A12,'All Meals'!$A$12:$S$62,15))))","v":null},{"$f":"IF(B12=0,\"\",IF((VLOOKUP(A12,'All Meals'!$A$12:$S$62,18))=\"\",0,(VLOOKUP(A12,'All Meals'!$A$12:$S$62,18))))","v":null},{"$f":"IF(B12=0,\"\",IF(E12=\"\",\"No\",IF(E12>=1,\"Yes\",\"No\")))","v":null},{"$f":"IF(B12=0,\"\",IF((VLOOKUP(A12,'All Meals'!$A$12:$S$62,4))=\"\",0,(VLOOKUP(A12,'All Meals'!$A$12:$S$62,4))))","v":null},{"$f":"IF(B12=0,\"\",IF((VLOOKUP(A12,'All Meals'!$A$12:$S$62,5))=\"\",0,(VLOOKUP(A12,'All Meals'!$A$12:$S$62,5))))","v":null},{"$f":"IF(B12=0,\"\",IF((VLOOKUP(A12,'All Meals'!$A$12:$S$62,6))=\"\",0,(VLOOKUP(A12,'All Meals'!$A$12:$S$62,6))))","v":null},{"$f":"IF(B12=0,\"\",IF(SUM(J12-L12)>=1,\"Yes\",\"No\"))","v":null},{"$f":"IF(B12=0,\"\",IF((VLOOKUP(A12,'All Meals'!$A$12:$S$62,19))=\"\",0,(VLOOKUP(A12,'All Meals'!$A$12:$S$62,19))))","v":null},{"$f":"IF(B12=0,\"\",IF(N12=\"\",\"No\",IF(N12>=1,\"Yes\",\"No\")))","v":null}]
[1,{"$f":"INDEX(meals,A13)","v":null},7,null,{"$f":"IF(B13=0,\"\",IF((VLOOKUP(A13,'All Meals'!$A$12:$S$62,9))=\"\",0,(VLOOKUP(A13,'All Meals'!$A$12:$S$62,9))))","v":null},{"$f":"IF(B13=0,\"\",IF((VLOOKUP(A13,'All Meals'!$A$12:$S$62,12))=\"\",0,(VLOOKUP(A13,'All Meals'!$A$12:$S$62,12))))","v":null},{"$f":"IF(B13=0,\"\",IF((VLOOKUP(A13,'All Meals'!$A$12:$S$62,15))=\"\",0,(VLOOKUP(A13,'All Meals'!$A$12:$S$62,15))))","v":null},{"$f":"IF(B13=0,\"\",IF((VLOOKUP(A13,'All Meals'!$A$12:$S$62,18))=\"\",0,(VLOOKUP(A13,'All Meals'!$A$12:$S$62,18))))","v":null},{"$f":"IF(B13=0,\"\",IF(E13=\"\",\"No\",IF(E13>=1,\"Yes\",\"No\")))","v":null},{"$f":"IF(B13=0,\"\",IF((VLOOKUP(A13,'All Meals'!$A$12:$S$62,4))=\"\",0,(VLOOKUP(A13,'All Meals'!$A$12:$S$62,4))))","v":null},{"$f":"IF(B13=0,\"\",IF((VLOOKUP(A13,'All Meals'!$A$12:$S$62,5))=\"\",0,(VLOOKUP(A13,'All Meals'!$A$12:$S$62,5))))","v":null},{"$f":"IF(B13=0,\"\",IF((VLOOKUP(A13,'All Meals'!$A$12:$S$62,6))=\"\",0,(VLOOKUP(A13,'All Meals'!$A$12:$S$62,6))))","v":null},{"$f":"IF(B13=0,\"\",IF(SUM(J13-L13)>=1,\"Yes\",\"No\"))","v":null},{"$f":"IF(B13=0,\"\",IF((VLOOKUP(A13,'All Meals'!$A$12:$S$62,19))=\"\",0,(VLOOKUP(A13,'All Meals'!$A$12:$S$62,19))))","v":null},{"$f":"IF(B13=0,\"\",IF(N13=\"\",\"No\",IF(N13>=1,\"Yes\",\"No\")))","v":null},null,"Fraction Calculator: \nUse this calculator to add the number of cups.",null,null,1,{"$f":"INDEX(Cups,T13)","v":null}]
[1,{"$f":"INDEX(meals,A14)","v":null},8,null,{"$f":"IF(B14=0,\"\",IF((VLOOKUP(A14,'All Meals'!$A$12:$S$62,9))=\"\",0,(VLOOKUP(A14,'All Meals'!$A$12:$S$62,9))))","v":null},{"$f":"IF(B14=0,\"\",IF((VLOOKUP(A14,'All Meals'!$A$12:$S$62,12))=\"\",0,(VLOOKUP(A14,'All Meals'!$A$12:$S$62,12))))","v":null},{"$f":"IF(B14=0,\"\",IF((VLOOKUP(A14,'All Meals'!$A$12:$S$62,15))=\"\",0,(VLOOKUP(A14,'All Meals'!$A$12:$S$62,15))))","v":null},{"$f":"IF(B14=0,\"\",IF((VLOOKUP(A14,'All Meals'!$A$12:$S$62,18))=\"\",0,(VLOOKUP(A14,'All Meals'!$A$12:$S$62,18))))","v":null},{"$f":"IF(B14=0,\"\",IF(E14=\"\",\"No\",IF(E14>=1,\"Yes\",\"No\")))","v":null},{"$f":"IF(B14=0,\"\",IF((VLOOKUP(A14,'All Meals'!$A$12:$S$62,4))=\"\",0,(VLOOKUP(A14,'All Meals'!$A$12:$S$62,4))))","v":null},{"$f":"IF(B14=0,\"\",IF((VLOOKUP(A14,'All Meals'!$A$12:$S$62,5))=\"\",0,(VLOOKUP(A14,'All Meals'!$A$12:$S$62,5))))","v":null},{"$f":"IF(B14=0,\"\",IF((VLOOKUP(A14,'All Meals'!$A$12:$S$62,6))=\"\",0,(VLOOKUP(A14,'All Meals'!$A$12:$S$62,6))))","v":null},{"$f":"IF(B14=0,\"\",IF(SUM(J14-L14)>=1,\"Yes\",\"No\"))","v":null},{"$f":"IF(B14=0,\"\",IF((VLOOKUP(A14,'All Meals'!$A$12:$S$62,19))=\"\",0,(VLOOKUP(A14,'All Meals'!$A$12:$S$62,19))))","v":null},{"$f":"IF(B14=0,\"\",IF(N14=\"\",\"No\",IF(N14>=1,\"Yes\",\"No\")))","v":null},null,null,null,null,1,{"$f":"INDEX(Cups,T14)","v":null}]
[1,{"$f":"INDEX(meals,A15)","v":null},9,null,{"$f":"IF(B15=0,\"\",IF((VLOOKUP(A15,'All Meals'!$A$12:$S$62,9))=\"\",0,(VLOOKUP(A15,'All Meals'!$A$12:$S$62,9))))","v":null},{"$f":"IF(B15=0,\"\",IF((VLOOKUP(A15,'All Meals'!$A$12:$S$62,12))=\"\",0,(VLOOKUP(A15,'All Meals'!$A$12:$S$62,12))))","v":null},{"$f":"IF(B15=0,\"\",IF((VLOOKUP(A15,'All Meals'!$A$12:$S$62,15))=\"\",0,(VLOOKUP(A15,'All Meals'!$A$12:$S$62,15))))","v":null},{"$f":"IF(B15=0,\"\",IF((VLOOKUP(A15,'All Meals'!$A$12:$S$62,18))=\"\",0,(VLOOKUP(A15,'All Meals'!$A$12:$S$62,18))))","v":null},{"$f":"IF(B15=0,\"\",IF(E15=\"\",\"No\",IF(E15>=1,\"Yes\",\"No\")))","v":null},{"$f":"IF(B15=0,\"\",IF((VLOOKUP(A15,'All Meals'!$A$12:$S$62,4))=\"\",0,(VLOOKUP(A15,'All Meals'!$A$12:$S$62,4))))","v":null},{"$f":"IF(B15=0,\"\",IF((VLOOKUP(A15,'All Meals'!$A$12:$S$62,5))=\"\",0,(VLOOKUP(A15,'All Meals'!$A$12:$S$62,5))))","v":null},{"$f":"IF(B15=0,\"\",IF((VLOOKUP(A15,'All Meals'!$A$12:$S$62,6))=\"\",0,(VLOOKUP(A15,'All Meals'!$A$12:$S$62,6))))","v":null},{"$f":"IF(B15=0,\"\",IF(SUM(J15-L15)>=1,\"Yes\",\"No\"))","v":null},{"$f":"IF(B15=0,\"\",IF((VLOOKUP(A15,'All Meals'!$A$12:$S$62,19))=\"\",0,(VLOOKUP(A15,'All Meals'!$A$12:$S$62,19))))","v":null},{"$f":"IF(B15=0,\"\",IF(N15=\"\",\"No\",IF(N15>=1,\"Yes\",\"No\")))","v":null},null,null,null,null,1,{"$f":"INDEX(Cups,T15)","v":null}]
[1,{"$f":"INDEX(meals,A16)","v":null},10,null,{"$f":"IF(B16=0,\"\",IF((VLOOKUP(A16,'All Meals'!$A$12:$S$62,9))=\"\",0,(VLOOKUP(A16,'All Meals'!$A$12:$S$62,9))))","v":null},{"$f":"IF(B16=0,\"\",IF((VLOOKUP(A16,'All Meals'!$A$12:$S$62,12))=\"\",0,(VLOOKUP(A16,'All Meals'!$A$12:$S$62,12))))","v":null},{"$f":"IF(B16=0,\"\",IF((VLOOKUP(A16,'All Meals'!$A$12:$S$62,15))=\"\",0,(VLOOKUP(A16,'All Meals'!$A$12:$S$62,15))))","v":null},{"$f":"IF(B16=0,\"\",IF((VLOOKUP(A16,'All Meals'!$A$12:$S$62,18))=\"\",0,(VLOOKUP(A16,'All Meals'!$A$12:$S$62,18))))","v":null},{"$f":"IF(B16=0,\"\",IF(E16=\"\",\"No\",IF(E16>=1,\"Yes\",\"No\")))","v":null},{"$f":"IF(B16=0,\"\",IF((VLOOKUP(A16,'All Meals'!$A$12:$S$62,4))=\"\",0,(VLOOKUP(A16,'All Meals'!$A$12:$S$62,4))))","v":null},{"$f":"IF(B16=0,\"\",IF((VLOOKUP(A16,'All Meals'!$A$12:$S$62,5))=\"\",0,(VLOOKUP(A16,'All Meals'!$A$12:$S$62,5))))","v":null},{"$f":"IF(B16=0,\"\",IF((VLOOKUP(A16,'All Meals'!$A$12:$S$62,6))=\"\",0,(VLOOKUP(A16,'All Meals'!$A$12:$S$62,6))))","v":null},{"$f":"IF(B16=0,\"\",IF(SUM(J16-L16)>=1,\"Yes\",\"No\"))","v":null},{"$f":"IF(B16=0,\"\",IF((VLOOKUP(A16,'All Meals'!$A$12:$S$62,19))=\"\",0,(VLOOKUP(A16,'All Meals'!$A$12:$S$62,19))))","v":null},{"$f":"IF(B16=0,\"\",IF(N16=\"\",\"No\",IF(N16>=1,\"Yes\",\"No\")))","v":null},null,null,null,null,1,{"$f":"INDEX(Cups,T16)","v":null}]
[1,{"$f":"INDEX(meals,A17)","v":null},11,null,{"$f":"IF(B17=0,\"\",IF((VLOOKUP(A17,'All Meals'!$A$12:$S$62,9))=\"\",0,(VLOOKUP(A17,'All Meals'!$A$12:$S$62,9))))","v":null},{"$f":"IF(B17=0,\"\",IF((VLOOKUP(A17,'All Meals'!$A$12:$S$62,12))=\"\",0,(VLOOKUP(A17,'All Meals'!$A$12:$S$62,12))))","v":null},{"$f":"IF(B17=0,\"\",IF((VLOOKUP(A17,'All Meals'!$A$12:$S$62,15))=\"\",0,(VLOOKUP(A17,'All Meals'!$A$12:$S$62,15))))","v":null},{"$f":"IF(B17=0,\"\",IF((VLOOKUP(A17,'All Meals'!$A$12:$S$62,18))=\"\",0,(VLOOKUP(A17,'All Meals'!$A$12:$S$62,18))))","v":null},{"$f":"IF(B17=0,\"\",IF(E17=\"\",\"No\",IF(E17>=1,\"Yes\",\"No\")))","v":null},{"$f":"IF(B17=0,\"\",IF((VLOOKUP(A17,'All Meals'!$A$12:$S$62,4))=\"\",0,(VLOOKUP(A17,'All Meals'!$A$12:$S$62,4))))","v":null},{"$f":"IF(B17=0,\"\",IF((VLOOKUP(A17,'All Meals'!$A$12:$S$62,5))=\"\",0,(VLOOKUP(A17,'All Meals'!$A$12:$S$62,5))))","v":null},{"$f":"IF(B17=0,\"\",IF((VLOOKUP(A17,'All Meals'!$A$12:$S$62,6))=\"\",0,(VLOOKUP(A17,'All Meals'!$A$12:$S$62,6))))","v":null},{"$f":"IF(B17=0,\"\",IF(SUM(J17-L17)>=1,\"Yes\",\"No\"))","v":null},{"$f":"IF(B17=0,\"\",IF((VLOOKUP(A17,'All Meals'!$A$12:$S$62,19))=\"\",0,(VLOOKUP(A17,'All Meals'!$A$12:$S$62,19))))","v":null},{"$f":"IF(B17=0,\"\",IF(N17=\"\",\"No\",IF(N17>=1,\"Yes\",\"No\")))","v":null},null,null,null,null,1,{"$f":"INDEX(Cups,T17)","v":null}]
[1,{"$f":"INDEX(meals,A18)","v":null},12,null,{"$f":"IF(B18=0,\"\",IF((VLOOKUP(A18,'All Meals'!$A$12:$S$62,9))=\"\",0,(VLOOKUP(A18,'All Meals'!$A$12:$S$62,9))))","v":null},{"$f":"IF(B18=0,\"\",IF((VLOOKUP(A18,'All Meals'!$A$12:$S$62,12))=\"\",0,(VLOOKUP(A18,'All Meals'!$A$12:$S$62,12))))","v":null},{"$f":"IF(B18=0,\"\",IF((VLOOKUP(A18,'All Meals'!$A$12:$S$62,15))=\"\",0,(VLOOKUP(A18,'All Meals'!$A$12:$S$62,15))))","v":null},{"$f":"IF(B18=0,\"\",IF((VLOOKUP(A18,'All Meals'!$A$12:$S$62,18))=\"\",0,(VLOOKUP(A18,'All Meals'!$A$12:$S$62,18))))","v":null},{"$f":"IF(B18=0,\"\",IF(E18=\"\",\"No\",IF(E18>=1,\"Yes\",\"No\")))","v":null},{"$f":"IF(B18=0,\"\",IF((VLOOKUP(A18,'All Meals'!$A$12:$S$62,4))=\"\",0,(VLOOKUP(A18,'All Meals'!$A$12:$S$62,4))))","v":null},{"$f":"IF(B18=0,\"\",IF((VLOOKUP(A18,'All Meals'!$A$12:$S$62,5))=\"\",0,(VLOOKUP(A18,'All Meals'!$A$12:$S$62,5))))","v":null},{"$f":"IF(B18=0,\"\",IF((VLOOKUP(A18,'All Meals'!$A$12:$S$62,6))=\"\",0,(VLOOKUP(A18,'All Meals'!$A$12:$S$62,6))))","v":null},{"$f":"IF(B18=0,\"\",IF(SUM(J18-L18)>=1,\"Yes\",\"No\"))","v":null},{"$f":"IF(B18=0,\"\",IF((VLOOKUP(A18,'All Meals'!$A$12:$S$62,19))=\"\",0,(VLOOKUP(A18,'All Meals'!$A$12:$S$62,19))))","v":null},{"$f":"IF(B18=0,\"\",IF(N18=\"\",\"No\",IF(N18>=1,\"Yes\",\"No\")))","v":null},null,null,null,null,null,null,{"$f":"SUM(U13:U17)","v":null}]
[1,{"$f":"INDEX(meals,A19)","v":null},13,null,{"$f":"IF(B19=0,\"\",IF((VLOOKUP(A19,'All Meals'!$A$12:$S$62,9))=\"\",0,(VLOOKUP(A19,'All Meals'!$A$12:$S$62,9))))","v":null},{"$f":"IF(B19=0,\"\",IF((VLOOKUP(A19,'All Meals'!$A$12:$S$62,12))=\"\",0,(VLOOKUP(A19,'All Meals'!$A$12:$S$62,12))))","v":null},{"$f":"IF(B19=0,\"\",IF((VLOOKUP(A19,'All Meals'!$A$12:$S$62,15))=\"\",0,(VLOOKUP(A19,'All Meals'!$A$12:$S$62,15))))","v":null},{"$f":"IF(B19=0,\"\",IF((VLOOKUP(A19,'All Meals'!$A$12:$S$62,18))=\"\",0,(VLOOKUP(A19,'All Meals'!$A$12:$S$62,18))))","v":null},{"$f":"IF(B19=0,\"\",IF(E19=\"\",\"No\",IF(E19>=1,\"Yes\",\"No\")))","v":null},{"$f":"IF(B19=0,\"\",IF((VLOOKUP(A19,'All Meals'!$A$12:$S$62,4))=\"\",0,(VLOOKUP(A19,'All Meals'!$A$12:$S$62,4))))","v":null},{"$f":"IF(B19=0,\"\",IF((VLOOKUP(A19,'All Meals'!$A$12:$S$62,5))=\"\",0,(VLOOKUP(A19,'All Meals'!$A$12:$S$62,5))))","v":null},{"$f":"IF(B19=0,\"\",IF((VLOOKUP(A19,'All Meals'!$A$12:$S$62,6))=\"\",0,(VLOOKUP(A19,'All Meals'!$A$12:$S$62,6))))","v":null},{"$f":"IF(B19=0,\"\",IF(SUM(J19-L19)>=1,\"Yes\",\"No\"))","v":null},{"$f":"IF(B19=0,\"\",IF((VLOOKUP(A19,'All Meals'!$A$12:$S$62,19))=\"\",0,(VLOOKUP(A19,'All Meals'!$A$12:$S$62,19))))","v":null},{"$f":"IF(B19=0,\"\",IF(N19=\"\",\"No\",IF(N19>=1,\"Yes\",\"No\")))","v":null},null,"Decimal/Fraction Converter\n(Rounded down to the nearest 1/8)"]
[1,{"$f":"INDEX(meals,A20)","v":null},14,null,{"$f":"IF(B20=0,\"\",IF((VLOOKUP(A20,'All Meals'!$A$12:$S$62,9))=\"\",0,(VLOOKUP(A20,'All Meals'!$A$12:$S$62,9))))","v":null},{"$f":"IF(B20=0,\"\",IF((VLOOKUP(A20,'All Meals'!$A$12:$S$62,12))=\"\",0,(VLOOKUP(A20,'All Meals'!$A$12:$S$62,12))))","v":null},{"$f":"IF(B20=0,\"\",IF((VLOOKUP(A20,'All Meals'!$A$12:$S$62,15))=\"\",0,(VLOOKUP(A20,'All Meals'!$A$12:$S$62,15))))","v":null},{"$f":"IF(B20=0,\"\",IF((VLOOKUP(A20,'All Meals'!$A$12:$S$62,18))=\"\",0,(VLOOKUP(A20,'All Meals'!$A$12:$S$62,18))))","v":null},{"$f":"IF(B20=0,\"\",IF(E20=\"\",\"No\",IF(E20>=1,\"Yes\",\"No\")))","v":null},{"$f":"IF(B20=0,\"\",IF((VLOOKUP(A20,'All Meals'!$A$12:$S$62,4))=\"\",0,(VLOOKUP(A20,'All Meals'!$A$12:$S$62,4))))","v":null},{"$f":"IF(B20=0,\"\",IF((VLOOKUP(A20,'All Meals'!$A$12:$S$62,5))=\"\",0,(VLOOKUP(A20,'All Meals'!$A$12:$S$62,5))))","v":null},{"$f":"IF(B20=0,\"\",IF((VLOOKUP(A20,'All Meals'!$A$12:$S$62,6))=\"\",0,(VLOOKUP(A20,'All Meals'!$A$12:$S$62,6))))","v":null},{"$f":"IF(B20=0,\"\",IF(SUM(J20-L20)>=1,\"Yes\",\"No\"))","v":null},{"$f":"IF(B20=0,\"\",IF((VLOOKUP(A20,'All Meals'!$A$12:$S$62,19))=\"\",0,(VLOOKUP(A20,'All Meals'!$A$12:$S$62,19))))","v":null},{"$f":"IF(B20=0,\"\",IF(N20=\"\",\"No\",IF(N20>=1,\"Yes\",\"No\")))","v":null},null,"Enter the decimal you wish to convert to a fraction in the box:"]
[1,{"$f":"INDEX(meals,A21)","v":null},15,null,{"$f":"IF(B21=0,\"\",IF((VLOOKUP(A21,'All Meals'!$A$12:$S$62,9))=\"\",0,(VLOOKUP(A21,'All Meals'!$A$12:$S$62,9))))","v":null},{"$f":"IF(B21=0,\"\",IF((VLOOKUP(A21,'All Meals'!$A$12:$S$62,12))=\"\",0,(VLOOKUP(A21,'All Meals'!$A$12:$S$62,12))))","v":null},{"$f":"IF(B21=0,\"\",IF((VLOOKUP(A21,'All Meals'!$A$12:$S$62,15))=\"\",0,(VLOOKUP(A21,'All Meals'!$A$12:$S$62,15))))","v":null},{"$f":"IF(B21=0,\"\",IF((VLOOKUP(A21,'All Meals'!$A$12:$S$62,18))=\"\",0,(VLOOKUP(A21,'All Meals'!$A$12:$S$62,18))))","v":null},{"$f":"IF(B21=0,\"\",IF(E21=\"\",\"No\",IF(E21>=1,\"Yes\",\"No\")))","v":null},{"$f":"IF(B21=0,\"\",IF((VLOOKUP(A21,'All Meals'!$A$12:$S$62,4))=\"\",0,(VLOOKUP(A21,'All Meals'!$A$12:$S$62,4))))","v":null},{"$f":"IF(B21=0,\"\",IF((VLOOKUP(A21,'All Meals'!$A$12:$S$62,5))=\"\",0,(VLOOKUP(A21,'All Meals'!$A$12:$S$62,5))))","v":null},{"$f":"IF(B21=0,\"\",IF((VLOOKUP(A21,'All Meals'!$A$12:$S$62,6))=\"\",0,(VLOOKUP(A21,'All Meals'!$A$12:$S$62,6))))","v":null},{"$f":"IF(B21=0,\"\",IF(SUM(J21-L21)>=1,\"Yes\",\"No\"))","v":null},{"$f":"IF(B21=0,\"\",IF((VLOOKUP(A21,'All Meals'!$A$12:$S$62,19))=\"\",0,(VLOOKUP(A21,'All Meals'!$A$12:$S$62,19))))","v":null},{"$f":"IF(B21=0,\"\",IF(N21=\"\",\"No\",IF(N21>=1,\"Yes\",\"No\")))","v":null}]
[1,{"$f":"INDEX(meals,A22)","v":null},16,null,{"$f":"IF(B22=0,\"\",IF((VLOOKUP(A22,'All Meals'!$A$12:$S$62,9))=\"\",0,(VLOOKUP(A22,'All Meals'!$A$12:$S$62,9))))","v":null},{"$f":"IF(B22=0,\"\",IF((VLOOKUP(A22,'All Meals'!$A$12:$S$62,12))=\"\",0,(VLOOKUP(A22,'All Meals'!$A$12:$S$62,12))))","v":null},{"$f":"IF(B22=0,\"\",IF((VLOOKUP(A22,'All Meals'!$A$12:$S$62,15))=\"\",0,(VLOOKUP(A22,'All Meals'!$A$12:$S$62,15))))","v":null},{"$f":"IF(B22=0,\"\",IF((VLOOKUP(A22,'All Meals'!$A$12:$S$62,18))=\"\",0,(VLOOKUP(A22,'All Meals'!$A$12:$S$62,18))))","v":null},{"$f":"IF(B22=0,\"\",IF(E22=\"\",\"No\",IF(E22>=1,\"Yes\",\"No\")))","v":null},{"$f":"IF(B22=0,\"\",IF((VLOOKUP(A22,'All Meals'!$A$12:$S$62,4))=\"\",0,(VLOOKUP(A22,'All Meals'!$A$12:$S$62,4))))","v":null},{"$f":"IF(B22=0,\"\",IF((VLOOKUP(A22,'All Meals'!$A$12:$S$62,5))=\"\",0,(VLOOKUP(A22,'All Meals'!$A$12:$S$62,5))))","v":null},{"$f":"IF(B22=0,\"\",IF((VLOOKUP(A22,'All Meals'!$A$12:$S$62,6))=\"\",0,(VLOOKUP(A22,'All Meals'!$A$12:$S$62,6))))","v":null},{"$f":"IF(B22=0,\"\",IF(SUM(J22-L22)>=1,\"Yes\",\"No\"))","v":null},{"$f":"IF(B22=0,\"\",IF((VLOOKUP(A22,'All Meals'!$A$12:$S$62,19))=\"\",0,(VLOOKUP(A22,'All Meals'!$A$12:$S$62,19))))","v":null},{"$f":"IF(B22=0,\"\",IF(N22=\"\",\"No\",IF(N22>=1,\"Yes\",\"No\")))","v":null},null,"The decimal entered above has been converted to the following fraction:",null,null,null,null,{"$f":"FLOOR(V20,0.125)","v":null}]
[1,{"$f":"INDEX(meals,A23)","v":null},17,null,{"$f":"IF(B23=0,\"\",IF((VLOOKUP(A23,'All Meals'!$A$12:$S$62,9))=\"\",0,(VLOOKUP(A23,'All Meals'!$A$12:$S$62,9))))","v":null},{"$f":"IF(B23=0,\"\",IF((VLOOKUP(A23,'All Meals'!$A$12:$S$62,12))=\"\",0,(VLOOKUP(A23,'All Meals'!$A$12:$S$62,12))))","v":null},{"$f":"IF(B23=0,\"\",IF((VLOOKUP(A23,'All Meals'!$A$12:$S$62,15))=\"\",0,(VLOOKUP(A23,'All Meals'!$A$12:$S$62,15))))","v":null},{"$f":"IF(B23=0,\"\",IF((VLOOKUP(A23,'All Meals'!$A$12:$S$62,18))=\"\",0,(VLOOKUP(A23,'All Meals'!$A$12:$S$62,18))))","v":null},{"$f":"IF(B23=0,\"\",IF(E23=\"\",\"No\",IF(E23>=1,\"Yes\",\"No\")))","v":null},{"$f":"IF(B23=0,\"\",IF((VLOOKUP(A23,'All Meals'!$A$12:$S$62,4))=\"\",0,(VLOOKUP(A23,'All Meals'!$A$12:$S$62,4))))","v":null},{"$f":"IF(B23=0,\"\",IF((VLOOKUP(A23,'All Meals'!$A$12:$S$62,5))=\"\",0,(VLOOKUP(A23,'All Meals'!$A$12:$S$62,5))))","v":null},{"$f":"IF(B23=0,\"\",IF((VLOOKUP(A23,'All Meals'!$A$12:$S$62,6))=\"\",0,(VLOOKUP(A23,'All Meals'!$A$12:$S$62,6))))","v":null},{"$f":"IF(B23=0,\"\",IF(SUM(J23-L23)>=1,\"Yes\",\"No\"))","v":null},{"$f":"IF(B23=0,\"\",IF((VLOOKUP(A23,'All Meals'!$A$12:$S$62,19))=\"\",0,(VLOOKUP(A23,'All Meals'!$A$12:$S$62,19))))","v":null},{"$f":"IF(B23=0,\"\",IF(N23=\"\",\"No\",IF(N23>=1,\"Yes\",\"No\")))","v":null}]
[1,{"$f":"INDEX(meals,A24)","v":null},18,null,{"$f":"IF(B24=0,\"\",IF((VLOOKUP(A24,'All Meals'!$A$12:$S$62,9))=\"\",0,(VLOOKUP(A24,'All Meals'!$A$12:$S$62,9))))","v":null},{"$f":"IF(B24=0,\"\",IF((VLOOKUP(A24,'All Meals'!$A$12:$S$62,12))=\"\",0,(VLOOKUP(A24,'All Meals'!$A$12:$S$62,12))))","v":null},{"$f":"IF(B24=0,\"\",IF((VLOOKUP(A24,'All Meals'!$A$12:$S$62,15))=\"\",0,(VLOOKUP(A24,'All Meals'!$A$12:$S$62,15))))","v":null},{"$f":"IF(B24=0,\"\",IF((VLOOKUP(A24,'All Meals'!$A$12:$S$62,18))=\"\",0,(VLOOKUP(A24,'All Meals'!$A$12:$S$62,18))))","v":null},{"$f":"IF(B24=0,\"\",IF(E24=\"\",\"No\",IF(E24>=1,\"Yes\",\"No\")))","v":null},{"$f":"IF(B24=0,\"\",IF((VLOOKUP(A24,'All Meals'!$A$12:$S$62,4))=\"\",0,(VLOOKUP(A24,'All Meals'!$A$12:$S$62,4))))","v":null},{"$f":"IF(B24=0,\"\",IF((VLOOKUP(A24,'All Meals'!$A$12:$S$62,5))=\"\",0,(VLOOKUP(A24,'All Meals'!$A$12:$S$62,5))))","v":null},{"$f":"IF(B24=0,\"\",IF((VLOOKUP(A24,'All Meals'!$A$12:$S$62,6))=\"\",0,(VLOOKUP(A24,'All Meals'!$A$12:$S$62,6))))","v":null},{"$f":"IF(B24=0,\"\",IF(SUM(J24-L24)>=1,\"Yes\",\"No\"))","v":null},{"$f":"IF(B24=0,\"\",IF((VLOOKUP(A24,'All Meals'!$A$12:$S$62,19))=\"\",0,(VLOOKUP(A24,'All Meals'!$A$12:$S$62,19))))","v":null},{"$f":"IF(B24=0,\"\",IF(N24=\"\",\"No\",IF(N24>=1,\"Yes\",\"No\")))","v":null}]
[1,{"$f":"INDEX(meals,A25)","v":null},19,null,{"$f":"IF(B25=0,\"\",IF((VLOOKUP(A25,'All Meals'!$A$12:$S$62,9))=\"\",0,(VLOOKUP(A25,'All Meals'!$A$12:$S$62,9))))","v":null},{"$f":"IF(B25=0,\"\",IF((VLOOKUP(A25,'All Meals'!$A$12:$S$62,12))=\"\",0,(VLOOKUP(A25,'All Meals'!$A$12:$S$62,12))))","v":null},{"$f":"IF(B25=0,\"\",IF((VLOOKUP(A25,'All Meals'!$A$12:$S$62,15))=\"\",0,(VLOOKUP(A25,'All Meals'!$A$12:$S$62,15))))","v":null},{"$f":"IF(B25=0,\"\",IF((VLOOKUP(A25,'All Meals'!$A$12:$S$62,18))=\"\",0,(VLOOKUP(A25,'All Meals'!$A$12:$S$62,18))))","v":null},{"$f":"IF(B25=0,\"\",IF(E25=\"\",\"No\",IF(E25>=1,\"Yes\",\"No\")))","v":null},{"$f":"IF(B25=0,\"\",IF((VLOOKUP(A25,'All Meals'!$A$12:$S$62,4))=\"\",0,(VLOOKUP(A25,'All Meals'!$A$12:$S$62,4))))","v":null},{"$f":"IF(B25=0,\"\",IF((VLOOKUP(A25,'All Meals'!$A$12:$S$62,5))=\"\",0,(VLOOKUP(A25,'All Meals'!$A$12:$S$62,5))))","v":null},{"$f":"IF(B25=0,\"\",IF((VLOOKUP(A25,'All Meals'!$A$12:$S$62,6))=\"\",0,(VLOOKUP(A25,'All Meals'!$A$12:$S$62,6))))","v":null},{"$f":"IF(B25=0,\"\",IF(SUM(J25-L25)>=1,\"Yes\",\"No\"))","v":null},{"$f":"IF(B25=0,\"\",IF((VLOOKUP(A25,'All Meals'!$A$12:$S$62,19))=\"\",0,(VLOOKUP(A25,'All Meals'!$A$12:$S$62,19))))","v":null},{"$f":"IF(B25=0,\"\",IF(N25=\"\",\"No\",IF(N25>=1,\"Yes\",\"No\")))","v":null}]
[1,{"$f":"INDEX(meals,A26)","v":null},20,null,{"$f":"IF(B26=0,\"\",IF((VLOOKUP(A26,'All Meals'!$A$12:$S$62,9))=\"\",0,(VLOOKUP(A26,'All Meals'!$A$12:$S$62,9))))","v":null},{"$f":"IF(B26=0,\"\",IF((VLOOKUP(A26,'All Meals'!$A$12:$S$62,12))=\"\",0,(VLOOKUP(A26,'All Meals'!$A$12:$S$62,12))))","v":null},{"$f":"IF(B26=0,\"\",IF((VLOOKUP(A26,'All Meals'!$A$12:$S$62,15))=\"\",0,(VLOOKUP(A26,'All Meals'!$A$12:$S$62,15))))","v":null},{"$f":"IF(B26=0,\"\",IF((VLOOKUP(A26,'All Meals'!$A$12:$S$62,18))=\"\",0,(VLOOKUP(A26,'All Meals'!$A$12:$S$62,18))))","v":null},{"$f":"IF(B26=0,\"\",IF(E26=\"\",\"No\",IF(E26>=1,\"Yes\",\"No\")))","v":null},{"$f":"IF(B26=0,\"\",IF((VLOOKUP(A26,'All Meals'!$A$12:$S$62,4))=\"\",0,(VLOOKUP(A26,'All Meals'!$A$12:$S$62,4))))","v":null},{"$f":"IF(B26=0,\"\",IF((VLOOKUP(A26,'All Meals'!$A$12:$S$62,5))=\"\",0,(VLOOKUP(A26,'All Meals'!$A$12:$S$62,5))))","v":null},{"$f":"IF(B26=0,\"\",IF((VLOOKUP(A26,'All Meals'!$A$12:$S$62,6))=\"\",0,(VLOOKUP(A26,'All Meals'!$A$12:$S$62,6))))","v":null},{"$f":"IF(B26=0,\"\",IF(SUM(J26-L26)>=1,\"Yes\",\"No\"))","v":null},{"$f":"IF(B26=0,\"\",IF((VLOOKUP(A26,'All Meals'!$A$12:$S$62,19))=\"\",0,(VLOOKUP(A26,'All Meals'!$A$12:$S$62,19))))","v":null},{"$f":"IF(B26=0,\"\",IF(N26=\"\",\"No\",IF(N26>=1,\"Yes\",\"No\")))","v":null}]
[null,null,null,null,null,{"$f":"IF(B27=0,\"\",IF((VLOOKUP(A27,'All Meals'!$A$12:$S$62,12))=\"\",0,(VLOOKUP(A27,'All Meals'!$A$12:$S$62,12))))","v":null},null,null,null,{"$f":"SUM(J7:J26)","v":null},{"$f":"SUM(K7:K26)","v":null},{"$f":"SUM(L7:L26)","v":null}]
[null,null,null,null,null,{"$f":"IF(B28=0,\"\",IF((VLOOKUP(A28,'All Meals'!$A$12:$S$62,12))=\"\",0,(VLOOKUP(A28,'All Meals'!$A$12:$S$62,12))))","v":null},null,null,null,null,null,{"$f":"(J27-L27)","v":null}]

{"sheet":"Wednesday","index":6,"n_rows":28,"n_cols":23,"rows_kept":28,"cut":false,"hidden":false,"merged":[[21,16,22,18],[12,16,17,18],[13,21,13,22],[17,21,17,22],[19,16,20,18],[18,16,18,22],[19,21,20,22],[8,15,8,18],[10,16,11,22],[12,21,12,22],[7,15,7,18],[3,4,3,8],[4,8,5,8],[0,2,0,14],[21,21,22,22],[4,22,6,22],[14,21,14,22],[15,21,15,22],[16,21,16,22],[4,9,5,9],[6,15,6,18],[0,17,0,19],[1,17,1,19],[4,6,5,6],[4,5,5,5],[4,7,5,7],[5,15,5,18],[4,15,4,18],[4,11,5,11],[4,14,5,14],[1,2,1,14],[4,2,5,3],[3,13,3,14],[4,13,5,13],[2,2,2,22],[3,12,5,12],[3,2,3,3],[4,4,5,4],[3,15,3,22],[3,9,3,11],[4,10,5,10]]}
[null,null,"Wednesday Daily Breakfast Requirement Check\nGrades K-8",null,null,null,null,null,null,null,null,null,null,null,null,null,null,"Go to Weekly Report","'Weekly Report'!A1","'Weekly Report'!A1"]
[null,null,"The daily worksheet will perform daily requirement checks for the reimbursable meals offered each day. Requirements met are flagged \"Yes\" and the cell turns green. Requirements NOT met are flagged \"No\" and the cell turns red.  \nNOTE: The top row is frozen to display the column headers as the daily meals are entered.\nGrains and meat/meat alternates are rounded down to the nearest quarter ounce.\nOnce you are finished selecting the meals offered each day, make sure to scroll to the right to enter milk type information.",null,null,null,null,null,null,null,null,null,null,null,null,null,null,"Go to Instructions","'Breakfast Worksheet Instruction'!A1","'Breakfast Worksheet Instruction'!A1"]
["K-5 Menu #:\n",null,"Wednesday"]
[null,null,"Select the reimbursable breakfasts offered on Wednesday",null,"Fruit/Vegetable/100% Juice\n(cups)",null,null,null,null,"Grains or Meat/Meat Alternates Counting as Grains\n(ounce equivalents)",null,null,"Daily Breakfast Requirement Check\n1 oz equivalents","Milk\n(cups)",null,"Milk Type\nCheck the type of milk below if it is offered to students on Wednesday.\nAll types of milk included."]
[null,null,"Meal Name\nNote: You may not delete lines, if you want to clear a meal select the first blank in the drop down list",null,"Total fruit/vegetable/juice cups\n(cups)","Cups of fruit/vegetable juice","Cups of non-starchy vegetables","Cups of starchy vegetables","Daily Fruit Requirement Check\n 1 cup","Number of oz eq of GRAINS (Actual Grains + Meat/Meat Alternate counting toward Grains)","Number of oz eq of Whole Grain-Rich GRAINS","Number of oz eq of Meats/Meat Alternates",null,"Milk (cups)","Daily Milk Requirement Check\n1 cup","Skim/fat-free, unflavored",null,null,null,null,true,null,{"$f":"IF(AND(U5=FALSE,U6=FALSE,U7=FALSE),\"\",IF(AND(U5=TRUE,U6=TRUE),\"Yes\",IF(AND(U5=TRUE,U7=TRUE),\"Yes\",IF(AND(U6=TRUE,U7=TRUE),\"Yes\",\"No\"))))","v":null}]
[null,null,null,null,null,null,null,null,null,null,null,null,null,null,null,"Skim/fat-free, flavored",null,null,null,null,true]
[6,{"$f":"INDEX(meals,A7)","v":null},1,null,{"$f":"IF(B7=0,\"\",IF((VLOOKUP(A7,'All Meals'!$A$12:$S$62,9))=\"\",0,(VLOOKUP(A7,'All Meals'!$A$12:$S$62,9))))","v":null},{"$f":"IF(B7=0,\"\",IF((VLOOKUP(A7,'All Meals'!$A$12:$S$62,12))=\"\",0,(VLOOKUP(A7,'All Meals'!$A$12:$S$62,12))))","v":null},{"$f":"IF(B7=0,\"\",IF((VLOOKUP(A7,'All Meals'!$A$12:$S$62,15))=\"\",0,(VLOOKUP(A7,'All Meals'!$A$12:$S$62,15))))","v":null},{"$f":"IF(B7=0,\"\",IF((VLOOKUP(A7,'All Meals'!$A$12:$S$62,18))=\"\",0,(VLOOKUP(A7,'All Meals'!$A$12:$S$62,18))))","v":null},{"$f":"IF(B7=0,\"\",IF(E7=\"\",\"No\",IF(E7>=1,\"Yes\",\"No\")))","v":null},{"$f":"IF(B7=0,\"\",IF((VLOOKUP(A7,'All Meals'!$A$12:$S$62,4))=\"\",0,(VLOOKUP(A7,'All Meals'!$A$12:$S$62,4))))","v":null},{"$f":"IF(B7=0,\"\",IF((VLOOKUP(A7,'All Meals'!$A$12:$S$62,5))=\"\",0,(VLOOKUP(A7,'All Meals'!$A$12:$S$62,5))))","v":null},{"$f":"IF(B7=0,\"\",IF((VLOOKUP(A7,'All Meals'!$A$12:$S$62,6))=\"\",0,(VLOOKUP(A7,'All Meals'!$A$12:$S$62,6))))","v":null},{"$f":"IF(B7=0,\"\",IF(SUM(J7-L7)>=1,\"Yes\",\"No\"))","v":null},{"$f":"IF(B7=0,\"\",IF((VLOOKUP(A7,'All Meals'!$A$12:$S$62,19))=\"\",0,(VLOOKUP(A7,'All Meals'!$A$12:$S$62,19))))","v":null},{"$f":"IF(B7=0,\"\",IF(N7=\"\",\"No\",IF(N7>=1,\"Yes\",\"No\")))","v":null},"Low-fat (1% or less), unflavored",null,null,null,null,true]
[1,{"$f":"INDEX(meals,A8)","v":null},2,null,{"$f":"IF(B8=0,\"\",IF((VLOOKUP(A8,'All Meals'!$A$12:$S$62,9))=\"\",0,(VLOOKUP(A8,'All Meals'!$A$12:$S$62,9))))","v":null},{"$f":"IF(B8=0,\"\",IF((VLOOKUP(A8,'All Meals'!$A$12:$S$62,12))=\"\",0,(VLOOKUP(A8,'All Meals'!$A$12:$S$62,12))))","v":null},{"$f":"IF(B8=0,\"\",IF((VLOOKUP(A8,'All Meals'!$A$12:$S$62,15))=\"\",0,(VLOOKUP(A8,'All Meals'!$A$12:$S$62,15))))","v":null},{"$f":"IF(B8=0,\"\",IF((VLOOKUP(A8,'All Meals'!$A$12:$S$62,18))=\"\",0,(VLOOKUP(A8,'All Meals'!$A$12:$S$62,18))))","v":null},{"$f":"IF(B8=0,\"\",IF(E8=\"\",\"No\",IF(E8>=1,\"Yes\",\"No\")))","v":null},{"$f":"IF(B8=0,\"\",IF((VLOOKUP(A8,'All Meals'!$A$12:$S$62,4))=\"\",0,(VLOOKUP(A8,'All Meals'!$A$12:$S$62,4))))","v":null},{"$f":"IF(B8=0,\"\",IF((VLOOKUP(A8,'All Meals'!$A$12:$S$62,5))=\"\",0,(VLOOKUP(A8,'All Meals'!$A$12:$S$62,5))))","v":null},{"$f":"IF(B8=0,\"\",IF((VLOOKUP(A8,'All Meals'!$A$12:$S$62,6))=\"\",0,(VLOOKUP(A8,'All Meals'!$A$12:$S$62,6))))","v":null},{"$f":"IF(B8=0,\"\",IF(SUM(J8-L8)>=1,\"Yes\",\"No\"))","v":null},{"$f":"IF(B8=0,\"\",IF((VLOOKUP(A8,'All Meals'!$A$12:$S$62,19))=\"\",0,(VLOOKUP(A8,'All Meals'!$A$12:$S$62,19))))","v":null},{"$f":"IF(B8=0,\"\",IF(N8=\"\",\"No\",IF(N8>=1,\"Yes\",\"No\")))","v":null},"Low-fat (1% or less), flavored",null,null,null,null,false,null,{"$f":"IF(U8=TRUE,\"No\",\"\")","v":null}]
[1,{"$f":"INDEX(meals,A9)","v":null},3,null,{"$f":"IF(B9=0,\"\",IF((VLOOKUP(A9,'All Meals'!$A$12:$S$62,9))=\"\",0,(VLOOKUP(A9,'All Meals'!$A$12:$S$62,9))))","v":null},{"$f":"IF(B9=0,\"\",IF((VLOOKUP(A9,'All Meals'!$A$12:$S$62,12))=\"\",0,(VLOOKUP(A9,'All Meals'!$A$12:$S$62,12))))","v":null},{"$f":"IF(B9=0,\"\",IF((VLOOKUP(A9,'All Meals'!$A$12:$S$62,15))=\"\",0,(VLOOKUP(A9,'All Meals'!$A$12:$S$62,15))))","v":null},{"$f":"IF(B9=0,\"\",IF((VLOOKUP(A9,'All Meals'!$A$12:$S$62,18))=\"\",0,(VLOOKUP(A9,'All Meals'!$A$12:$S$62,18))))","v":null},{"$f":"IF(B9=0,\"\",IF(E9=\"\",\"No\",IF(E9>=1,\"Yes\",\"No\")))","v":null},{"$f":"IF(B9=0,\"\",IF((VLOOKUP(A9,'All Meals'!$A$12:$S$62,4))=\"\",0,(VLOOKUP(A9,'All Meals'!$A$12:$S$62,4))))","v":null},{"$f":"IF(B9=0,\"\",IF((VLOOKUP(A9,'All Meals'!$A$12:$S$62,5))=\"\",0,(VLOOKUP(A9,'All Meals'!$A$12:$S$62,5))))","v":null},{"$f":"IF(B9=0,\"\",IF((VLOOKUP(A9,'All Meals'!$A$12:$S$62,6))=\"\",0,(VLOOKUP(A9,'All Meals'!$A$12:$S$62,6))))","v":null},{"$f":"IF(B9=0,\"\",IF(SUM(J9-L9)>=1,\"Yes\",\"No\"))","v":null},{"$f":"IF(B9=0,\"\",IF((VLOOKUP(A9,'All Meals'!$A$12:$S$62,19))=\"\",0,(VLOOKUP(A9,'All Meals'!$A$12:$S$62,19))))","v":null},{"$f":"IF(B9=0,\"\",IF(N9=\"\",\"No\",IF(N9>=1,\"Yes\",\"No\")))","v":null},"Reduced fat (2% fat) or whole, unflavored and flavored",null,null,null,null,false,null,{"$f":"IF(U9=TRUE,\"No\",\"\")","v":null}]
[1,{"$f":"INDEX(meals,A10)","v":null},4,null,{"$f":"IF(B10=0,\"\",IF((VLOOKUP(A10,'All Meals'!$A$12:$S$62,9))=\"\",0,(VLOOKUP(A10,'All Meals'!$A$12:$S$62,9))))","v":null},{"$f":"IF(B10=0,\"\",IF((VLOOKUP(A10,'All Meals'!$A$12:$S$62,12))=\"\",0,(VLOOKUP(A10,'All Meals'!$A$12:$S$62,12))))","v":null},{"$f":"IF(B10=0,\"\",IF((VLOOKUP(A10,'All Meals'!$A$12:$S$62,15))=\"\",0,(VLOOKUP(A10,'All Meals'!$A$12:$S$62,15))))","v":null},{"$f":"IF(B10=0,\"\",IF((VLOOKUP(A10,'All Meals'!$A$12:$S$62,18))=\"\",0,(VLOOKUP(A10,'All Meals'!$A$12:$S$62,18))))","v":null},{"$f":"IF(B10=0,\"\",IF(E10=\"\",\"No\",IF(E10>=1,\"Yes\",\"No\")))","v":null},{"$f":"IF(B10=0,\"\",IF((VLOOKUP(A10,'All Meals'!$A$12:$S$62,4))=\"\",0,(VLOOKUP(A10,'All Meals'!$A$12:$S$62,4))))","v":null},{"$f":"IF(B10=0,\"\",IF((VLOOKUP(A10,'All Meals'!$A$12:$S$62,5))=\"\",0,(VLOOKUP(A10,'All Meals'!$A$12:$S$62,5))))","v":null},{"$f":"IF(B10=0,\"\",IF((VLOOKUP(A10,'All Meals'!$A$12:$S$62,6))=\"\",0,(VLOOKUP(A10,'All Meals'!$A$12:$S$62,6))))","v":null},{"$f":"IF(B10=0,\"\",IF(SUM(J10-L10)>=1,\"Yes\",\"No\"))","v":null},{"$f":"IF(B10=0,\"\",IF((VLOOKUP(A10,'All Meals'!$A$12:$S$62,19))=\"\",0,(VLOOKUP(A10,'All Meals'!$A$12:$S$62,19))))","v":null},{"$f":"IF(B10=0,\"\",IF(N10=\"\",\"No\",IF(N10>=1,\"Yes\",\"No\")))","v":null}]
[1,{"$f":"INDEX(meals,A11)","v":null},5,null,{"$f":"IF(B11=0,\"\",IF((VLOOKUP(A11,'All Meals'!$A$12:$S$62,9))=\"\",0,(VLOOKUP(A11,'All Meals'!$A$12:$S$62,9))))","v":null},{"$f":"IF(B11=0,\"\",IF((VLOOKUP(A11,'All Meals'!$A$12:$S$62,12))=\"\",0,(VLOOKUP(A11,'All Meals'!$A$12:$S$62,12))))","v":null},{"$f":"IF(B11=0,\"\",IF((VLOOKUP(A11,'All Meals'!$A$12:$S$62,15))=\"\",0,(VLOOKUP(A11,'All Meals'!$A$12:$S$62,15))))","v":null},{"$f":"IF(B11=0,\"\",IF((VLOOKUP(A11,'All Meals'!$A$12:$S$62,18))=\"\",0,(VLOOKUP(A11,'All Meals'!$A$12:$S$62,18))))","v":null},{"$f":"IF(B11=0,\"\",IF(E11=\"\",\"No\",IF(E11>=1,\"Yes\",\"No\")))","v":null},{"$f":"IF(B11=0,\"\",IF((VLOOKUP(A11,'All Meals'!$A$12:$S$62,4))=\"\",0,(VLOOKUP(A11,'All Meals'!$A$12:$S$62,4))))","v":null},{"$f":"IF(B11=0,\"\",IF((VLOOKUP(A11,'All Meals'!$A$12:$S$62,5))=\"\",0,(VLOOKUP(A11,'All Meals'!$A$12:$S$62,5))))","v":null},{"$f":"IF(B11=0,\"\",IF((VLOOKUP(A11,'All Meals'!$A$12:$S$62,6))=\"\",0,(VLOOKUP(A11,'All Meals'!$A$12:$S$62,6))))","v":null},{"$f":"IF(B11=0,\"\",IF(SUM(J11-L11)>=1,\"Yes\",\"No\"))","v":null},{"$f":"IF(B11=0,\"\",IF((VLOOKUP(A11,'All Meals'!$A$12:$S$62,19))=\"\",0,(VLOOKUP(A11,'All Meals'!$A$12:$S$62,19))))","v":null},{"$f":"IF(B11=0,\"\",IF(N11=\"\",\"No\",IF(N11>=1,\"Yes\",\"No\")))","v":null},null,"OPTIONAL Tools to Assist in Fraction and Decimal Calculations"]
[1,{"$f":"INDEX(meals,A12)","v":null},6,null,{"$f":"IF(B12=0,\"\",IF((VLOOKUP(A12,'All Meals'!$A$12:$S$62,9))=\"\",0,(VLOOKUP(A12,'All Meals'!$A$12:$S$62,9))))","v":null},{"$f":"IF(B12=0,\"\",IF((VLOOKUP(A12,'All Meals'!$A$12:$S$62,12))=\"\",0,(VLOOKUP(A12,'All Meals'!$A$12:$S$62,12))))","v":null},{"$f":"IF(B12=0,\"\",IF((VLOOKUP(A12,'All Meals'!$A$12:$S$62,15))=\"\",0,(VLOOKUP(A12,'All Meals'!$A$12:$S$62,15))))","v":null},{"$f":"IF(B12=0,\"\",IF((VLOOKUP(A12,'All Meals'!$A$12:$S$62,18))=\"\",0,(VLOOKUP(A12,'All Meals'!$A$12:$S$62,18))))","v":null},{"$f":"IF(B12=0,\"\",IF(E12=\"\",\"No\",IF(E12>=1,\"Yes\",\"No\")))","v":null},{"$f":"IF(B12=0,\"\",IF((VLOOKUP(A12,'All Meals'!$A$12:$S$62,4))=\"\",0,(VLOOKUP(A12,'All Meals'!$A$12:$S$62,4))))","v":null},{"$f":"IF(B12=0,\"\",IF((VLOOKUP(A12,'All Meals'!$A$12:$S$62,5))=\"\",0,(VLOOKUP(A12,'All Meals'!$A$12:$S$62,5))))","v":null},{"$f":"IF(B12=0,\"\",IF((VLOOKUP(A12,'All Meals'!$A$12:$S$62,6))=\"\",0,(VLOOKUP(A12,'All Meals'!$A$12:$S$62,6))))","v":null},{"$f":"IF(B12=0,\"\",IF(SUM(J12-L12)>=1,\"Yes\",\"No\"))","v":null},{"$f":"IF(B12=0,\"\",IF((VLOOKUP(A12,'All Meals'!$A$12:$S$62,19))=\"\",0,(VLOOKUP(A12,'All Meals'!$A$12:$S$62,19))))","v":null},{"$f":"IF(B12=0,\"\",IF(N12=\"\",\"No\",IF(N12>=1,\"Yes\",\"No\")))","v":null}]
[1,{"$f":"INDEX(meals,A13)","v":null},7,null,{"$f":"IF(B13=0,\"\",IF((VLOOKUP(A13,'All Meals'!$A$12:$S$62,9))=\"\",0,(VLOOKUP(A13,'All Meals'!$A$12:$S$62,9))))","v":null},{"$f":"IF(B13=0,\"\",IF((VLOOKUP(A13,'All Meals'!$A$12:$S$62,12))=\"\",0,(VLOOKUP(A13,'All Meals'!$A$12:$S$62,12))))","v":null},{"$f":"IF(B13=0,\"\",IF((VLOOKUP(A13,'All Meals'!$A$12:$S$62,15))=\"\",0,(VLOOKUP(A13,'All Meals'!$A$12:$S$62,15))))","v":null},{"$f":"IF(B13=0,\"\",IF((VLOOKUP(A13,'All Meals'!$A$12:$S$62,18))=\"\",0,(VLOOKUP(A13,'All Meals'!$A$12:$S$62,18))))","v":null},{"$f":"IF(B13=0,\"\",IF(E13=\"\",\"No\",IF(E13>=1,\"Yes\",\"No\")))","v":null},{"$f":"IF(B13=0,\"\",IF((VLOOKUP(A13,'All Meals'!$A$12:$S$62,4))=\"\",0,(VLOOKUP(A13,'All Meals'!$A$12:$S$62,4))))","v":null},{"$f":"IF(B13=0,\"\",IF((VLOOKUP(A13,'All Meals'!$A$12:$S$62,5))=\"\",0,(VLOOKUP(A13,'All Meals'!$A$12:$S$62,5))))","v":null},{"$f":"IF(B13=0,\"\",IF((VLOOKUP(A13,'All Meals'!$A$12:$S$62,6))=\"\",0,(VLOOKUP(A13,'All Meals'!$A$12:$S$62,6))))","v":null},{"$f":"IF(B13=0,\"\",IF(SUM(J13-L13)>=1,\"Yes\",\"No\"))","v":null},{"$f":"IF(B13=0,\"\",IF((VLOOKUP(A13,'All Meals'!$A$12:$S$62,19))=\"\",0,(VLOOKUP(A13,'All Meals'!$A$12:$S$62,19))))","v":null},{"$f":"IF(B13=0,\"\",IF(N13=\"\",\"No\",IF(N13>=1,\"Yes\",\"No\")))","v":null},null,"Fraction Calculator: \nUse this calculator to add the number of cups.",null,null,1,{"$f":"INDEX(Cups,T13)","v":null}]
[1,{"$f":"INDEX(meals,A14)","v":null},8,null,{"$f":"IF(B14=0,\"\",IF((VLOOKUP(A14,'All Meals'!$A$12:$S$62,9))=\"\",0,(VLOOKUP(A14,'All Meals'!$A$12:$S$62,9))))","v":null},{"$f":"IF(B14=0,\"\",IF((VLOOKUP(A14,'All Meals'!$A$12:$S$62,12))=\"\",0,(VLOOKUP(A14,'All Meals'!$A$12:$S$62,12))))","v":null},{"$f":"IF(B14=0,\"\",IF((VLOOKUP(A14,'All Meals'!$A$12:$S$62,15))=\"\",0,(VLOOKUP(A14,'All Meals'!$A$12:$S$62,15))))","v":null},{"$f":"IF(B14=0,\"\",IF((VLOOKUP(A14,'All Meals'!$A$12:$S$62,18))=\"\",0,(VLOOKUP(A14,'All Meals'!$A$12:$S$62,18))))","v":null},{"$f":"IF(B14=0,\"\",IF(E14=\"\",\"No\",IF(E14>=1,\"Yes\",\"No\")))","v":null},{"$f":"IF(B14=0,\"\",IF((VLOOKUP(A14,'All Meals'!$A$12:$S$62,4))=\"\",0,(VLOOKUP(A14,'All Meals'!$A$12:$S$62,4))))","v":null},{"$f":"IF(B14=0,\"\",IF((VLOOKUP(A14,'All Meals'!$A$12:$S$62,5))=\"\",0,(VLOOKUP(A14,'All Meals'!$A$12:$S$62,5))))","v":null},{"$f":"IF(B14=0,\"\",IF((VLOOKUP(A14,'All Meals'!$A$12:$S$62,6))=\"\",0,(VLOOKUP(A14,'All Meals'!$A$12:$S$62,6))))","v":null},{"$f":"IF(B14=0,\"\",IF(SUM(J14-L14)>=1,\"Yes\",\"No\"))","v":null},{"$f":"IF(B14=0,\"\",IF((VLOOKUP(A14,'All Meals'!$A$12:$S$62,19))=\"\",0,(VLOOKUP(A14,'All Meals'!$A$12:$S$62,19))))","v":null},{"$f":"IF(B14=0,\"\",IF(N14=\"\",\"No\",IF(N14>=1,\"Yes\",\"No\")))","v":null},null,null,null,null,1,{"$f":"INDEX(Cups,T14)","v":null}]
[1,{"$f":"INDEX(meals,A15)","v":null},9,null,{"$f":"IF(B15=0,\"\",IF((VLOOKUP(A15,'All Meals'!$A$12:$S$62,9))=\"\",0,(VLOOKUP(A15,'All Meals'!$A$12:$S$62,9))))","v":null},{"$f":"IF(B15=0,\"\",IF((VLOOKUP(A15,'All Meals'!$A$12:$S$62,12))=\"\",0,(VLOOKUP(A15,'All Meals'!$A$12:$S$62,12))))","v":null},{"$f":"IF(B15=0,\"\",IF((VLOOKUP(A15,'All Meals'!$A$12:$S$62,15))=\"\",0,(VLOOKUP(A15,'All Meals'!$A$12:$S$62,15))))","v":null},{"$f":"IF(B15=0,\"\",IF((VLOOKUP(A15,'All Meals'!$A$12:$S$62,18))=\"\",0,(VLOOKUP(A15,'All Meals'!$A$12:$S$62,18))))","v":null},{"$f":"IF(B15=0,\"\",IF(E15=\"\",\"No\",IF(E15>=1,\"Yes\",\"No\")))","v":null},{"$f":"IF(B15=0,\"\",IF((VLOOKUP(A15,'All Meals'!$A$12:$S$62,4))=\"\",0,(VLOOKUP(A15,'All Meals'!$A$12:$S$62,4))))","v":null},{"$f":"IF(B15=0,\"\",IF((VLOOKUP(A15,'All Meals'!$A$12:$S$62,5))=\"\",0,(VLOOKUP(A15,'All Meals'!$A$12:$S$62,5))))","v":null},{"$f":"IF(B15=0,\"\",IF((VLOOKUP(A15,'All Meals'!$A$12:$S$62,6))=\"\",0,(VLOOKUP(A15,'All Meals'!$A$12:$S$62,6))))","v":null},{"$f":"IF(B15=0,\"\",IF(SUM(J15-L15)>=1,\"Yes\",\"No\"))","v":null},{"$f":"IF(B15=0,\"\",IF((VLOOKUP(A15,'All Meals'!$A$12:$S$62,19))=\"\",0,(VLOOKUP(A15,'All Meals'!$A$12:$S$62,19))))","v":null},{"$f":"IF(B15=0,\"\",IF(N15=\"\",\"No\",IF(N15>=1,\"Yes\",\"No\")))","v":null},null,null,null,null,1,{"$f":"INDEX(Cups,T15)","v":null}]
[1,{"$f":"INDEX(meals,A16)","v":null},10,null,{"$f":"IF(B16=0,\"\",IF((VLOOKUP(A16,'All Meals'!$A$12:$S$62,9))=\"\",0,(VLOOKUP(A16,'All Meals'!$A$12:$S$62,9))))","v":null},{"$f":"IF(B16=0,\"\",IF((VLOOKUP(A16,'All Meals'!$A$12:$S$62,12))=\"\",0,(VLOOKUP(A16,'All Meals'!$A$12:$S$62,12))))","v":null},{"$f":"IF(B16=0,\"\",IF((VLOOKUP(A16,'All Meals'!$A$12:$S$62,15))=\"\",0,(VLOOKUP(A16,'All Meals'!$A$12:$S$62,15))))","v":null},{"$f":"IF(B16=0,\"\",IF((VLOOKUP(A16,'All Meals'!$A$12:$S$62,18))=\"\",0,(VLOOKUP(A16,'All Meals'!$A$12:$S$62,18))))","v":null},{"$f":"IF(B16=0,\"\",IF(E16=\"\",\"No\",IF(E16>=1,\"Yes\",\"No\")))","v":null},{"$f":"IF(B16=0,\"\",IF((VLOOKUP(A16,'All Meals'!$A$12:$S$62,4))=\"\",0,(VLOOKUP(A16,'All Meals'!$A$12:$S$62,4))))","v":null},{"$f":"IF(B16=0,\"\",IF((VLOOKUP(A16,'All Meals'!$A$12:$S$62,5))=\"\",0,(VLOOKUP(A16,'All Meals'!$A$12:$S$62,5))))","v":null},{"$f":"IF(B16=0,\"\",IF((VLOOKUP(A16,'All Meals'!$A$12:$S$62,6))=\"\",0,(VLOOKUP(A16,'All Meals'!$A$12:$S$62,6))))","v":null},{"$f":"IF(B16=0,\"\",IF(SUM(J16-L16)>=1,\"Yes\",\"No\"))","v":null},{"$f":"IF(B16=0,\"\",IF((VLOOKUP(A16,'All Meals'!$A$12:$S$62,19))=\"\",0,(VLOOKUP(A16,'All Meals'!$A$12:$S$62,19))))","v":null},{"$f":"IF(B16=0,\"\",IF(N16=\"\",\"No\",IF(N16>=1,\"Yes\",\"No\")))","v":null},null,null,null,null,1,{"$f":"INDEX(Cups,T16)","v":null}]
[1,{"$f":"INDEX(meals,A17)","v":null},11,null,{"$f":"IF(B17=0,\"\",IF((VLOOKUP(A17,'All Meals'!$A$12:$S$62,9))=\"\",0,(VLOOKUP(A17,'All Meals'!$A$12:$S$62,9))))","v":null},{"$f":"IF(B17=0,\"\",IF((VLOOKUP(A17,'All Meals'!$A$12:$S$62,12))=\"\",0,(VLOOKUP(A17,'All Meals'!$A$12:$S$62,12))))","v":null},{"$f":"IF(B17=0,\"\",IF((VLOOKUP(A17,'All Meals'!$A$12:$S$62,15))=\"\",0,(VLOOKUP(A17,'All Meals'!$A$12:$S$62,15))))","v":null},{"$f":"IF(B17=0,\"\",IF((VLOOKUP(A17,'All Meals'!$A$12:$S$62,18))=\"\",0,(VLOOKUP(A17,'All Meals'!$A$12:$S$62,18))))","v":null},{"$f":"IF(B17=0,\"\",IF(E17=\"\",\"No\",IF(E17>=1,\"Yes\",\"No\")))","v":null},{"$f":"IF(B17=0,\"\",IF((VLOOKUP(A17,'All Meals'!$A$12:$S$62,4))=\"\",0,(VLOOKUP(A17,'All Meals'!$A$12:$S$62,4))))","v":null},{"$f":"IF(B17=0,\"\",IF((VLOOKUP(A17,'All Meals'!$A$12:$S$62,5))=\"\",0,(VLOOKUP(A17,'All Meals'!$A$12:$S$62,5))))","v":null},{"$f":"IF(B17=0,\"\",IF((VLOOKUP(A17,'All Meals'!$A$12:$S$62,6))=\"\",0,(VLOOKUP(A17,'All Meals'!$A$12:$S$62,6))))","v":null},{"$f":"IF(B17=0,\"\",IF(SUM(J17-L17)>=1,\"Yes\",\"No\"))","v":null},{"$f":"IF(B17=0,\"\",IF((VLOOKUP(A17,'All Meals'!$A$12:$S$62,19))=\"\",0,(VLOOKUP(A17,'All Meals'!$A$12:$S$62,19))))","v":null},{"$f":"IF(B17=0,\"\",IF(N17=\"\",\"No\",IF(N17>=1,\"Yes\",\"No\")))","v":null},null,null,null,null,1,{"$f":"INDEX(Cups,T17)","v":null}]
[1,{"$f":"INDEX(meals,A18)","v":null},12,null,{"$f":"IF(B18=0,\"\",IF((VLOOKUP(A18,'All Meals'!$A$12:$S$62,9))=\"\",0,(VLOOKUP(A18,'All Meals'!$A$12:$S$62,9))))","v":null},{"$f":"IF(B18=0,\"\",IF((VLOOKUP(A18,'All Meals'!$A$12:$S$62,12))=\"\",0,(VLOOKUP(A18,'All Meals'!$A$12:$S$62,12))))","v":null},{"$f":"IF(B18=0,\"\",IF((VLOOKUP(A18,'All Meals'!$A$12:$S$62,15))=\"\",0,(VLOOKUP(A18,'All Meals'!$A$12:$S$62,15))))","v":null},{"$f":"IF(B18=0,\"\",IF((VLOOKUP(A18,'All Meals'!$A$12:$S$62,18))=\"\",0,(VLOOKUP(A18,'All Meals'!$A$12:$S$62,18))))","v":null},{"$f":"IF(B18=0,\"\",IF(E18=\"\",\"No\",IF(E18>=1,\"Yes\",\"No\")))","v":null},{"$f":"IF(B18=0,\"\",IF((VLOOKUP(A18,'All Meals'!$A$12:$S$62,4))=\"\",0,(VLOOKUP(A18,'All Meals'!$A$12:$S$62,4))))","v":null},{"$f":"IF(B18=0,\"\",IF((VLOOKUP(A18,'All Meals'!$A$12:$S$62,5))=\"\",0,(VLOOKUP(A18,'All Meals'!$A$12:$S$62,5))))","v":null},{"$f":"IF(B18=0,\"\",IF((VLOOKUP(A18,'All Meals'!$A$12:$S$62,6))=\"\",0,(VLOOKUP(A18,'All Meals'!$A$12:$S$62,6))))","v":null},{"$f":"IF(B18=0,\"\",IF(SUM(J18-L18)>=1,\"Yes\",\"No\"))","v":null},{"$f":"IF(B18=0,\"\",IF((VLOOKUP(A18,'All Meals'!$A$12:$S$62,19))=\"\",0,(VLOOKUP(A18,'All Meals'!$A$12:$S$62,19))))","v":null},{"$f":"IF(B18=0,\"\",IF(N18=\"\",\"No\",IF(N18>=1,\"Yes\",\"No\")))","v":null},null,null,null,null,null,null,{"$f":"SUM(U13:U17)","v":null}]
[1,{"$f":"INDEX(meals,A19)","v":null},13,null,{"$f":"IF(B19=0,\"\",IF((VLOOKUP(A19,'All Meals'!$A$12:$S$62,9))=\"\",0,(VLOOKUP(A19,'All Meals'!$A$12:$S$62,9))))","v":null},{"$f":"IF(B19=0,\"\",IF((VLOOKUP(A19,'All Meals'!$A$12:$S$62,12))=\"\",0,(VLOOKUP(A19,'All Meals'!$A$12:$S$62,12))))","v":null},{"$f":"IF(B19=0,\"\",IF((VLOOKUP(A19,'All Meals'!$A$12:$S$62,15))=\"\",0,(VLOOKUP(A19,'All Meals'!$A$12:$S$62,15))))","v":null},{"$f":"IF(B19=0,\"\",IF((VLOOKUP(A19,'All Meals'!$A$12:$S$62,18))=\"\",0,(VLOOKUP(A19,'All Meals'!$A$12:$S$62,18))))","v":null},{"$f":"IF(B19=0,\"\",IF(E19=\"\",\"No\",IF(E19>=1,\"Yes\",\"No\")))","v":null},{"$f":"IF(B19=0,\"\",IF((VLOOKUP(A19,'All Meals'!$A$12:$S$62,4))=\"\",0,(VLOOKUP(A19,'All Meals'!$A$12:$S$62,4))))","v":null},{"$f":"IF(B19=0,\"\",IF((VLOOKUP(A19,'All Meals'!$A$12:$S$62,5))=\"\",0,(VLOOKUP(A19,'All Meals'!$A$12:$S$62,5))))","v":null},{"$f":"IF(B19=0,\"\",IF((VLOOKUP(A19,'All Meals'!$A$12:$S$62,6))=\"\",0,(VLOOKUP(A19,'All Meals'!$A$12:$S$62,6))))","v":null},{"$f":"IF(B19=0,\"\",IF(SUM(J19-L19)>=1,\"Yes\",\"No\"))","v":null},{"$f":"IF(B19=0,\"\",IF((VLOOKUP(A19,'All Meals'!$A$12:$S$62,19))=\"\",0,(VLOOKUP(A19,'All Meals'!$A$12:$S$62,19))))","v":null},{"$f":"IF(B19=0,\"\",IF(N19=\"\",\"No\",IF(N19>=1,\"Yes\",\"No\")))","v":null},null,"Decimal/Fraction Converter\n(Rounded down to the nearest 1/8)"]
[1,{"$f":"INDEX(meals,A20)","v":null},14,null,{"$f":"IF(B20=0,\"\",IF((VLOOKUP(A20,'All Meals'!$A$12:$S$62,9))=\"\",0,(VLOOKUP(A20,'All Meals'!$A$12:$S$62,9))))","v":null},{"$f":"IF(B20=0,\"\",IF((VLOOKUP(A20,'All Meals'!$A$12:$S$62,12))=\"\",0,(VLOOKUP(A20,'All Meals'!$A$12:$S$62,12))))","v":null},{"$f":"IF(B20=0,\"\",IF((VLOOKUP(A20,'All Meals'!$A$12:$S$62,15))=\"\",0,(VLOOKUP(A20,'All Meals'!$A$12:$S$62,15))))","v":null},{"$f":"IF(B20=0,\"\",IF((VLOOKUP(A20,'All Meals'!$A$12:$S$62,18))=\"\",0,(VLOOKUP(A20,'All Meals'!$A$12:$S$62,18))))","v":null},{"$f":"IF(B20=0,\"\",IF(E20=\"\",\"No\",IF(E20>=1,\"Yes\",\"No\")))","v":null},{"$f":"IF(B20=0,\"\",IF((VLOOKUP(A20,'All Meals'!$A$12:$S$62,4))=\"\",0,(VLOOKUP(A20,'All Meals'!$A$12:$S$62,4))))","v":null},{"$f":"IF(B20=0,\"\",IF((VLOOKUP(A20,'All Meals'!$A$12:$S$62,5))=\"\",0,(VLOOKUP(A20,'All Meals'!$A$12:$S$62,5))))","v":null},{"$f":"IF(B20=0,\"\",IF((VLOOKUP(A20,'All Meals'!$A$12:$S$62,6))=\"\",0,(VLOOKUP(A20,'All Meals'!$A$12:$S$62,6))))","v":null},{"$f":"IF(B20=0,\"\",IF(SUM(J20-L20)>=1,\"Yes\",\"No\"))","v":null},{"$f":"IF(B20=0,\"\",IF((VLOOKUP(A20,'All Meals'!$A$12:$S$62,19))=\"\",0,(VLOOKUP(A20,'All Meals'!$A$12:$S$62,19))))","v":null},{"$f":"IF(B20=0,\"\",IF(N20=\"\",\"No\",IF(N20>=1,\"Yes\",\"No\")))","v":null},null,"Enter the decimal you wish to convert to a fraction in the box:"]
[1,{"$f":"INDEX(meals,A21)","v":null},15,null,{"$f":"IF(B21=0,\"\",IF((VLOOKUP(A21,'All Meals'!$A$12:$S$62,9))=\"\",0,(VLOOKUP(A21,'All Meals'!$A$12:$S$62,9))))","v":null},{"$f":"IF(B21=0,\"\",IF((VLOOKUP(A21,'All Meals'!$A$12:$S$62,12))=\"\",0,(VLOOKUP(A21,'All Meals'!$A$12:$S$62,12))))","v":null},{"$f":"IF(B21=0,\"\",IF((VLOOKUP(A21,'All Meals'!$A$12:$S$62,15))=\"\",0,(VLOOKUP(A21,'All Meals'!$A$12:$S$62,15))))","v":null},{"$f":"IF(B21=0,\"\",IF((VLOOKUP(A21,'All Meals'!$A$12:$S$62,18))=\"\",0,(VLOOKUP(A21,'All Meals'!$A$12:$S$62,18))))","v":null},{"$f":"IF(B21=0,\"\",IF(E21=\"\",\"No\",IF(E21>=1,\"Yes\",\"No\")))","v":null},{"$f":"IF(B21=0,\"\",IF((VLOOKUP(A21,'All Meals'!$A$12:$S$62,4))=\"\",0,(VLOOKUP(A21,'All Meals'!$A$12:$S$62,4))))","v":null},{"$f":"IF(B21=0,\"\",IF((VLOOKUP(A21,'All Meals'!$A$12:$S$62,5))=\"\",0,(VLOOKUP(A21,'All Meals'!$A$12:$S$62,5))))","v":null},{"$f":"IF(B21=0,\"\",IF((VLOOKUP(A21,'All Meals'!$A$12:$S$62,6))=\"\",0,(VLOOKUP(A21,'All Meals'!$A$12:$S$62,6))))","v":null},{"$f":"IF(B21=0,\"\",IF(SUM(J21-L21)>=1,\"Yes\",\"No\"))","v":null},{"$f":"IF(B21=0,\"\",IF((VLOOKUP(A21,'All Meals'!$A$12:$S$62,19))=\"\",0,(VLOOKUP(A21,'All Meals'!$A$12:$S$62,19))))","v":null},{"$f":"IF(B21=0,\"\",IF(N21=\"\",\"No\",IF(N21>=1,\"Yes\",\"No\")))","v":null}]
[1,{"$f":"INDEX(meals,A22)","v":null},16,null,{"$f":"IF(B22=0,\"\",IF((VLOOKUP(A22,'All Meals'!$A$12:$S$62,9))=\"\",0,(VLOOKUP(A22,'All Meals'!$A$12:$S$62,9))))","v":null},{"$f":"IF(B22=0,\"\",IF((VLOOKUP(A22,'All Meals'!$A$12:$S$62,12))=\"\",0,(VLOOKUP(A22,'All Meals'!$A$12:$S$62,12))))","v":null},{"$f":"IF(B22=0,\"\",IF((VLOOKUP(A22,'All Meals'!$A$12:$S$62,15))=\"\",0,(VLOOKUP(A22,'All Meals'!$A$12:$S$62,15))))","v":null},{"$f":"IF(B22=0,\"\",IF((VLOOKUP(A22,'All Meals'!$A$12:$S$62,18))=\"\",0,(VLOOKUP(A22,'All Meals'!$A$12:$S$62,18))))","v":null},{"$f":"IF(B22=0,\"\",IF(E22=\"\",\"No\",IF(E22>=1,\"Yes\",\"No\")))","v":null},{"$f":"IF(B22=0,\"\",IF((VLOOKUP(A22,'All Meals'!$A$12:$S$62,4))=\"\",0,(VLOOKUP(A22,'All Meals'!$A$12:$S$62,4))))","v":null},{"$f":"IF(B22=0,\"\",IF((VLOOKUP(A22,'All Meals'!$A$12:$S$62,5))=\"\",0,(VLOOKUP(A22,'All Meals'!$A$12:$S$62,5))))","v":null},{"$f":"IF(B22=0,\"\",IF((VLOOKUP(A22,'All Meals'!$A$12:$S$62,6))=\"\",0,(VLOOKUP(A22,'All Meals'!$A$12:$S$62,6))))","v":null},{"$f":"IF(B22=0,\"\",IF(SUM(J22-L22)>=1,\"Yes\",\"No\"))","v":null},{"$f":"IF(B22=0,\"\",IF((VLOOKUP(A22,'All Meals'!$A$12:$S$62,19))=\"\",0,(VLOOKUP(A22,'All Meals'!$A$12:$S$62,19))))","v":null},{"$f":"IF(B22=0,\"\",IF(N22=\"\",\"No\",IF(N22>=1,\"Yes\",\"No\")))","v":null},null,"The decimal entered above has been converted to the following fraction:",null,null,null,null,{"$f":"FLOOR(V20,0.125)","v":null}]
[1,{"$f":"INDEX(meals,A23)","v":null},17,null,{"$f":"IF(B23=0,\"\",IF((VLOOKUP(A23,'All Meals'!$A$12:$S$62,9))=\"\",0,(VLOOKUP(A23,'All Meals'!$A$12:$S$62,9))))","v":null},{"$f":"IF(B23=0,\"\",IF((VLOOKUP(A23,'All Meals'!$A$12:$S$62,12))=\"\",0,(VLOOKUP(A23,'All Meals'!$A$12:$S$62,12))))","v":null},{"$f":"IF(B23=0,\"\",IF((VLOOKUP(A23,'All Meals'!$A$12:$S$62,15))=\"\",0,(VLOOKUP(A23,'All Meals'!$A$12:$S$62,15))))","v":null},{"$f":"IF(B23=0,\"\",IF((VLOOKUP(A23,'All Meals'!$A$12:$S$62,18))=\"\",0,(VLOOKUP(A23,'All Meals'!$A$12:$S$62,18))))","v":null},{"$f":"IF(B23=0,\"\",IF(E23=\"\",\"No\",IF(E23>=1,\"Yes\",\"No\")))","v":null},{"$f":"IF(B23=0,\"\",IF((VLOOKUP(A23,'All Meals'!$A$12:$S$62,4))=\"\",0,(VLOOKUP(A23,'All Meals'!$A$12:$S$62,4))))","v":null},{"$f":"IF(B23=0,\"\",IF((VLOOKUP(A23,'All Meals'!$A$12:$S$62,5))=\"\",0,(VLOOKUP(A23,'All Meals'!$A$12:$S$62,5))))","v":null},{"$f":"IF(B23=0,\"\",IF((VLOOKUP(A23,'All Meals'!$A$12:$S$62,6))=\"\",0,(VLOOKUP(A23,'All Meals'!$A$12:$S$62,6))))","v":null},{"$f":"IF(B23=0,\"\",IF(SUM(J23-L23)>=1,\"Yes\",\"No\"))","v":null},{"$f":"IF(B23=0,\"\",IF((VLOOKUP(A23,'All Meals'!$A$12:$S$62,19))=\"\",0,(VLOOKUP(A23,'All Meals'!$A$12:$S$62,19))))","v":null},{"$f":"IF(B23=0,\"\",IF(N23=\"\",\"No\",IF(N23>=1,\"Yes\",\"No\")))","v":null}]
[1,{"$f":"INDEX(meals,A24)","v":null},18,null,{"$f":"IF(B24=0,\"\",IF((VLOOKUP(A24,'All Meals'!$A$12:$S$62,9))=\"\",0,(VLOOKUP(A24,'All Meals'!$A$12:$S$62,9))))","v":null},{"$f":"IF(B24=0,\"\",IF((VLOOKUP(A24,'All Meals'!$A$12:$S$62,12))=\"\",0,(VLOOKUP(A24,'All Meals'!$A$12:$S$62,12))))","v":null},{"$f":"IF(B24=0,\"\",IF((VLOOKUP(A24,'All Meals'!$A$12:$S$62,15))=\"\",0,(VLOOKUP(A24,'All Meals'!$A$12:$S$62,15))))","v":null},{"$f":"IF(B24=0,\"\",IF((VLOOKUP(A24,'All Meals'!$A$12:$S$62,18))=\"\",0,(VLOOKUP(A24,'All Meals'!$A$12:$S$62,18))))","v":null},{"$f":"IF(B24=0,\"\",IF(E24=\"\",\"No\",IF(E24>=1,\"Yes\",\"No\")))","v":null},{"$f":"IF(B24=0,\"\",IF((VLOOKUP(A24,'All Meals'!$A$12:$S$62,4))=\"\",0,(VLOOKUP(A24,'All Meals'!$A$12:$S$62,4))))","v":null},{"$f":"IF(B24=0,\"\",IF((VLOOKUP(A24,'All Meals'!$A$12:$S$62,5))=\"\",0,(VLOOKUP(A24,'All Meals'!$A$12:$S$62,5))))","v":null},{"$f":"IF(B24=0,\"\",IF((VLOOKUP(A24,'All Meals'!$A$12:$S$62,6))=\"\",0,(VLOOKUP(A24,'All Meals'!$A$12:$S$62,6))))","v":null},{"$f":"IF(B24=0,\"\",IF(SUM(J24-L24)>=1,\"Yes\",\"No\"))","v":null},{"$f":"IF(B24=0,\"\",IF((VLOOKUP(A24,'All Meals'!$A$12:$S$62,19))=\"\",0,(VLOOKUP(A24,'All Meals'!$A$12:$S$62,19))))","v":null},{"$f":"IF(B24=0,\"\",IF(N24=\"\",\"No\",IF(N24>=1,\"Yes\",\"No\")))","v":null}]
[1,{"$f":"INDEX(meals,A25)","v":null},19,null,{"$f":"IF(B25=0,\"\",IF((VLOOKUP(A25,'All Meals'!$A$12:$S$62,9))=\"\",0,(VLOOKUP(A25,'All Meals'!$A$12:$S$62,9))))","v":null},{"$f":"IF(B25=0,\"\",IF((VLOOKUP(A25,'All Meals'!$A$12:$S$62,12))=\"\",0,(VLOOKUP(A25,'All Meals'!$A$12:$S$62,12))))","v":null},{"$f":"IF(B25=0,\"\",IF((VLOOKUP(A25,'All Meals'!$A$12:$S$62,15))=\"\",0,(VLOOKUP(A25,'All Meals'!$A$12:$S$62,15))))","v":null},{"$f":"IF(B25=0,\"\",IF((VLOOKUP(A25,'All Meals'!$A$12:$S$62,18))=\"\",0,(VLOOKUP(A25,'All Meals'!$A$12:$S$62,18))))","v":null},{"$f":"IF(B25=0,\"\",IF(E25=\"\",\"No\",IF(E25>=1,\"Yes\",\"No\")))","v":null},{"$f":"IF(B25=0,\"\",IF((VLOOKUP(A25,'All Meals'!$A$12:$S$62,4))=\"\",0,(VLOOKUP(A25,'All Meals'!$A$12:$S$62,4))))","v":null},{"$f":"IF(B25=0,\"\",IF((VLOOKUP(A25,'All Meals'!$A$12:$S$62,5))=\"\",0,(VLOOKUP(A25,'All Meals'!$A$12:$S$62,5))))","v":null},{"$f":"IF(B25=0,\"\",IF((VLOOKUP(A25,'All Meals'!$A$12:$S$62,6))=\"\",0,(VLOOKUP(A25,'All Meals'!$A$12:$S$62,6))))","v":null},{"$f":"IF(B25=0,\"\",IF(SUM(J25-L25)>=1,\"Yes\",\"No\"))","v":null},{"$f":"IF(B25=0,\"\",IF((VLOOKUP(A25,'All Meals'!$A$12:$S$62,19))=\"\",0,(VLOOKUP(A25,'All Meals'!$A$12:$S$62,19))))","v":null},{"$f":"IF(B25=0,\"\",IF(N25=\"\",\"No\",IF(N25>=1,\"Yes\",\"No\")))","v":null}]
[1,{"$f":"INDEX(meals,A26)","v":null},20,null,{"$f":"IF(B26=0,\"\",IF((VLOOKUP(A26,'All Meals'!$A$12:$S$62,9))=\"\",0,(VLOOKUP(A26,'All Meals'!$A$12:$S$62,9))))","v":null},{"$f":"IF(B26=0,\"\",IF((VLOOKUP(A26,'All Meals'!$A$12:$S$62,12))=\"\",0,(VLOOKUP(A26,'All Meals'!$A$12:$S$62,12))))","v":null},{"$f":"IF(B26=0,\"\",IF((VLOOKUP(A26,'All Meals'!$A$12:$S$62,15))=\"\",0,(VLOOKUP(A26,'All Meals'!$A$12:$S$62,15))))","v":null},{"$f":"IF(B26=0,\"\",IF((VLOOKUP(A26,'All Meals'!$A$12:$S$62,18))=\"\",0,(VLOOKUP(A26,'All Meals'!$A$12:$S$62,18))))","v":null},{"$f":"IF(B26=0,\"\",IF(E26=\"\",\"No\",IF(E26>=1,\"Yes\",\"No\")))","v":null},{"$f":"IF(B26=0,\"\",IF((VLOOKUP(A26,'All Meals'!$A$12:$S$62,4))=\"\",0,(VLOOKUP(A26,'All Meals'!$A$12:$S$62,4))))","v":null},{"$f":"IF(B26=0,\"\",IF((VLOOKUP(A26,'All Meals'!$A$12:$S$62,5))=\"\",0,(VLOOKUP(A26,'All Meals'!$A$12:$S$62,5))))","v":null},{"$f":"IF(B26=0,\"\",IF((VLOOKUP(A26,'All Meals'!$A$12:$S$62,6))=\"\",0,(VLOOKUP(A26,'All Meals'!$A$12:$S$62,6))))","v":null},{"$f":"IF(B26=0,\"\",IF(SUM(J26-L26)>=1,\"Yes\",\"No\"))","v":null},{"$f":"IF(B26=0,\"\",IF((VLOOKUP(A26,'All Meals'!$A$12:$S$62,19))=\"\",0,(VLOOKUP(A26,'All Meals'!$A$12:$S$62,19))))","v":null},{"$f":"IF(B26=0,\"\",IF(N26=\"\",\"No\",IF(N26>=1,\"Yes\",\"No\")))","v":null}]
[null,null,null,null,null,{"$f":"IF(B27=0,\"\",IF((VLOOKUP(A27,'All Meals'!$A$12:$S$62,12))=\"\",0,(VLOOKUP(A27,'All Meals'!$A$12:$S$62,12))))","v":null},null,null,null,{"$f":"SUM(J7:J26)","v":null},{"$f":"SUM(K7:K26)","v":null},{"$f":"SUM(L7:L26)","v":null}]
[null,null,null,null,null,{"$f":"IF(B28=0,\"\",IF((VLOOKUP(A28,'All Meals'!$A$12:$S$62,12))=\"\",0,(VLOOKUP(A28,'All Meals'!$A$12:$S$62,12))))","v":null},null,null,null,null,null,{"$f":"(J27-L27)","v":null}]

{"sheet":"Thursday","index":7,"n_rows":28,"n_cols":23,"rows_kept":28,"cut":false,"hidden":false,"merged":[[21,16,22,18],[12,16,17,18],[13,21,13,22],[17,21,17,22],[19,16,20,18],[18,16,18,22],[19,21,20,22],[8,15,8,18],[10,16,11,22],[12,21,12,22],[7,15,7,18],[3,4,3,8],[4,8,5,8],[0,2,0,14],[21,21,22,22],[4,22,6,22],[14,21,14,22],[15,21,15,22],[16,21,16,22],[4,9,5,9],[6,15,6,18],[0,17,0,19],[1,17,1,19],[4,6,5,6],[4,5,5,5],[4,7,5,7],[5,15,5,18],[4,15,4,18],[4,11,5,11],[4,14,5,14],[1,2,1,14],[4,2,5,3],[3,13,3,14],[4,13,5,13],[2,2,2,22],[3,12,5,12],[3,2,3,3],[4,4,5,4],[3,15,3,22],[3,9,3,11],[4,10,5,10]]}
[null,null,"Thursday Daily Breakfast Requirement Check\nGrades K-8",null,null,null,null,null,null,null,null,null,null,null,null,null,null,"Go to Weekly Report","'Weekly Report'!A1","'Weekly Report'!A1"]
[null,null,"The daily worksheet will perform daily requirement checks for the reimbursable meals offered each day. Requirements met are flagged \"Yes\" and the cell turns green. Requirements NOT met are flagged \"No\" and the cell turns red.  \nNOTE: The top row is frozen to display the column headers as the daily meals are entered.\nGrains and meat/meat alternates are rounded down to the nearest quarter ounce.\nOnce you are finished selecting the meals offered each day, make sure to scroll to the right to enter milk type information.",null,null,null,null,null,null,null,null,null,null,null,null,null,null,"Go to Instructions","'Breakfast Worksheet Instruction'!A1","'Breakfast Worksheet Instruction'!A1"]
["K-5 Menu #:\n",null,"Thursday"]
[null,null,"Select the reimbursable breakfasts offered on Thursday",null,"Fruit/Vegetable/100% Juice\n(cups)",null,null,null,null,"Grains or Meat/Meat Alternates Counting as Grains\n(ounce equivalents)",null,null,"Daily Breakfast Requirement Check\n1 oz equivalents","Milk\n(cups)",null,"Milk Type\nCheck the type of milk below if it is offered to students on Thursday.\nAll types of milk included."]
[null,null,"Meal Name\nNote: You may not delete lines, if you want to clear a meal select the first blank in the drop down list",null,"Total fruit/vegetable/juice cups\n(cups)","Cups of fruit/vegetable juice","Cups of non-starchy vegetables","Cups of starchy vegetables","Daily Fruit Requirement Check\n 1 cup","Number of oz eq of GRAINS (Actual Grains + Meat/Meat Alternate counting toward Grains)","Number of oz eq of Whole Grain-Rich GRAINS","Number of oz eq of Meats/Meat Alternates",null,"Milk (cups)","Daily Milk Requirement Check\n1 cup","Skim/fat-free, unflavored",null,null,null,null,true,null,{"$f":"IF(AND(U5=FALSE,U6=FALSE,U7=FALSE),\"\",IF(AND(U5=TRUE,U6=TRUE),\"Yes\",IF(AND(U5=TRUE,U7=TRUE),\"Yes\",IF(AND(U6=TRUE,U7=TRUE),\"Yes\",\"No\"))))","v":null}]
[null,null,null,null,null,null,null,null,null,null,null,null,null,null,null,"Skim/fat-free, flavored",null,null,null,null,true]
[4,{"$f":"INDEX(meals,A7)","v":null},1,null,{"$f":"IF(B7=0,\"\",IF((VLOOKUP(A7,'All Meals'!$A$12:$S$62,9))=\"\",0,(VLOOKUP(A7,'All Meals'!$A$12:$S$62,9))))","v":null},{"$f":"IF(B7=0,\"\",IF((VLOOKUP(A7,'All Meals'!$A$12:$S$62,12))=\"\",0,(VLOOKUP(A7,'All Meals'!$A$12:$S$62,12))))","v":null},{"$f":"IF(B7=0,\"\",IF((VLOOKUP(A7,'All Meals'!$A$12:$S$62,15))=\"\",0,(VLOOKUP(A7,'All Meals'!$A$12:$S$62,15))))","v":null},{"$f":"IF(B7=0,\"\",IF((VLOOKUP(A7,'All Meals'!$A$12:$S$62,18))=\"\",0,(VLOOKUP(A7,'All Meals'!$A$12:$S$62,18))))","v":null},{"$f":"IF(B7=0,\"\",IF(E7=\"\",\"No\",IF(E7>=1,\"Yes\",\"No\")))","v":null},{"$f":"IF(B7=0,\"\",IF((VLOOKUP(A7,'All Meals'!$A$12:$S$62,4))=\"\",0,(VLOOKUP(A7,'All Meals'!$A$12:$S$62,4))))","v":null},{"$f":"IF(B7=0,\"\",IF((VLOOKUP(A7,'All Meals'!$A$12:$S$62,5))=\"\",0,(VLOOKUP(A7,'All Meals'!$A$12:$S$62,5))))","v":null},{"$f":"IF(B7=0,\"\",IF((VLOOKUP(A7,'All Meals'!$A$12:$S$62,6))=\"\",0,(VLOOKUP(A7,'All Meals'!$A$12:$S$62,6))))","v":null},{"$f":"IF(B7=0,\"\",IF(SUM(J7-L7)>=1,\"Yes\",\"No\"))","v":null},{"$f":"IF(B7=0,\"\",IF((VLOOKUP(A7,'All Meals'!$A$12:$S$62,19))=\"\",0,(VLOOKUP(A7,'All Meals'!$A$12:$S$62,19))))","v":null},{"$f":"IF(B7=0,\"\",IF(N7=\"\",\"No\",IF(N7>=1,\"Yes\",\"No\")))","v":null},"Low-fat (1% or less), unflavored",null,null,null,null,true]
[1,{"$f":"INDEX(meals,A8)","v":null},2,null,{"$f":"IF(B8=0,\"\",IF((VLOOKUP(A8,'All Meals'!$A$12:$S$62,9))=\"\",0,(VLOOKUP(A8,'All Meals'!$A$12:$S$62,9))))","v":null},{"$f":"IF(B8=0,\"\",IF((VLOOKUP(A8,'All Meals'!$A$12:$S$62,12))=\"\",0,(VLOOKUP(A8,'All Meals'!$A$12:$S$62,12))))","v":null},{"$f":"IF(B8=0,\"\",IF((VLOOKUP(A8,'All Meals'!$A$12:$S$62,15))=\"\",0,(VLOOKUP(A8,'All Meals'!$A$12:$S$62,15))))","v":null},{"$f":"IF(B8=0,\"\",IF((VLOOKUP(A8,'All Meals'!$A$12:$S$62,18))=\"\",0,(VLOOKUP(A8,'All Meals'!$A$12:$S$62,18))))","v":null},{"$f":"IF(B8=0,\"\",IF(E8=\"\",\"No\",IF(E8>=1,\"Yes\",\"No\")))","v":null},{"$f":"IF(B8=0,\"\",IF((VLOOKUP(A8,'All Meals'!$A$12:$S$62,4))=\"\",0,(VLOOKUP(A8,'All Meals'!$A$12:$S$62,4))))","v":null},{"$f":"IF(B8=0,\"\",IF((VLOOKUP(A8,'All Meals'!$A$12:$S$62,5))=\"\",0,(VLOOKUP(A8,'All Meals'!$A$12:$S$62,5))))","v":null},{"$f":"IF(B8=0,\"\",IF((VLOOKUP(A8,'All Meals'!$A$12:$S$62,6))=\"\",0,(VLOOKUP(A8,'All Meals'!$A$12:$S$62,6))))","v":null},{"$f":"IF(B8=0,\"\",IF(SUM(J8-L8)>=1,\"Yes\",\"No\"))","v":null},{"$f":"IF(B8=0,\"\",IF((VLOOKUP(A8,'All Meals'!$A$12:$S$62,19))=\"\",0,(VLOOKUP(A8,'All Meals'!$A$12:$S$62,19))))","v":null},{"$f":"IF(B8=0,\"\",IF(N8=\"\",\"No\",IF(N8>=1,\"Yes\",\"No\")))","v":null},"Low-fat (1% or less), flavored",null,null,null,null,false,null,{"$f":"IF(U8=TRUE,\"No\",\"\")","v":null}]
[1,{"$f":"INDEX(meals,A9)","v":null},3,null,{"$f":"IF(B9=0,\"\",IF((VLOOKUP(A9,'All Meals'!$A$12:$S$62,9))=\"\",0,(VLOOKUP(A9,'All Meals'!$A$12:$S$62,9))))","v":null},{"$f":"IF(B9=0,\"\",IF((VLOOKUP(A9,'All Meals'!$A$12:$S$62,12))=\"\",0,(VLOOKUP(A9,'All Meals'!$A$12:$S$62,12))))","v":null},{"$f":"IF(B9=0,\"\",IF((VLOOKUP(A9,'All Meals'!$A$12:$S$62,15))=\"\",0,(VLOOKUP(A9,'All Meals'!$A$12:$S$62,15))))","v":null},{"$f":"IF(B9=0,\"\",IF((VLOOKUP(A9,'All Meals'!$A$12:$S$62,18))=\"\",0,(VLOOKUP(A9,'All Meals'!$A$12:$S$62,18))))","v":null},{"$f":"IF(B9=0,\"\",IF(E9=\"\",\"No\",IF(E9>=1,\"Yes\",\"No\")))","v":null},{"$f":"IF(B9=0,\"\",IF((VLOOKUP(A9,'All Meals'!$A$12:$S$62,4))=\"\",0,(VLOOKUP(A9,'All Meals'!$A$12:$S$62,4))))","v":null},{"$f":"IF(B9=0,\"\",IF((VLOOKUP(A9,'All Meals'!$A$12:$S$62,5))=\"\",0,(VLOOKUP(A9,'All Meals'!$A$12:$S$62,5))))","v":null},{"$f":"IF(B9=0,\"\",IF((VLOOKUP(A9,'All Meals'!$A$12:$S$62,6))=\"\",0,(VLOOKUP(A9,'All Meals'!$A$12:$S$62,6))))","v":null},{"$f":"IF(B9=0,\"\",IF(SUM(J9-L9)>=1,\"Yes\",\"No\"))","v":null},{"$f":"IF(B9=0,\"\",IF((VLOOKUP(A9,'All Meals'!$A$12:$S$62,19))=\"\",0,(VLOOKUP(A9,'All Meals'!$A$12:$S$62,19))))","v":null},{"$f":"IF(B9=0,\"\",IF(N9=\"\",\"No\",IF(N9>=1,\"Yes\",\"No\")))","v":null},"Reduced fat (2% fat) or whole, unflavored and flavored",null,null,null,null,false,null,{"$f":"IF(U9=TRUE,\"No\",\"\")","v":null}]
[1,{"$f":"INDEX(meals,A10)","v":null},4,null,{"$f":"IF(B10=0,\"\",IF((VLOOKUP(A10,'All Meals'!$A$12:$S$62,9))=\"\",0,(VLOOKUP(A10,'All Meals'!$A$12:$S$62,9))))","v":null},{"$f":"IF(B10=0,\"\",IF((VLOOKUP(A10,'All Meals'!$A$12:$S$62,12))=\"\",0,(VLOOKUP(A10,'All Meals'!$A$12:$S$62,12))))","v":null},{"$f":"IF(B10=0,\"\",IF((VLOOKUP(A10,'All Meals'!$A$12:$S$62,15))=\"\",0,(VLOOKUP(A10,'All Meals'!$A$12:$S$62,15))))","v":null},{"$f":"IF(B10=0,\"\",IF((VLOOKUP(A10,'All Meals'!$A$12:$S$62,18))=\"\",0,(VLOOKUP(A10,'All Meals'!$A$12:$S$62,18))))","v":null},{"$f":"IF(B10=0,\"\",IF(E10=\"\",\"No\",IF(E10>=1,\"Yes\",\"No\")))","v":null},{"$f":"IF(B10=0,\"\",IF((VLOOKUP(A10,'All Meals'!$A$12:$S$62,4))=\"\",0,(VLOOKUP(A10,'All Meals'!$A$12:$S$62,4))))","v":null},{"$f":"IF(B10=0,\"\",IF((VLOOKUP(A10,'All Meals'!$A$12:$S$62,5))=\"\",0,(VLOOKUP(A10,'All Meals'!$A$12:$S$62,5))))","v":null},{"$f":"IF(B10=0,\"\",IF((VLOOKUP(A10,'All Meals'!$A$12:$S$62,6))=\"\",0,(VLOOKUP(A10,'All Meals'!$A$12:$S$62,6))))","v":null},{"$f":"IF(B10=0,\"\",IF(SUM(J10-L10)>=1,\"Yes\",\"No\"))","v":null},{"$f":"IF(B10=0,\"\",IF((VLOOKUP(A10,'All Meals'!$A$12:$S$62,19))=\"\",0,(VLOOKUP(A10,'All Meals'!$A$12:$S$62,19))))","v":null},{"$f":"IF(B10=0,\"\",IF(N10=\"\",\"No\",IF(N10>=1,\"Yes\",\"No\")))","v":null}]
[1,{"$f":"INDEX(meals,A11)","v":null},5,null,{"$f":"IF(B11=0,\"\",IF((VLOOKUP(A11,'All Meals'!$A$12:$S$62,9))=\"\",0,(VLOOKUP(A11,'All Meals'!$A$12:$S$62,9))))","v":null},{"$f":"IF(B11=0,\"\",IF((VLOOKUP(A11,'All Meals'!$A$12:$S$62,12))=\"\",0,(VLOOKUP(A11,'All Meals'!$A$12:$S$62,12))))","v":null},{"$f":"IF(B11=0,\"\",IF((VLOOKUP(A11,'All Meals'!$A$12:$S$62,15))=\"\",0,(VLOOKUP(A11,'All Meals'!$A$12:$S$62,15))))","v":null},{"$f":"IF(B11=0,\"\",IF((VLOOKUP(A11,'All Meals'!$A$12:$S$62,18))=\"\",0,(VLOOKUP(A11,'All Meals'!$A$12:$S$62,18))))","v":null},{"$f":"IF(B11=0,\"\",IF(E11=\"\",\"No\",IF(E11>=1,\"Yes\",\"No\")))","v":null},{"$f":"IF(B11=0,\"\",IF((VLOOKUP(A11,'All Meals'!$A$12:$S$62,4))=\"\",0,(VLOOKUP(A11,'All Meals'!$A$12:$S$62,4))))","v":null},{"$f":"IF(B11=0,\"\",IF((VLOOKUP(A11,'All Meals'!$A$12:$S$62,5))=\"\",0,(VLOOKUP(A11,'All Meals'!$A$12:$S$62,5))))","v":null},{"$f":"IF(B11=0,\"\",IF((VLOOKUP(A11,'All Meals'!$A$12:$S$62,6))=\"\",0,(VLOOKUP(A11,'All Meals'!$A$12:$S$62,6))))","v":null},{"$f":"IF(B11=0,\"\",IF(SUM(J11-L11)>=1,\"Yes\",\"No\"))","v":null},{"$f":"IF(B11=0,\"\",IF((VLOOKUP(A11,'All Meals'!$A$12:$S$62,19))=\"\",0,(VLOOKUP(A11,'All Meals'!$A$12:$S$62,19))))","v":null},{"$f":"IF(B11=0,\"\",IF(N11=\"\",\"No\",IF(N11>=1,\"Yes\",\"No\")))","v":null},null,"OPTIONAL Tools to Assist in Fraction and Decimal Calculations"]
[1,{"$f":"INDEX(meals,A12)","v":null},6,null,{"$f":"IF(B12=0,\"\",IF((VLOOKUP(A12,'All Meals'!$A$12:$S$62,9))=\"\",0,(VLOOKUP(A12,'All Meals'!$A$12:$S$62,9))))","v":null},{"$f":"IF(B12=0,\"\",IF((VLOOKUP(A12,'All Meals'!$A$12:$S$62,12))=\"\",0,(VLOOKUP(A12,'All Meals'!$A$12:$S$62,12))))","v":null},{"$f":"IF(B12=0,\"\",IF((VLOOKUP(A12,'All Meals'!$A$12:$S$62,15))=\"\",0,(VLOOKUP(A12,'All Meals'!$A$12:$S$62,15))))","v":null},{"$f":"IF(B12=0,\"\",IF((VLOOKUP(A12,'All Meals'!$A$12:$S$62,18))=\"\",0,(VLOOKUP(A12,'All Meals'!$A$12:$S$62,18))))","v":null},{"$f":"IF(B12=0,\"\",IF(E12=\"\",\"No\",IF(E12>=1,\"Yes\",\"No\")))","v":null},{"$f":"IF(B12=0,\"\",IF((VLOOKUP(A12,'All Meals'!$A$12:$S$62,4))=\"\",0,(VLOOKUP(A12,'All Meals'!$A$12:$S$62,4))))","v":null},{"$f":"IF(B12=0,\"\",IF((VLOOKUP(A12,'All Meals'!$A$12:$S$62,5))=\"\",0,(VLOOKUP(A12,'All Meals'!$A$12:$S$62,5))))","v":null},{"$f":"IF(B12=0,\"\",IF((VLOOKUP(A12,'All Meals'!$A$12:$S$62,6))=\"\",0,(VLOOKUP(A12,'All Meals'!$A$12:$S$62,6))))","v":null},{"$f":"IF(B12=0,\"\",IF(SUM(J12-L12)>=1,\"Yes\",\"No\"))","v":null},{"$f":"IF(B12=0,\"\",IF((VLOOKUP(A12,'All Meals'!$A$12:$S$62,19))=\"\",0,(VLOOKUP(A12,'All Meals'!$A$12:$S$62,19))))","v":null},{"$f":"IF(B12=0,\"\",IF(N12=\"\",\"No\",IF(N12>=1,\"Yes\",\"No\")))","v":null}]
[1,{"$f":"INDEX(meals,A13)","v":null},7,null,{"$f":"IF(B13=0,\"\",IF((VLOOKUP(A13,'All Meals'!$A$12:$S$62,9))=\"\",0,(VLOOKUP(A13,'All Meals'!$A$12:$S$62,9))))","v":null},{"$f":"IF(B13=0,\"\",IF((VLOOKUP(A13,'All Meals'!$A$12:$S$62,12))=\"\",0,(VLOOKUP(A13,'All Meals'!$A$12:$S$62,12))))","v":null},{"$f":"IF(B13=0,\"\",IF((VLOOKUP(A13,'All Meals'!$A$12:$S$62,15))=\"\",0,(VLOOKUP(A13,'All Meals'!$A$12:$S$62,15))))","v":null},{"$f":"IF(B13=0,\"\",IF((VLOOKUP(A13,'All Meals'!$A$12:$S$62,18))=\"\",0,(VLOOKUP(A13,'All Meals'!$A$12:$S$62,18))))","v":null},{"$f":"IF(B13=0,\"\",IF(E13=\"\",\"No\",IF(E13>=1,\"Yes\",\"No\")))","v":null},{"$f":"IF(B13=0,\"\",IF((VLOOKUP(A13,'All Meals'!$A$12:$S$62,4))=\"\",0,(VLOOKUP(A13,'All Meals'!$A$12:$S$62,4))))","v":null},{"$f":"IF(B13=0,\"\",IF((VLOOKUP(A13,'All Meals'!$A$12:$S$62,5))=\"\",0,(VLOOKUP(A13,'All Meals'!$A$12:$S$62,5))))","v":null},{"$f":"IF(B13=0,\"\",IF((VLOOKUP(A13,'All Meals'!$A$12:$S$62,6))=\"\",0,(VLOOKUP(A13,'All Meals'!$A$12:$S$62,6))))","v":null},{"$f":"IF(B13=0,\"\",IF(SUM(J13-L13)>=1,\"Yes\",\"No\"))","v":null},{"$f":"IF(B13=0,\"\",IF((VLOOKUP(A13,'All Meals'!$A$12:$S$62,19))=\"\",0,(VLOOKUP(A13,'All Meals'!$A$12:$S$62,19))))","v":null},{"$f":"IF(B13=0,\"\",IF(N13=\"\",\"No\",IF(N13>=1,\"Yes\",\"No\")))","v":null},null,"Fraction Calculator: \nUse this calculator to add the number of cups.",null,null,1,{"$f":"INDEX(Cups,T13)","v":null}]
[1,{"$f":"INDEX(meals,A14)","v":null},8,null,{"$f":"IF(B14=0,\"\",IF((VLOOKUP(A14,'All Meals'!$A$12:$S$62,9))=\"\",0,(VLOOKUP(A14,'All Meals'!$A$12:$S$62,9))))","v":null},{"$f":"IF(B14=0,\"\",IF((VLOOKUP(A14,'All Meals'!$A$12:$S$62,12))=\"\",0,(VLOOKUP(A14,'All Meals'!$A$12:$S$62,12))))","v":null},{"$f":"IF(B14=0,\"\",IF((VLOOKUP(A14,'All Meals'!$A$12:$S$62,15))=\"\",0,(VLOOKUP(A14,'All Meals'!$A$12:$S$62,15))))","v":null},{"$f":"IF(B14=0,\"\",IF((VLOOKUP(A14,'All Meals'!$A$12:$S$62,18))=\"\",0,(VLOOKUP(A14,'All Meals'!$A$12:$S$62,18))))","v":null},{"$f":"IF(B14=0,\"\",IF(E14=\"\",\"No\",IF(E14>=1,\"Yes\",\"No\")))","v":null},{"$f":"IF(B14=0,\"\",IF((VLOOKUP(A14,'All Meals'!$A$12:$S$62,4))=\"\",0,(VLOOKUP(A14,'All Meals'!$A$12:$S$62,4))))","v":null},{"$f":"IF(B14=0,\"\",IF((VLOOKUP(A14,'All Meals'!$A$12:$S$62,5))=\"\",0,(VLOOKUP(A14,'All Meals'!$A$12:$S$62,5))))","v":null},{"$f":"IF(B14=0,\"\",IF((VLOOKUP(A14,'All Meals'!$A$12:$S$62,6))=\"\",0,(VLOOKUP(A14,'All Meals'!$A$12:$S$62,6))))","v":null},{"$f":"IF(B14=0,\"\",IF(SUM(J14-L14)>=1,\"Yes\",\"No\"))","v":null},{"$f":"IF(B14=0,\"\",IF((VLOOKUP(A14,'All Meals'!$A$12:$S$62,19))=\"\",0,(VLOOKUP(A14,'All Meals'!$A$12:$S$62,19))))","v":null},{"$f":"IF(B14=0,\"\",IF(N14=\"\",\"No\",IF(N14>=1,\"Yes\",\"No\")))","v":null},null,null,null,null,1,{"$f":"INDEX(Cups,T14)","v":null}]
[1,{"$f":"INDEX(meals,A15)","v":null},9,null,{"$f":"IF(B15=0,\"\",IF((VLOOKUP(A15,'All Meals'!$A$12:$S$62,9))=\"\",0,(VLOOKUP(A15,'All Meals'!$A$12:$S$62,9))))","v":null},{"$f":"IF(B15=0,\"\",IF((VLOOKUP(A15,'All Meals'!$A$12:$S$62,12))=\"\",0,(VLOOKUP(A15,'All Meals'!$A$12:$S$62,12))))","v":null},{"$f":"IF(B15=0,\"\",IF((VLOOKUP(A15,'All Meals'!$A$12:$S$62,15))=\"\",0,(VLOOKUP(A15,'All Meals'!$A$12:$S$62,15))))","v":null},{"$f":"IF(B15=0,\"\",IF((VLOOKUP(A15,'All Meals'!$A$12:$S$62,18))=\"\",0,(VLOOKUP(A15,'All Meals'!$A$12:$S$62,18))))","v":null},{"$f":"IF(B15=0,\"\",IF(E15=\"\",\"No\",IF(E15>=1,\"Yes\",\"No\")))","v":null},{"$f":"IF(B15=0,\"\",IF((VLOOKUP(A15,'All Meals'!$A$12:$S$62,4))=\"\",0,(VLOOKUP(A15,'All Meals'!$A$12:$S$62,4))))","v":null},{"$f":"IF(B15=0,\"\",IF((VLOOKUP(A15,'All Meals'!$A$12:$S$62,5))=\"\",0,(VLOOKUP(A15,'All Meals'!$A$12:$S$62,5))))","v":null},{"$f":"IF(B15=0,\"\",IF((VLOOKUP(A15,'All Meals'!$A$12:$S$62,6))=\"\",0,(VLOOKUP(A15,'All Meals'!$A$12:$S$62,6))))","v":null},{"$f":"IF(B15=0,\"\",IF(SUM(J15-L15)>=1,\"Yes\",\"No\"))","v":null},{"$f":"IF(B15=0,\"\",IF((VLOOKUP(A15,'All Meals'!$A$12:$S$62,19))=\"\",0,(VLOOKUP(A15,'All Meals'!$A$12:$S$62,19))))","v":null},{"$f":"IF(B15=0,\"\",IF(N15=\"\",\"No\",IF(N15>=1,\"Yes\",\"No\")))","v":null},null,null,null,null,1,{"$f":"INDEX(Cups,T15)","v":null}]
[1,{"$f":"INDEX(meals,A16)","v":null},10,null,{"$f":"IF(B16=0,\"\",IF((VLOOKUP(A16,'All Meals'!$A$12:$S$62,9))=\"\",0,(VLOOKUP(A16,'All Meals'!$A$12:$S$62,9))))","v":null},{"$f":"IF(B16=0,\"\",IF((VLOOKUP(A16,'All Meals'!$A$12:$S$62,12))=\"\",0,(VLOOKUP(A16,'All Meals'!$A$12:$S$62,12))))","v":null},{"$f":"IF(B16=0,\"\",IF((VLOOKUP(A16,'All Meals'!$A$12:$S$62,15))=\"\",0,(VLOOKUP(A16,'All Meals'!$A$12:$S$62,15))))","v":null},{"$f":"IF(B16=0,\"\",IF((VLOOKUP(A16,'All Meals'!$A$12:$S$62,18))=\"\",0,(VLOOKUP(A16,'All Meals'!$A$12:$S$62,18))))","v":null},{"$f":"IF(B16=0,\"\",IF(E16=\"\",\"No\",IF(E16>=1,\"Yes\",\"No\")))","v":null},{"$f":"IF(B16=0,\"\",IF((VLOOKUP(A16,'All Meals'!$A$12:$S$62,4))=\"\",0,(VLOOKUP(A16,'All Meals'!$A$12:$S$62,4))))","v":null},{"$f":"IF(B16=0,\"\",IF((VLOOKUP(A16,'All Meals'!$A$12:$S$62,5))=\"\",0,(VLOOKUP(A16,'All Meals'!$A$12:$S$62,5))))","v":null},{"$f":"IF(B16=0,\"\",IF((VLOOKUP(A16,'All Meals'!$A$12:$S$62,6))=\"\",0,(VLOOKUP(A16,'All Meals'!$A$12:$S$62,6))))","v":null},{"$f":"IF(B16=0,\"\",IF(SUM(J16-L16)>=1,\"Yes\",\"No\"))","v":null},{"$f":"IF(B16=0,\"\",IF((VLOOKUP(A16,'All Meals'!$A$12:$S$62,19))=\"\",0,(VLOOKUP(A16,'All Meals'!$A$12:$S$62,19))))","v":null},{"$f":"IF(B16=0,\"\",IF(N16=\"\",\"No\",IF(N16>=1,\"Yes\",\"No\")))","v":null},null,null,null,null,1,{"$f":"INDEX(Cups,T16)","v":null}]
[1,{"$f":"INDEX(meals,A17)","v":null},11,null,{"$f":"IF(B17=0,\"\",IF((VLOOKUP(A17,'All Meals'!$A$12:$S$62,9))=\"\",0,(VLOOKUP(A17,'All Meals'!$A$12:$S$62,9))))","v":null},{"$f":"IF(B17=0,\"\",IF((VLOOKUP(A17,'All Meals'!$A$12:$S$62,12))=\"\",0,(VLOOKUP(A17,'All Meals'!$A$12:$S$62,12))))","v":null},{"$f":"IF(B17=0,\"\",IF((VLOOKUP(A17,'All Meals'!$A$12:$S$62,15))=\"\",0,(VLOOKUP(A17,'All Meals'!$A$12:$S$62,15))))","v":null},{"$f":"IF(B17=0,\"\",IF((VLOOKUP(A17,'All Meals'!$A$12:$S$62,18))=\"\",0,(VLOOKUP(A17,'All Meals'!$A$12:$S$62,18))))","v":null},{"$f":"IF(B17=0,\"\",IF(E17=\"\",\"No\",IF(E17>=1,\"Yes\",\"No\")))","v":null},{"$f":"IF(B17=0,\"\",IF((VLOOKUP(A17,'All Meals'!$A$12:$S$62,4))=\"\",0,(VLOOKUP(A17,'All Meals'!$A$12:$S$62,4))))","v":null},{"$f":"IF(B17=0,\"\",IF((VLOOKUP(A17,'All Meals'!$A$12:$S$62,5))=\"\",0,(VLOOKUP(A17,'All Meals'!$A$12:$S$62,5))))","v":null},{"$f":"IF(B17=0,\"\",IF((VLOOKUP(A17,'All Meals'!$A$12:$S$62,6))=\"\",0,(VLOOKUP(A17,'All Meals'!$A$12:$S$62,6))))","v":null},{"$f":"IF(B17=0,\"\",IF(SUM(J17-L17)>=1,\"Yes\",\"No\"))","v":null},{"$f":"IF(B17=0,\"\",IF((VLOOKUP(A17,'All Meals'!$A$12:$S$62,19))=\"\",0,(VLOOKUP(A17,'All Meals'!$A$12:$S$62,19))))","v":null},{"$f":"IF(B17=0,\"\",IF(N17=\"\",\"No\",IF(N17>=1,\"Yes\",\"No\")))","v":null},null,null,null,null,1,{"$f":"INDEX(Cups,T17)","v":null}]
[1,{"$f":"INDEX(meals,A18)","v":null},12,null,{"$f":"IF(B18=0,\"\",IF((VLOOKUP(A18,'All Meals'!$A$12:$S$62,9))=\"\",0,(VLOOKUP(A18,'All Meals'!$A$12:$S$62,9))))","v":null},{"$f":"IF(B18=0,\"\",IF((VLOOKUP(A18,'All Meals'!$A$12:$S$62,12))=\"\",0,(VLOOKUP(A18,'All Meals'!$A$12:$S$62,12))))","v":null},{"$f":"IF(B18=0,\"\",IF((VLOOKUP(A18,'All Meals'!$A$12:$S$62,15))=\"\",0,(VLOOKUP(A18,'All Meals'!$A$12:$S$62,15))))","v":null},{"$f":"IF(B18=0,\"\",IF((VLOOKUP(A18,'All Meals'!$A$12:$S$62,18))=\"\",0,(VLOOKUP(A18,'All Meals'!$A$12:$S$62,18))))","v":null},{"$f":"IF(B18=0,\"\",IF(E18=\"\",\"No\",IF(E18>=1,\"Yes\",\"No\")))","v":null},{"$f":"IF(B18=0,\"\",IF((VLOOKUP(A18,'All Meals'!$A$12:$S$62,4))=\"\",0,(VLOOKUP(A18,'All Meals'!$A$12:$S$62,4))))","v":null},{"$f":"IF(B18=0,\"\",IF((VLOOKUP(A18,'All Meals'!$A$12:$S$62,5))=\"\",0,(VLOOKUP(A18,'All Meals'!$A$12:$S$62,5))))","v":null},{"$f":"IF(B18=0,\"\",IF((VLOOKUP(A18,'All Meals'!$A$12:$S$62,6))=\"\",0,(VLOOKUP(A18,'All Meals'!$A$12:$S$62,6))))","v":null},{"$f":"IF(B18=0,\"\",IF(SUM(J18-L18)>=1,\"Yes\",\"No\"))","v":null},{"$f":"IF(B18=0,\"\",IF((VLOOKUP(A18,'All Meals'!$A$12:$S$62,19))=\"\",0,(VLOOKUP(A18,'All Meals'!$A$12:$S$62,19))))","v":null},{"$f":"IF(B18=0,\"\",IF(N18=\"\",\"No\",IF(N18>=1,\"Yes\",\"No\")))","v":null},null,null,null,null,null,null,{"$f":"SUM(U13:U17)","v":null}]
[1,{"$f":"INDEX(meals,A19)","v":null},13,null,{"$f":"IF(B19=0,\"\",IF((VLOOKUP(A19,'All Meals'!$A$12:$S$62,9))=\"\",0,(VLOOKUP(A19,'All Meals'!$A$12:$S$62,9))))","v":null},{"$f":"IF(B19=0,\"\",IF((VLOOKUP(A19,'All Meals'!$A$12:$S$62,12))=\"\",0,(VLOOKUP(A19,'All Meals'!$A$12:$S$62,12))))","v":null},{"$f":"IF(B19=0,\"\",IF((VLOOKUP(A19,'All Meals'!$A$12:$S$62,15))=\"\",0,(VLOOKUP(A19,'All Meals'!$A$12:$S$62,15))))","v":null},{"$f":"IF(B19=0,\"\",IF((VLOOKUP(A19,'All Meals'!$A$12:$S$62,18))=\"\",0,(VLOOKUP(A19,'All Meals'!$A$12:$S$62,18))))","v":null},{"$f":"IF(B19=0,\"\",IF(E19=\"\",\"No\",IF(E19>=1,\"Yes\",\"No\")))","v":null},{"$f":"IF(B19=0,\"\",IF((VLOOKUP(A19,'All Meals'!$A$12:$S$62,4))=\"\",0,(VLOOKUP(A19,'All Meals'!$A$12:$S$62,4))))","v":null},{"$f":"IF(B19=0,\"\",IF((VLOOKUP(A19,'All Meals'!$A$12:$S$62,5))=\"\",0,(VLOOKUP(A19,'All Meals'!$A$12:$S$62,5))))","v":null},{"$f":"IF(B19=0,\"\",IF((VLOOKUP(A19,'All Meals'!$A$12:$S$62,6))=\"\",0,(VLOOKUP(A19,'All Meals'!$A$12:$S$62,6))))","v":null},{"$f":"IF(B19=0,\"\",IF(SUM(J19-L19)>=1,\"Yes\",\"No\"))","v":null},{"$f":"IF(B19=0,\"\",IF((VLOOKUP(A19,'All Meals'!$A$12:$S$62,19))=\"\",0,(VLOOKUP(A19,'All Meals'!$A$12:$S$62,19))))","v":null},{"$f":"IF(B19=0,\"\",IF(N19=\"\",\"No\",IF(N19>=1,\"Yes\",\"No\")))","v":null},null,"Decimal/Fraction Converter\n(Rounded down to the nearest 1/8)"]
[1,{"$f":"INDEX(meals,A20)","v":null},14,null,{"$f":"IF(B20=0,\"\",IF((VLOOKUP(A20,'All Meals'!$A$12:$S$62,9))=\"\",0,(VLOOKUP(A20,'All Meals'!$A$12:$S$62,9))))","v":null},{"$f":"IF(B20=0,\"\",IF((VLOOKUP(A20,'All Meals'!$A$12:$S$62,12))=\"\",0,(VLOOKUP(A20,'All Meals'!$A$12:$S$62,12))))","v":null},{"$f":"IF(B20=0,\"\",IF((VLOOKUP(A20,'All Meals'!$A$12:$S$62,15))=\"\",0,(VLOOKUP(A20,'All Meals'!$A$12:$S$62,15))))","v":null},{"$f":"IF(B20=0,\"\",IF((VLOOKUP(A20,'All Meals'!$A$12:$S$62,18))=\"\",0,(VLOOKUP(A20,'All Meals'!$A$12:$S$62,18))))","v":null},{"$f":"IF(B20=0,\"\",IF(E20=\"\",\"No\",IF(E20>=1,\"Yes\",\"No\")))","v":null},{"$f":"IF(B20=0,\"\",IF((VLOOKUP(A20,'All Meals'!$A$12:$S$62,4))=\"\",0,(VLOOKUP(A20,'All Meals'!$A$12:$S$62,4))))","v":null},{"$f":"IF(B20=0,\"\",IF((VLOOKUP(A20,'All Meals'!$A$12:$S$62,5))=\"\",0,(VLOOKUP(A20,'All Meals'!$A$12:$S$62,5))))","v":null},{"$f":"IF(B20=0,\"\",IF((VLOOKUP(A20,'All Meals'!$A$12:$S$62,6))=\"\",0,(VLOOKUP(A20,'All Meals'!$A$12:$S$62,6))))","v":null},{"$f":"IF(B20=0,\"\",IF(SUM(J20-L20)>=1,\"Yes\",\"No\"))","v":null},{"$f":"IF(B20=0,\"\",IF((VLOOKUP(A20,'All Meals'!$A$12:$S$62,19))=\"\",0,(VLOOKUP(A20,'All Meals'!$A$12:$S$62,19))))","v":null},{"$f":"IF(B20=0,\"\",IF(N20=\"\",\"No\",IF(N20>=1,\"Yes\",\"No\")))","v":null},null,"Enter the decimal you wish to convert to a fraction in the box:"]
[1,{"$f":"INDEX(meals,A21)","v":null},15,null,{"$f":"IF(B21=0,\"\",IF((VLOOKUP(A21,'All Meals'!$A$12:$S$62,9))=\"\",0,(VLOOKUP(A21,'All Meals'!$A$12:$S$62,9))))","v":null},{"$f":"IF(B21=0,\"\",IF((VLOOKUP(A21,'All Meals'!$A$12:$S$62,12))=\"\",0,(VLOOKUP(A21,'All Meals'!$A$12:$S$62,12))))","v":null},{"$f":"IF(B21=0,\"\",IF((VLOOKUP(A21,'All Meals'!$A$12:$S$62,15))=\"\",0,(VLOOKUP(A21,'All Meals'!$A$12:$S$62,15))))","v":null},{"$f":"IF(B21=0,\"\",IF((VLOOKUP(A21,'All Meals'!$A$12:$S$62,18))=\"\",0,(VLOOKUP(A21,'All Meals'!$A$12:$S$62,18))))","v":null},{"$f":"IF(B21=0,\"\",IF(E21=\"\",\"No\",IF(E21>=1,\"Yes\",\"No\")))","v":null},{"$f":"IF(B21=0,\"\",IF((VLOOKUP(A21,'All Meals'!$A$12:$S$62,4))=\"\",0,(VLOOKUP(A21,'All Meals'!$A$12:$S$62,4))))","v":null},{"$f":"IF(B21=0,\"\",IF((VLOOKUP(A21,'All Meals'!$A$12:$S$62,5))=\"\",0,(VLOOKUP(A21,'All Meals'!$A$12:$S$62,5))))","v":null},{"$f":"IF(B21=0,\"\",IF((VLOOKUP(A21,'All Meals'!$A$12:$S$62,6))=\"\",0,(VLOOKUP(A21,'All Meals'!$A$12:$S$62,6))))","v":null},{"$f":"IF(B21=0,\"\",IF(SUM(J21-L21)>=1,\"Yes\",\"No\"))","v":null},{"$f":"IF(B21=0,\"\",IF((VLOOKUP(A21,'All Meals'!$A$12:$S$62,19))=\"\",0,(VLOOKUP(A21,'All Meals'!$A$12:$S$62,19))))","v":null},{"$f":"IF(B21=0,\"\",IF(N21=\"\",\"No\",IF(N21>=1,\"Yes\",\"No\")))","v":null}]
[1,{"$f":"INDEX(meals,A22)","v":null},16,null,{"$f":"IF(B22=0,\"\",IF((VLOOKUP(A22,'All Meals'!$A$12:$S$62,9))=\"\",0,(VLOOKUP(A22,'All Meals'!$A$12:$S$62,9))))","v":null},{"$f":"IF(B22=0,\"\",IF((VLOOKUP(A22,'All Meals'!$A$12:$S$62,12))=\"\",0,(VLOOKUP(A22,'All Meals'!$A$12:$S$62,12))))","v":null},{"$f":"IF(B22=0,\"\",IF((VLOOKUP(A22,'All Meals'!$A$12:$S$62,15))=\"\",0,(VLOOKUP(A22,'All Meals'!$A$12:$S$62,15))))","v":null},{"$f":"IF(B22=0,\"\",IF((VLOOKUP(A22,'All Meals'!$A$12:$S$62,18))=\"\",0,(VLOOKUP(A22,'All Meals'!$A$12:$S$62,18))))","v":null},{"$f":"IF(B22=0,\"\",IF(E22=\"\",\"No\",IF(E22>=1,\"Yes\",\"No\")))","v":null},{"$f":"IF(B22=0,\"\",IF((VLOOKUP(A22,'All Meals'!$A$12:$S$62,4))=\"\",0,(VLOOKUP(A22,'All Meals'!$A$12:$S$62,4))))","v":null},{"$f":"IF(B22=0,\"\",IF((VLOOKUP(A22,'All Meals'!$A$12:$S$62,5))=\"\",0,(VLOOKUP(A22,'All Meals'!$A$12:$S$62,5))))","v":null},{"$f":"IF(B22=0,\"\",IF((VLOOKUP(A22,'All Meals'!$A$12:$S$62,6))=\"\",0,(VLOOKUP(A22,'All Meals'!$A$12:$S$62,6))))","v":null},{"$f":"IF(B22=0,\"\",IF(SUM(J22-L22)>=1,\"Yes\",\"No\"))","v":null},{"$f":"IF(B22=0,\"\",IF((VLOOKUP(A22,'All Meals'!$A$12:$S$62,19))=\"\",0,(VLOOKUP(A22,'All Meals'!$A$12:$S$62,19))))","v":null},{"$f":"IF(B22=0,\"\",IF(N22=\"\",\"No\",IF(N22>=1,\"Yes\",\"No\")))","v":null},null,"The decimal entered above has been converted to the following fraction:",null,null,null,null,{"$f":"FLOOR(V20,0.125)","v":null}]
[1,{"$f":"INDEX(meals,A23)","v":null},17,null,{"$f":"IF(B23=0,\"\",IF((VLOOKUP(A23,'All Meals'!$A$12:$S$62,9))=\"\",0,(VLOOKUP(A23,'All Meals'!$A$12:$S$62,9))))","v":null},{"$f":"IF(B23=0,\"\",IF((VLOOKUP(A23,'All Meals'!$A$12:$S$62,12))=\"\",0,(VLOOKUP(A23,'All Meals'!$A$12:$S$62,12))))","v":null},{"$f":"IF(B23=0,\"\",IF((VLOOKUP(A23,'All Meals'!$A$12:$S$62,15))=\"\",0,(VLOOKUP(A23,'All Meals'!$A$12:$S$62,15))))","v":null},{"$f":"IF(B23=0,\"\",IF((VLOOKUP(A23,'All Meals'!$A$12:$S$62,18))=\"\",0,(VLOOKUP(A23,'All Meals'!$A$12:$S$62,18))))","v":null},{"$f":"IF(B23=0,\"\",IF(E23=\"\",\"No\",IF(E23>=1,\"Yes\",\"No\")))","v":null},{"$f":"IF(B23=0,\"\",IF((VLOOKUP(A23,'All Meals'!$A$12:$S$62,4))=\"\",0,(VLOOKUP(A23,'All Meals'!$A$12:$S$62,4))))","v":null},{"$f":"IF(B23=0,\"\",IF((VLOOKUP(A23,'All Meals'!$A$12:$S$62,5))=\"\",0,(VLOOKUP(A23,'All Meals'!$A$12:$S$62,5))))","v":null},{"$f":"IF(B23=0,\"\",IF((VLOOKUP(A23,'All Meals'!$A$12:$S$62,6))=\"\",0,(VLOOKUP(A23,'All Meals'!$A$12:$S$62,6))))","v":null},{"$f":"IF(B23=0,\"\",IF(SUM(J23-L23)>=1,\"Yes\",\"No\"))","v":null},{"$f":"IF(B23=0,\"\",IF((VLOOKUP(A23,'All Meals'!$A$12:$S$62,19))=\"\",0,(VLOOKUP(A23,'All Meals'!$A$12:$S$62,19))))","v":null},{"$f":"IF(B23=0,\"\",IF(N23=\"\",\"No\",IF(N23>=1,\"Yes\",\"No\")))","v":null}]
[1,{"$f":"INDEX(meals,A24)","v":null},18,null,{"$f":"IF(B24=0,\"\",IF((VLOOKUP(A24,'All Meals'!$A$12:$S$62,9))=\"\",0,(VLOOKUP(A24,'All Meals'!$A$12:$S$62,9))))","v":null},{"$f":"IF(B24=0,\"\",IF((VLOOKUP(A24,'All Meals'!$A$12:$S$62,12))=\"\",0,(VLOOKUP(A24,'All Meals'!$A$12:$S$62,12))))","v":null},{"$f":"IF(B24=0,\"\",IF((VLOOKUP(A24,'All Meals'!$A$12:$S$62,15))=\"\",0,(VLOOKUP(A24,'All Meals'!$A$12:$S$62,15))))","v":null},{"$f":"IF(B24=0,\"\",IF((VLOOKUP(A24,'All Meals'!$A$12:$S$62,18))=\"\",0,(VLOOKUP(A24,'All Meals'!$A$12:$S$62,18))))","v":null},{"$f":"IF(B24=0,\"\",IF(E24=\"\",\"No\",IF(E24>=1,\"Yes\",\"No\")))","v":null},{"$f":"IF(B24=0,\"\",IF((VLOOKUP(A24,'All Meals'!$A$12:$S$62,4))=\"\",0,(VLOOKUP(A24,'All Meals'!$A$12:$S$62,4))))","v":null},{"$f":"IF(B24=0,\"\",IF((VLOOKUP(A24,'All Meals'!$A$12:$S$62,5))=\"\",0,(VLOOKUP(A24,'All Meals'!$A$12:$S$62,5))))","v":null},{"$f":"IF(B24=0,\"\",IF((VLOOKUP(A24,'All Meals'!$A$12:$S$62,6))=\"\",0,(VLOOKUP(A24,'All Meals'!$A$12:$S$62,6))))","v":null},{"$f":"IF(B24=0,\"\",IF(SUM(J24-L24)>=1,\"Yes\",\"No\"))","v":null},{"$f":"IF(B24=0,\"\",IF((VLOOKUP(A24,'All Meals'!$A$12:$S$62,19))=\"\",0,(VLOOKUP(A24,'All Meals'!$A$12:$S$62,19))))","v":null},{"$f":"IF(B24=0,\"\",IF(N24=\"\",\"No\",IF(N24>=1,\"Yes\",\"No\")))","v":null}]
[1,{"$f":"INDEX(meals,A25)","v":null},19,null,{"$f":"IF(B25=0,\"\",IF((VLOOKUP(A25,'All Meals'!$A$12:$S$62,9))=\"\",0,(VLOOKUP(A25,'All Meals'!$A$12:$S$62,9))))","v":null},{"$f":"IF(B25=0,\"\",IF((VLOOKUP(A25,'All Meals'!$A$12:$S$62,12))=\"\",0,(VLOOKUP(A25,'All Meals'!$A$12:$S$62,12))))","v":null},{"$f":"IF(B25=0,\"\",IF((VLOOKUP(A25,'All Meals'!$A$12:$S$62,15))=\"\",0,(VLOOKUP(A25,'All Meals'!$A$12:$S$62,15))))","v":null},{"$f":"IF(B25=0,\"\",IF((VLOOKUP(A25,'All Meals'!$A$12:$S$62,18))=\"\",0,(VLOOKUP(A25,'All Meals'!$A$12:$S$62,18))))","v":null},{"$f":"IF(B25=0,\"\",IF(E25=\"\",\"No\",IF(E25>=1,\"Yes\",\"No\")))","v":null},{"$f":"IF(B25=0,\"\",IF((VLOOKUP(A25,'All Meals'!$A$12:$S$62,4))=\"\",0,(VLOOKUP(A25,'All Meals'!$A$12:$S$62,4))))","v":null},{"$f":"IF(B25=0,\"\",IF((VLOOKUP(A25,'All Meals'!$A$12:$S$62,5))=\"\",0,(VLOOKUP(A25,'All Meals'!$A$12:$S$62,5))))","v":null},{"$f":"IF(B25=0,\"\",IF((VLOOKUP(A25,'All Meals'!$A$12:$S$62,6))=\"\",0,(VLOOKUP(A25,'All Meals'!$A$12:$S$62,6))))","v":null},{"$f":"IF(B25=0,\"\",IF(SUM(J25-L25)>=1,\"Yes\",\"No\"))","v":null},{"$f":"IF(B25=0,\"\",IF((VLOOKUP(A25,'All Meals'!$A$12:$S$62,19))=\"\",0,(VLOOKUP(A25,'All Meals'!$A$12:$S$62,19))))","v":null},{"$f":"IF(B25=0,\"\",IF(N25=\"\",\"No\",IF(N25>=1,\"Yes\",\"No\")))","v":null}]
[1,{"$f":"INDEX(meals,A26)","v":null},20,null,{"$f":"IF(B26=0,\"\",IF((VLOOKUP(A26,'All Meals'!$A$12:$S$62,9))=\"\",0,(VLOOKUP(A26,'All Meals'!$A$12:$S$62,9))))","v":null},{"$f":"IF(B26=0,\"\",IF((VLOOKUP(A26,'All Meals'!$A$12:$S$62,12))=\"\",0,(VLOOKUP(A26,'All Meals'!$A$12:$S$62,12))))","v":null},{"$f":"IF(B26=0,\"\",IF((VLOOKUP(A26,'All Meals'!$A$12:$S$62,15))=\"\",0,(VLOOKUP(A26,'All Meals'!$A$12:$S$62,15))))","v":null},{"$f":"IF(B26=0,\"\",IF((VLOOKUP(A26,'All Meals'!$A$12:$S$62,18))=\"\",0,(VLOOKUP(A26,'All Meals'!$A$12:$S$62,18))))","v":null},{"$f":"IF(B26=0,\"\",IF(E26=\"\",\"No\",IF(E26>=1,\"Yes\",\"No\")))","v":null},{"$f":"IF(B26=0,\"\",IF((VLOOKUP(A26,'All Meals'!$A$12:$S$62,4))=\"\",0,(VLOOKUP(A26,'All Meals'!$A$12:$S$62,4))))","v":null},{"$f":"IF(B26=0,\"\",IF((VLOOKUP(A26,'All Meals'!$A$12:$S$62,5))=\"\",0,(VLOOKUP(A26,'All Meals'!$A$12:$S$62,5))))","v":null},{"$f":"IF(B26=0,\"\",IF((VLOOKUP(A26,'All Meals'!$A$12:$S$62,6))=\"\",0,(VLOOKUP(A26,'All Meals'!$A$12:$S$62,6))))","v":null},{"$f":"IF(B26=0,\"\",IF(SUM(J26-L26)>=1,\"Yes\",\"No\"))","v":null},{"$f":"IF(B26=0,\"\",IF((VLOOKUP(A26,'All Meals'!$A$12:$S$62,19))=\"\",0,(VLOOKUP(A26,'All Meals'!$A$12:$S$62,19))))","v":null},{"$f":"IF(B26=0,\"\",IF(N26=\"\",\"No\",IF(N26>=1,\"Yes\",\"No\")))","v":null}]
[null,null,null,null,null,{"$f":"IF(B27=0,\"\",IF((VLOOKUP(A27,'All Meals'!$A$12:$S$62,12))=\"\",0,(VLOOKUP(A27,'All Meals'!$A$12:$S$62,12))))","v":null},null,null,null,{"$f":"SUM(J7:J26)","v":null},{"$f":"SUM(K7:K26)","v":null},{"$f":"SUM(L7:L26)","v":null}]
[null,null,null,null,null,{"$f":"IF(B28=0,\"\",IF((VLOOKUP(A28,'All Meals'!$A$12:$S$62,12))=\"\",0,(VLOOKUP(A28,'All Meals'!$A$12:$S$62,12))))","v":null},null,null,null,null,null,{"$f":"(J27-L27)","v":null}]

{"sheet":"Friday","index":8,"n_rows":28,"n_cols":23,"rows_kept":28,"cut":false,"hidden":false,"merged":[[21,16,22,18],[12,16,17,18],[13,21,13,22],[17,21,17,22],[19,16,20,18],[18,16,18,22],[19,21,20,22],[8,15,8,18],[10,16,11,22],[12,21,12,22],[7,15,7,18],[3,4,3,8],[4,8,5,8],[0,2,0,14],[21,21,22,22],[4,22,6,22],[14,21,14,22],[15,21,15,22],[16,21,16,22],[4,9,5,9],[6,15,6,18],[0,17,0,19],[1,17,1,19],[4,6,5,6],[4,5,5,5],[4,7,5,7],[5,15,5,18],[4,15,4,18],[4,11,5,11],[4,14,5,14],[1,2,1,14],[4,2,5,3],[3,13,3,14],[4,13,5,13],[2,2,2,22],[3,12,5,12],[3,2,3,3],[4,4,5,4],[3,15,3,22],[3,9,3,11],[4,10,5,10]]}
[null,null,"Friday Daily Breakfast Requirement Check\nGrades K-8",null,null,null,null,null,null,null,null,null,null,null,null,null,null,"Go to Weekly Report","'Weekly Report'!A1","'Weekly Report'!A1"]
[null,null,"The daily worksheet will perform daily requirement checks for the reimbursable meals offered each day. Requirements met are flagged \"Yes\" and the cell turns green. Requirements NOT met are flagged \"No\" and the cell turns red.  \nNOTE: The top row is frozen to display the column headers as the daily meals are entered.\nGrains and meat/meat alternates are rounded down to the nearest quarter ounce.\nOnce you are finished selecting the meals offered each day, make sure to scroll to the right to enter milk type information.",null,null,null,null,null,null,null,null,null,null,null,null,null,null,"Go to Instructions","'Breakfast Worksheet Instruction'!A1","'Breakfast Worksheet Instruction'!A1"]
["K-5 Menu #:\n",null,"Friday"]
[null,null,"Select the reimbursable breakfasts offered on Friday",null,"Fruit/Vegetable/100% Juice\n(cups)",null,null,null,null,"Grains or Meat/Meat Alternates Counting as Grains\n(ounce equivalents)",null,null,"Daily Breakfast Requirement Check\n1 oz equivalents","Milk\n(cups)",null,"Milk Type\nCheck the type of milk below if it is offered to students on Friday.\nAll types of milk included."]
[null,null,"Meal Name\nNote: You may not delete lines, if you want to clear a meal select the first blank in the drop down list",null,"Total fruit/vegetable/juice cups\n(cups)","Cups of fruit/vegetable juice","Cups of non-starchy vegetables","Cups of starchy vegetables","Daily Fruit Requirement Check\n 1 cup","Number of oz eq of GRAINS (Actual Grains + Meat/Meat Alternate counting toward Grains)","Number of oz eq of Whole Grain-Rich GRAINS","Number of oz eq of Meats/Meat Alternates",null,"Milk (cups)","Daily Milk Requirement Check\n1 cup","Skim/fat-free, unflavored",null,null,null,null,true,null,{"$f":"IF(AND(U5=FALSE,U6=FALSE,U7=FALSE),\"\",IF(AND(U5=TRUE,U6=TRUE),\"Yes\",IF(AND(U5=TRUE,U7=TRUE),\"Yes\",IF(AND(U6=TRUE,U7=TRUE),\"Yes\",\"No\"))))","v":null}]
[null,null,null,null,null,null,null,null,null,null,null,null,null,null,null,"Skim/fat-free, flavored",null,null,null,null,true]
[5,{"$f":"INDEX(meals,A7)","v":null},1,null,{"$f":"IF(B7=0,\"\",IF((VLOOKUP(A7,'All Meals'!$A$12:$S$62,9))=\"\",0,(VLOOKUP(A7,'All Meals'!$A$12:$S$62,9))))","v":null},{"$f":"IF(B7=0,\"\",IF((VLOOKUP(A7,'All Meals'!$A$12:$S$62,12))=\"\",0,(VLOOKUP(A7,'All Meals'!$A$12:$S$62,12))))","v":null},{"$f":"IF(B7=0,\"\",IF((VLOOKUP(A7,'All Meals'!$A$12:$S$62,15))=\"\",0,(VLOOKUP(A7,'All Meals'!$A$12:$S$62,15))))","v":null},{"$f":"IF(B7=0,\"\",IF((VLOOKUP(A7,'All Meals'!$A$12:$S$62,18))=\"\",0,(VLOOKUP(A7,'All Meals'!$A$12:$S$62,18))))","v":null},{"$f":"IF(B7=0,\"\",IF(E7=\"\",\"No\",IF(E7>=1,\"Yes\",\"No\")))","v":null},{"$f":"IF(B7=0,\"\",IF((VLOOKUP(A7,'All Meals'!$A$12:$S$62,4))=\"\",0,(VLOOKUP(A7,'All Meals'!$A$12:$S$62,4))))","v":null},{"$f":"IF(B7=0,\"\",IF((VLOOKUP(A7,'All Meals'!$A$12:$S$62,5))=\"\",0,(VLOOKUP(A7,'All Meals'!$A$12:$S$62,5))))","v":null},{"$f":"IF(B7=0,\"\",IF((VLOOKUP(A7,'All Meals'!$A$12:$S$62,6))=\"\",0,(VLOOKUP(A7,'All Meals'!$A$12:$S$62,6))))","v":null},{"$f":"IF(B7=0,\"\",IF(SUM(J7-L7)>=1,\"Yes\",\"No\"))","v":null},{"$f":"IF(B7=0,\"\",IF((VLOOKUP(A7,'All Meals'!$A$12:$S$62,19))=\"\",0,(VLOOKUP(A7,'All Meals'!$A$12:$S$62,19))))","v":null},{"$f":"IF(B7=0,\"\",IF(N7=\"\",\"No\",IF(N7>=1,\"Yes\",\"No\")))","v":null},"Low-fat (1% or less), unflavored",null,null,null,null,true]
[1,{"$f":"INDEX(meals,A8)","v":null},2,null,{"$f":"IF(B8=0,\"\",IF((VLOOKUP(A8,'All Meals'!$A$12:$S$62,9))=\"\",0,(VLOOKUP(A8,'All Meals'!$A$12:$S$62,9))))","v":null},{"$f":"IF(B8=0,\"\",IF((VLOOKUP(A8,'All Meals'!$A$12:$S$62,12))=\"\",0,(VLOOKUP(A8,'All Meals'!$A$12:$S$62,12))))","v":null},{"$f":"IF(B8=0,\"\",IF((VLOOKUP(A8,'All Meals'!$A$12:$S$62,15))=\"\",0,(VLOOKUP(A8,'All Meals'!$A$12:$S$62,15))))","v":null},{"$f":"IF(B8=0,\"\",IF((VLOOKUP(A8,'All Meals'!$A$12:$S$62,18))=\"\",0,(VLOOKUP(A8,'All Meals'!$A$12:$S$62,18))))","v":null},{"$f":"IF(B8=0,\"\",IF(E8=\"\",\"No\",IF(E8>=1,\"Yes\",\"No\")))","v":null},{"$f":"IF(B8=0,\"\",IF((VLOOKUP(A8,'All Meals'!$A$12:$S$62,4))=\"\",0,(VLOOKUP(A8,'All Meals'!$A$12:$S$62,4))))","v":null},{"$f":"IF(B8=0,\"\",IF((VLOOKUP(A8,'All Meals'!$A$12:$S$62,5))=\"\",0,(VLOOKUP(A8,'All Meals'!$A$12:$S$62,5))))","v":null},{"$f":"IF(B8=0,\"\",IF((VLOOKUP(A8,'All Meals'!$A$12:$S$62,6))=\"\",0,(VLOOKUP(A8,'All Meals'!$A$12:$S$62,6))))","v":null},{"$f":"IF(B8=0,\"\",IF(SUM(J8-L8)>=1,\"Yes\",\"No\"))","v":null},{"$f":"IF(B8=0,\"\",IF((VLOOKUP(A8,'All Meals'!$A$12:$S$62,19))=\"\",0,(VLOOKUP(A8,'All Meals'!$A$12:$S$62,19))))","v":null},{"$f":"IF(B8=0,\"\",IF(N8=\"\",\"No\",IF(N8>=1,\"Yes\",\"No\")))","v":null},"Low-fat (1% or less), flavored",null,null,null,null,false,null,{"$f":"IF(U8=TRUE,\"No\",\"\")","v":null}]
[1,{"$f":"INDEX(meals,A9)","v":null},3,null,{"$f":"IF(B9=0,\"\",IF((VLOOKUP(A9,'All Meals'!$A$12:$S$62,9))=\"\",0,(VLOOKUP(A9,'All Meals'!$A$12:$S$62,9))))","v":null},{"$f":"IF(B9=0,\"\",IF((VLOOKUP(A9,'All Meals'!$A$12:$S$62,12))=\"\",0,(VLOOKUP(A9,'All Meals'!$A$12:$S$62,12))))","v":null},{"$f":"IF(B9=0,\"\",IF((VLOOKUP(A9,'All Meals'!$A$12:$S$62,15))=\"\",0,(VLOOKUP(A9,'All Meals'!$A$12:$S$62,15))))","v":null},{"$f":"IF(B9=0,\"\",IF((VLOOKUP(A9,'All Meals'!$A$12:$S$62,18))=\"\",0,(VLOOKUP(A9,'All Meals'!$A$12:$S$62,18))))","v":null},{"$f":"IF(B9=0,\"\",IF(E9=\"\",\"No\",IF(E9>=1,\"Yes\",\"No\")))","v":null},{"$f":"IF(B9=0,\"\",IF((VLOOKUP(A9,'All Meals'!$A$12:$S$62,4))=\"\",0,(VLOOKUP(A9,'All Meals'!$A$12:$S$62,4))))","v":null},{"$f":"IF(B9=0,\"\",IF((VLOOKUP(A9,'All Meals'!$A$12:$S$62,5))=\"\",0,(VLOOKUP(A9,'All Meals'!$A$12:$S$62,5))))","v":null},{"$f":"IF(B9=0,\"\",IF((VLOOKUP(A9,'All Meals'!$A$12:$S$62,6))=\"\",0,(VLOOKUP(A9,'All Meals'!$A$12:$S$62,6))))","v":null},{"$f":"IF(B9=0,\"\",IF(SUM(J9-L9)>=1,\"Yes\",\"No\"))","v":null},{"$f":"IF(B9=0,\"\",IF((VLOOKUP(A9,'All Meals'!$A$12:$S$62,19))=\"\",0,(VLOOKUP(A9,'All Meals'!$A$12:$S$62,19))))","v":null},{"$f":"IF(B9=0,\"\",IF(N9=\"\",\"No\",IF(N9>=1,\"Yes\",\"No\")))","v":null},"Reduced fat (2% fat) or whole, unflavored and flavored",null,null,null,null,false,null,{"$f":"IF(U9=TRUE,\"No\",\"\")","v":null}]
[1,{"$f":"INDEX(meals,A10)","v":null},4,null,{"$f":"IF(B10=0,\"\",IF((VLOOKUP(A10,'All Meals'!$A$12:$S$62,9))=\"\",0,(VLOOKUP(A10,'All Meals'!$A$12:$S$62,9))))","v":null},{"$f":"IF(B10=0,\"\",IF((VLOOKUP(A10,'All Meals'!$A$12:$S$62,12))=\"\",0,(VLOOKUP(A10,'All Meals'!$A$12:$S$62,12))))","v":null},{"$f":"IF(B10=0,\"\",IF((VLOOKUP(A10,'All Meals'!$A$12:$S$62,15))=\"\",0,(VLOOKUP(A10,'All Meals'!$A$12:$S$62,15))))","v":null},{"$f":"IF(B10=0,\"\",IF((VLOOKUP(A10,'All Meals'!$A$12:$S$62,18))=\"\",0,(VLOOKUP(A10,'All Meals'!$A$12:$S$62,18))))","v":null},{"$f":"IF(B10=0,\"\",IF(E10=\"\",\"No\",IF(E10>=1,\"Yes\",\"No\")))","v":null},{"$f":"IF(B10=0,\"\",IF((VLOOKUP(A10,'All Meals'!$A$12:$S$62,4))=\"\",0,(VLOOKUP(A10,'All Meals'!$A$12:$S$62,4))))","v":null},{"$f":"IF(B10=0,\"\",IF((VLOOKUP(A10,'All Meals'!$A$12:$S$62,5))=\"\",0,(VLOOKUP(A10,'All Meals'!$A$12:$S$62,5))))","v":null},{"$f":"IF(B10=0,\"\",IF((VLOOKUP(A10,'All Meals'!$A$12:$S$62,6))=\"\",0,(VLOOKUP(A10,'All Meals'!$A$12:$S$62,6))))","v":null},{"$f":"IF(B10=0,\"\",IF(SUM(J10-L10)>=1,\"Yes\",\"No\"))","v":null},{"$f":"IF(B10=0,\"\",IF((VLOOKUP(A10,'All Meals'!$A$12:$S$62,19))=\"\",0,(VLOOKUP(A10,'All Meals'!$A$12:$S$62,19))))","v":null},{"$f":"IF(B10=0,\"\",IF(N10=\"\",\"No\",IF(N10>=1,\"Yes\",\"No\")))","v":null}]
[1,{"$f":"INDEX(meals,A11)","v":null},5,null,{"$f":"IF(B11=0,\"\",IF((VLOOKUP(A11,'All Meals'!$A$12:$S$62,9))=\"\",0,(VLOOKUP(A11,'All Meals'!$A$12:$S$62,9))))","v":null},{"$f":"IF(B11=0,\"\",IF((VLOOKUP(A11,'All Meals'!$A$12:$S$62,12))=\"\",0,(VLOOKUP(A11,'All Meals'!$A$12:$S$62,12))))","v":null},{"$f":"IF(B11=0,\"\",IF((VLOOKUP(A11,'All Meals'!$A$12:$S$62,15))=\"\",0,(VLOOKUP(A11,'All Meals'!$A$12:$S$62,15))))","v":null},{"$f":"IF(B11=0,\"\",IF((VLOOKUP(A11,'All Meals'!$A$12:$S$62,18))=\"\",0,(VLOOKUP(A11,'All Meals'!$A$12:$S$62,18))))","v":null},{"$f":"IF(B11=0,\"\",IF(E11=\"\",\"No\",IF(E11>=1,\"Yes\",\"No\")))","v":null},{"$f":"IF(B11=0,\"\",IF((VLOOKUP(A11,'All Meals'!$A$12:$S$62,4))=\"\",0,(VLOOKUP(A11,'All Meals'!$A$12:$S$62,4))))","v":null},{"$f":"IF(B11=0,\"\",IF((VLOOKUP(A11,'All Meals'!$A$12:$S$62,5))=\"\",0,(VLOOKUP(A11,'All Meals'!$A$12:$S$62,5))))","v":null},{"$f":"IF(B11=0,\"\",IF((VLOOKUP(A11,'All Meals'!$A$12:$S$62,6))=\"\",0,(VLOOKUP(A11,'All Meals'!$A$12:$S$62,6))))","v":null},{"$f":"IF(B11=0,\"\",IF(SUM(J11-L11)>=1,\"Yes\",\"No\"))","v":null},{"$f":"IF(B11=0,\"\",IF((VLOOKUP(A11,'All Meals'!$A$12:$S$62,19))=\"\",0,(VLOOKUP(A11,'All Meals'!$A$12:$S$62,19))))","v":null},{"$f":"IF(B11=0,\"\",IF(N11=\"\",\"No\",IF(N11>=1,\"Yes\",\"No\")))","v":null},null,"OPTIONAL Tools to Assist in Fraction and Decimal Calculations"]
[1,{"$f":"INDEX(meals,A12)","v":null},6,null,{"$f":"IF(B12=0,\"\",IF((VLOOKUP(A12,'All Meals'!$A$12:$S$62,9))=\"\",0,(VLOOKUP(A12,'All Meals'!$A$12:$S$62,9))))","v":null},{"$f":"IF(B12=0,\"\",IF((VLOOKUP(A12,'All Meals'!$A$12:$S$62,12))=\"\",0,(VLOOKUP(A12,'All Meals'!$A$12:$S$62,12))))","v":null},{"$f":"IF(B12=0,\"\",IF((VLOOKUP(A12,'All Meals'!$A$12:$S$62,15))=\"\",0,(VLOOKUP(A12,'All Meals'!$A$12:$S$62,15))))","v":null},{"$f":"IF(B12=0,\"\",IF((VLOOKUP(A12,'All Meals'!$A$12:$S$62,18))=\"\",0,(VLOOKUP(A12,'All Meals'!$A$12:$S$62,18))))","v":null},{"$f":"IF(B12=0,\"\",IF(E12=\"\",\"No\",IF(E12>=1,\"Yes\",\"No\")))","v":null},{"$f":"IF(B12=0,\"\",IF((VLOOKUP(A12,'All Meals'!$A$12:$S$62,4))=\"\",0,(VLOOKUP(A12,'All Meals'!$A$12:$S$62,4))))","v":null},{"$f":"IF(B12=0,\"\",IF((VLOOKUP(A12,'All Meals'!$A$12:$S$62,5))=\"\",0,(VLOOKUP(A12,'All Meals'!$A$12:$S$62,5))))","v":null},{"$f":"IF(B12=0,\"\",IF((VLOOKUP(A12,'All Meals'!$A$12:$S$62,6))=\"\",0,(VLOOKUP(A12,'All Meals'!$A$12:$S$62,6))))","v":null},{"$f":"IF(B12=0,\"\",IF(SUM(J12-L12)>=1,\"Yes\",\"No\"))","v":null},{"$f":"IF(B12=0,\"\",IF((VLOOKUP(A12,'All Meals'!$A$12:$S$62,19))=\"\",0,(VLOOKUP(A12,'All Meals'!$A$12:$S$62,19))))","v":null},{"$f":"IF(B12=0,\"\",IF(N12=\"\",\"No\",IF(N12>=1,\"Yes\",\"No\")))","v":null}]
[1,{"$f":"INDEX(meals,A13)","v":null},7,null,{"$f":"IF(B13=0,\"\",IF((VLOOKUP(A13,'All Meals'!$A$12:$S$62,9))=\"\",0,(VLOOKUP(A13,'All Meals'!$A$12:$S$62,9))))","v":null},{"$f":"IF(B13=0,\"\",IF((VLOOKUP(A13,'All Meals'!$A$12:$S$62,12))=\"\",0,(VLOOKUP(A13,'All Meals'!$A$12:$S$62,12))))","v":null},{"$f":"IF(B13=0,\"\",IF((VLOOKUP(A13,'All Meals'!$A$12:$S$62,15))=\"\",0,(VLOOKUP(A13,'All Meals'!$A$12:$S$62,15))))","v":null},{"$f":"IF(B13=0,\"\",IF((VLOOKUP(A13,'All Meals'!$A$12:$S$62,18))=\"\",0,(VLOOKUP(A13,'All Meals'!$A$12:$S$62,18))))","v":null},{"$f":"IF(B13=0,\"\",IF(E13=\"\",\"No\",IF(E13>=1,\"Yes\",\"No\")))","v":null},{"$f":"IF(B13=0,\"\",IF((VLOOKUP(A13,'All Meals'!$A$12:$S$62,4))=\"\",0,(VLOOKUP(A13,'All Meals'!$A$12:$S$62,4))))","v":null},{"$f":"IF(B13=0,\"\",IF((VLOOKUP(A13,'All Meals'!$A$12:$S$62,5))=\"\",0,(VLOOKUP(A13,'All Meals'!$A$12:$S$62,5))))","v":null},{"$f":"IF(B13=0,\"\",IF((VLOOKUP(A13,'All Meals'!$A$12:$S$62,6))=\"\",0,(VLOOKUP(A13,'All Meals'!$A$12:$S$62,6))))","v":null},{"$f":"IF(B13=0,\"\",IF(SUM(J13-L13)>=1,\"Yes\",\"No\"))","v":null},{"$f":"IF(B13=0,\"\",IF((VLOOKUP(A13,'All Meals'!$A$12:$S$62,19))=\"\",0,(VLOOKUP(A13,'All Meals'!$A$12:$S$62,19))))","v":null},{"$f":"IF(B13=0,\"\",IF(N13=\"\",\"No\",IF(N13>=1,\"Yes\",\"No\")))","v":null},null,"Fraction Calculator: \nUse this calculator to add the number of cups.",null,null,1,{"$f":"INDEX(Cups,T13)","v":null}]
[1,{"$f":"INDEX(meals,A14)","v":null},8,null,{"$f":"IF(B14=0,\"\",IF((VLOOKUP(A14,'All Meals'!$A$12:$S$62,9))=\"\",0,(VLOOKUP(A14,'All Meals'!$A$12:$S$62,9))))","v":null},{"$f":"IF(B14=0,\"\",IF((VLOOKUP(A14,'All Meals'!$A$12:$S$62,12))=\"\",0,(VLOOKUP(A14,'All Meals'!$A$12:$S$62,12))))","v":null},{"$f":"IF(B14=0,\"\",IF((VLOOKUP(A14,'All Meals'!$A$12:$S$62,15))=\"\",0,(VLOOKUP(A14,'All Meals'!$A$12:$S$62,15))))","v":null},{"$f":"IF(B14=0,\"\",IF((VLOOKUP(A14,'All Meals'!$A$12:$S$62,18))=\"\",0,(VLOOKUP(A14,'All Meals'!$A$12:$S$62,18))))","v":null},{"$f":"IF(B14=0,\"\",IF(E14=\"\",\"No\",IF(E14>=1,\"Yes\",\"No\")))","v":null},{"$f":"IF(B14=0,\"\",IF((VLOOKUP(A14,'All Meals'!$A$12:$S$62,4))=\"\",0,(VLOOKUP(A14,'All Meals'!$A$12:$S$62,4))))","v":null},{"$f":"IF(B14=0,\"\",IF((VLOOKUP(A14,'All Meals'!$A$12:$S$62,5))=\"\",0,(VLOOKUP(A14,'All Meals'!$A$12:$S$62,5))))","v":null},{"$f":"IF(B14=0,\"\",IF((VLOOKUP(A14,'All Meals'!$A$12:$S$62,6))=\"\",0,(VLOOKUP(A14,'All Meals'!$A$12:$S$62,6))))","v":null},{"$f":"IF(B14=0,\"\",IF(SUM(J14-L14)>=1,\"Yes\",\"No\"))","v":null},{"$f":"IF(B14=0,\"\",IF((VLOOKUP(A14,'All Meals'!$A$12:$S$62,19))=\"\",0,(VLOOKUP(A14,'All Meals'!$A$12:$S$62,19))))","v":null},{"$f":"IF(B14=0,\"\",IF(N14=\"\",\"No\",IF(N14>=1,\"Yes\",\"No\")))","v":null},null,null,null,null,1,{"$f":"INDEX(Cups,T14)","v":null}]
[1,{"$f":"INDEX(meals,A15)","v":null},9,null,{"$f":"IF(B15=0,\"\",IF((VLOOKUP(A15,'All Meals'!$A$12:$S$62,9))=\"\",0,(VLOOKUP(A15,'All Meals'!$A$12:$S$62,9))))","v":null},{"$f":"IF(B15=0,\"\",IF((VLOOKUP(A15,'All Meals'!$A$12:$S$62,12))=\"\",0,(VLOOKUP(A15,'All Meals'!$A$12:$S$62,12))))","v":null},{"$f":"IF(B15=0,\"\",IF((VLOOKUP(A15,'All Meals'!$A$12:$S$62,15))=\"\",0,(VLOOKUP(A15,'All Meals'!$A$12:$S$62,15))))","v":null},{"$f":"IF(B15=0,\"\",IF((VLOOKUP(A15,'All Meals'!$A$12:$S$62,18))=\"\",0,(VLOOKUP(A15,'All Meals'!$A$12:$S$62,18))))","v":null},{"$f":"IF(B15=0,\"\",IF(E15=\"\",\"No\",IF(E15>=1,\"Yes\",\"No\")))","v":null},{"$f":"IF(B15=0,\"\",IF((VLOOKUP(A15,'All Meals'!$A$12:$S$62,4))=\"\",0,(VLOOKUP(A15,'All Meals'!$A$12:$S$62,4))))","v":null},{"$f":"IF(B15=0,\"\",IF((VLOOKUP(A15,'All Meals'!$A$12:$S$62,5))=\"\",0,(VLOOKUP(A15,'All Meals'!$A$12:$S$62,5))))","v":null},{"$f":"IF(B15=0,\"\",IF((VLOOKUP(A15,'All Meals'!$A$12:$S$62,6))=\"\",0,(VLOOKUP(A15,'All Meals'!$A$12:$S$62,6))))","v":null},{"$f":"IF(B15=0,\"\",IF(SUM(J15-L15)>=1,\"Yes\",\"No\"))","v":null},{"$f":"IF(B15=0,\"\",IF((VLOOKUP(A15,'All Meals'!$A$12:$S$62,19))=\"\",0,(VLOOKUP(A15,'All Meals'!$A$12:$S$62,19))))","v":null},{"$f":"IF(B15=0,\"\",IF(N15=\"\",\"No\",IF(N15>=1,\"Yes\",\"No\")))","v":null},null,null,null,null,1,{"$f":"INDEX(Cups,T15)","v":null}]
[1,{"$f":"INDEX(meals,A16)","v":null},10,null,{"$f":"IF(B16=0,\"\",IF((VLOOKUP(A16,'All Meals'!$A$12:$S$62,9))=\"\",0,(VLOOKUP(A16,'All Meals'!$A$12:$S$62,9))))","v":null},{"$f":"IF(B16=0,\"\",IF((VLOOKUP(A16,'All Meals'!$A$12:$S$62,12))=\"\",0,(VLOOKUP(A16,'All Meals'!$A$12:$S$62,12))))","v":null},{"$f":"IF(B16=0,\"\",IF((VLOOKUP(A16,'All Meals'!$A$12:$S$62,15))=\"\",0,(VLOOKUP(A16,'All Meals'!$A$12:$S$62,15))))","v":null},{"$f":"IF(B16=0,\"\",IF((VLOOKUP(A16,'All Meals'!$A$12:$S$62,18))=\"\",0,(VLOOKUP(A16,'All Meals'!$A$12:$S$62,18))))","v":null},{"$f":"IF(B16=0,\"\",IF(E16=\"\",\"No\",IF(E16>=1,\"Yes\",\"No\")))","v":null},{"$f":"IF(B16=0,\"\",IF((VLOOKUP(A16,'All Meals'!$A$12:$S$62,4))=\"\",0,(VLOOKUP(A16,'All Meals'!$A$12:$S$62,4))))","v":null},{"$f":"IF(B16=0,\"\",IF((VLOOKUP(A16,'All Meals'!$A$12:$S$62,5))=\"\",0,(VLOOKUP(A16,'All Meals'!$A$12:$S$62,5))))","v":null},{"$f":"IF(B16=0,\"\",IF((VLOOKUP(A16,'All Meals'!$A$12:$S$62,6))=\"\",0,(VLOOKUP(A16,'All Meals'!$A$12:$S$62,6))))","v":null},{"$f":"IF(B16=0,\"\",IF(SUM(J16-L16)>=1,\"Yes\",\"No\"))","v":null},{"$f":"IF(B16=0,\"\",IF((VLOOKUP(A16,'All Meals'!$A$12:$S$62,19))=\"\",0,(VLOOKUP(A16,'All Meals'!$A$12:$S$62,19))))","v":null},{"$f":"IF(B16=0,\"\",IF(N16=\"\",\"No\",IF(N16>=1,\"Yes\",\"No\")))","v":null},null,null,null,null,1,{"$f":"INDEX(Cups,T16)","v":null}]
[1,{"$f":"INDEX(meals,A17)","v":null},11,null,{"$f":"IF(B17=0,\"\",IF((VLOOKUP(A17,'All Meals'!$A$12:$S$62,9))=\"\",0,(VLOOKUP(A17,'All Meals'!$A$12:$S$62,9))))","v":null},{"$f":"IF(B17=0,\"\",IF((VLOOKUP(A17,'All Meals'!$A$12:$S$62,12))=\"\",0,(VLOOKUP(A17,'All Meals'!$A$12:$S$62,12))))","v":null},{"$f":"IF(B17=0,\"\",IF((VLOOKUP(A17,'All Meals'!$A$12:$S$62,15))=\"\",0,(VLOOKUP(A17,'All Meals'!$A$12:$S$62,15))))","v":null},{"$f":"IF(B17=0,\"\",IF((VLOOKUP(A17,'All Meals'!$A$12:$S$62,18))=\"\",0,(VLOOKUP(A17,'All Meals'!$A$12:$S$62,18))))","v":null},{"$f":"IF(B17=0,\"\",IF(E17=\"\",\"No\",IF(E17>=1,\"Yes\",\"No\")))","v":null},{"$f":"IF(B17=0,\"\",IF((VLOOKUP(A17,'All Meals'!$A$12:$S$62,4))=\"\",0,(VLOOKUP(A17,'All Meals'!$A$12:$S$62,4))))","v":null},{"$f":"IF(B17=0,\"\",IF((VLOOKUP(A17,'All Meals'!$A$12:$S$62,5))=\"\",0,(VLOOKUP(A17,'All Meals'!$A$12:$S$62,5))))","v":null},{"$f":"IF(B17=0,\"\",IF((VLOOKUP(A17,'All Meals'!$A$12:$S$62,6))=\"\",0,(VLOOKUP(A17,'All Meals'!$A$12:$S$62,6))))","v":null},{"$f":"IF(B17=0,\"\",IF(SUM(J17-L17)>=1,\"Yes\",\"No\"))","v":null},{"$f":"IF(B17=0,\"\",IF((VLOOKUP(A17,'All Meals'!$A$12:$S$62,19))=\"\",0,(VLOOKUP(A17,'All Meals'!$A$12:$S$62,19))))","v":null},{"$f":"IF(B17=0,\"\",IF(N17=\"\",\"No\",IF(N17>=1,\"Yes\",\"No\")))","v":null},null,null,null,null,1,{"$f":"INDEX(Cups,T17)","v":null}]
[1,{"$f":"INDEX(meals,A18)","v":null},12,null,{"$f":"IF(B18=0,\"\",IF((VLOOKUP(A18,'All Meals'!$A$12:$S$62,9))=\"\",0,(VLOOKUP(A18,'All Meals'!$A$12:$S$62,9))))","v":null},{"$f":"IF(B18=0,\"\",IF((VLOOKUP(A18,'All Meals'!$A$12:$S$62,12))=\"\",0,(VLOOKUP(A18,'All Meals'!$A$12:$S$62,12))))","v":null},{"$f":"IF(B18=0,\"\",IF((VLOOKUP(A18,'All Meals'!$A$12:$S$62,15))=\"\",0,(VLOOKUP(A18,'All Meals'!$A$12:$S$62,15))))","v":null},{"$f":"IF(B18=0,\"\",IF((VLOOKUP(A18,'All Meals'!$A$12:$S$62,18))=\"\",0,(VLOOKUP(A18,'All Meals'!$A$12:$S$62,18))))","v":null},{"$f":"IF(B18=0,\"\",IF(E18=\"\",\"No\",IF(E18>=1,\"Yes\",\"No\")))","v":null},{"$f":"IF(B18=0,\"\",IF((VLOOKUP(A18,'All Meals'!$A$12:$S$62,4))=\"\",0,(VLOOKUP(A18,'All Meals'!$A$12:$S$62,4))))","v":null},{"$f":"IF(B18=0,\"\",IF((VLOOKUP(A18,'All Meals'!$A$12:$S$62,5))=\"\",0,(VLOOKUP(A18,'All Meals'!$A$12:$S$62,5))))","v":null},{"$f":"IF(B18=0,\"\",IF((VLOOKUP(A18,'All Meals'!$A$12:$S$62,6))=\"\",0,(VLOOKUP(A18,'All Meals'!$A$12:$S$62,6))))","v":null},{"$f":"IF(B18=0,\"\",IF(SUM(J18-L18)>=1,\"Yes\",\"No\"))","v":null},{"$f":"IF(B18=0,\"\",IF((VLOOKUP(A18,'All Meals'!$A$12:$S$62,19))=\"\",0,(VLOOKUP(A18,'All Meals'!$A$12:$S$62,19))))","v":null},{"$f":"IF(B18=0,\"\",IF(N18=\"\",\"No\",IF(N18>=1,\"Yes\",\"No\")))","v":null},null,null,null,null,null,null,{"$f":"SUM(U13:U17)","v":null}]
[1,{"$f":"INDEX(meals,A19)","v":null},13,null,{"$f":"IF(B19=0,\"\",IF((VLOOKUP(A19,'All Meals'!$A$12:$S$62,9))=\"\",0,(VLOOKUP(A19,'All Meals'!$A$12:$S$62,9))))","v":null},{"$f":"IF(B19=0,\"\",IF((VLOOKUP(A19,'All Meals'!$A$12:$S$62,12))=\"\",0,(VLOOKUP(A19,'All Meals'!$A$12:$S$62,12))))","v":null},{"$f":"IF(B19=0,\"\",IF((VLOOKUP(A19,'All Meals'!$A$12:$S$62,15))=\"\",0,(VLOOKUP(A19,'All Meals'!$A$12:$S$62,15))))","v":null},{"$f":"IF(B19=0,\"\",IF((VLOOKUP(A19,'All Meals'!$A$12:$S$62,18))=\"\",0,(VLOOKUP(A19,'All Meals'!$A$12:$S$62,18))))","v":null},{"$f":"IF(B19=0,\"\",IF(E19=\"\",\"No\",IF(E19>=1,\"Yes\",\"No\")))","v":null},{"$f":"IF(B19=0,\"\",IF((VLOOKUP(A19,'All Meals'!$A$12:$S$62,4))=\"\",0,(VLOOKUP(A19,'All Meals'!$A$12:$S$62,4))))","v":null},{"$f":"IF(B19=0,\"\",IF((VLOOKUP(A19,'All Meals'!$A$12:$S$62,5))=\"\",0,(VLOOKUP(A19,'All Meals'!$A$12:$S$62,5))))","v":null},{"$f":"IF(B19=0,\"\",IF((VLOOKUP(A19,'All Meals'!$A$12:$S$62,6))=\"\",0,(VLOOKUP(A19,'All Meals'!$A$12:$S$62,6))))","v":null},{"$f":"IF(B19=0,\"\",IF(SUM(J19-L19)>=1,\"Yes\",\"No\"))","v":null},{"$f":"IF(B19=0,\"\",IF((VLOOKUP(A19,'All Meals'!$A$12:$S$62,19))=\"\",0,(VLOOKUP(A19,'All Meals'!$A$12:$S$62,19))))","v":null},{"$f":"IF(B19=0,\"\",IF(N19=\"\",\"No\",IF(N19>=1,\"Yes\",\"No\")))","v":null},null,"Decimal/Fraction Converter\n(Rounded down to the nearest 1/8)"]
[1,{"$f":"INDEX(meals,A20)","v":null},14,null,{"$f":"IF(B20=0,\"\",IF((VLOOKUP(A20,'All Meals'!$A$12:$S$62,9))=\"\",0,(VLOOKUP(A20,'All Meals'!$A$12:$S$62,9))))","v":null},{"$f":"IF(B20=0,\"\",IF((VLOOKUP(A20,'All Meals'!$A$12:$S$62,12))=\"\",0,(VLOOKUP(A20,'All Meals'!$A$12:$S$62,12))))","v":null},{"$f":"IF(B20=0,\"\",IF((VLOOKUP(A20,'All Meals'!$A$12:$S$62,15))=\"\",0,(VLOOKUP(A20,'All Meals'!$A$12:$S$62,15))))","v":null},{"$f":"IF(B20=0,\"\",IF((VLOOKUP(A20,'All Meals'!$A$12:$S$62,18))=\"\",0,(VLOOKUP(A20,'All Meals'!$A$12:$S$62,18))))","v":null},{"$f":"IF(B20=0,\"\",IF(E20=\"\",\"No\",IF(E20>=1,\"Yes\",\"No\")))","v":null},{"$f":"IF(B20=0,\"\",IF((VLOOKUP(A20,'All Meals'!$A$12:$S$62,4))=\"\",0,(VLOOKUP(A20,'All Meals'!$A$12:$S$62,4))))","v":null},{"$f":"IF(B20=0,\"\",IF((VLOOKUP(A20,'All Meals'!$A$12:$S$62,5))=\"\",0,(VLOOKUP(A20,'All Meals'!$A$12:$S$62,5))))","v":null},{"$f":"IF(B20=0,\"\",IF((VLOOKUP(A20,'All Meals'!$A$12:$S$62,6))=\"\",0,(VLOOKUP(A20,'All Meals'!$A$12:$S$62,6))))","v":null},{"$f":"IF(B20=0,\"\",IF(SUM(J20-L20)>=1,\"Yes\",\"No\"))","v":null},{"$f":"IF(B20=0,\"\",IF((VLOOKUP(A20,'All Meals'!$A$12:$S$62,19))=\"\",0,(VLOOKUP(A20,'All Meals'!$A$12:$S$62,19))))","v":null},{"$f":"IF(B20=0,\"\",IF(N20=\"\",\"No\",IF(N20>=1,\"Yes\",\"No\")))","v":null},null,"Enter the decimal you wish to convert to a fraction in the box:"]
[1,{"$f":"INDEX(meals,A21)","v":null},15,null,{"$f":"IF(B21=0,\"\",IF((VLOOKUP(A21,'All Meals'!$A$12:$S$62,9))=\"\",0,(VLOOKUP(A21,'All Meals'!$A$12:$S$62,9))))","v":null},{"$f":"IF(B21=0,\"\",IF((VLOOKUP(A21,'All Meals'!$A$12:$S$62,12))=\"\",0,(VLOOKUP(A21,'All Meals'!$A$12:$S$62,12))))","v":null},{"$f":"IF(B21=0,\"\",IF((VLOOKUP(A21,'All Meals'!$A$12:$S$62,15))=\"\",0,(VLOOKUP(A21,'All Meals'!$A$12:$S$62,15))))","v":null},{"$f":"IF(B21=0,\"\",IF((VLOOKUP(A21,'All Meals'!$A$12:$S$62,18))=\"\",0,(VLOOKUP(A21,'All Meals'!$A$12:$S$62,18))))","v":null},{"$f":"IF(B21=0,\"\",IF(E21=\"\",\"No\",IF(E21>=1,\"Yes\",\"No\")))","v":null},{"$f":"IF(B21=0,\"\",IF((VLOOKUP(A21,'All Meals'!$A$12:$S$62,4))=\"\",0,(VLOOKUP(A21,'All Meals'!$A$12:$S$62,4))))","v":null},{"$f":"IF(B21=0,\"\",IF((VLOOKUP(A21,'All Meals'!$A$12:$S$62,5))=\"\",0,(VLOOKUP(A21,'All Meals'!$A$12:$S$62,5))))","v":null},{"$f":"IF(B21=0,\"\",IF((VLOOKUP(A21,'All Meals'!$A$12:$S$62,6))=\"\",0,(VLOOKUP(A21,'All Meals'!$A$12:$S$62,6))))","v":null},{"$f":"IF(B21=0,\"\",IF(SUM(J21-L21)>=1,\"Yes\",\"No\"))","v":null},{"$f":"IF(B21=0,\"\",IF((VLOOKUP(A21,'All Meals'!$A$12:$S$62,19))=\"\",0,(VLOOKUP(A21,'All Meals'!$A$12:$S$62,19))))","v":null},{"$f":"IF(B21=0,\"\",IF(N21=\"\",\"No\",IF(N21>=1,\"Yes\",\"No\")))","v":null}]
[1,{"$f":"INDEX(meals,A22)","v":null},16,null,{"$f":"IF(B22=0,\"\",IF((VLOOKUP(A22,'All Meals'!$A$12:$S$62,9))=\"\",0,(VLOOKUP(A22,'All Meals'!$A$12:$S$62,9))))","v":null},{"$f":"IF(B22=0,\"\",IF((VLOOKUP(A22,'All Meals'!$A$12:$S$62,12))=\"\",0,(VLOOKUP(A22,'All Meals'!$A$12:$S$62,12))))","v":null},{"$f":"IF(B22=0,\"\",IF((VLOOKUP(A22,'All Meals'!$A$12:$S$62,15))=\"\",0,(VLOOKUP(A22,'All Meals'!$A$12:$S$62,15))))","v":null},{"$f":"IF(B22=0,\"\",IF((VLOOKUP(A22,'All Meals'!$A$12:$S$62,18))=\"\",0,(VLOOKUP(A22,'All Meals'!$A$12:$S$62,18))))","v":null},{"$f":"IF(B22=0,\"\",IF(E22=\"\",\"No\",IF(E22>=1,\"Yes\",\"No\")))","v":null},{"$f":"IF(B22=0,\"\",IF((VLOOKUP(A22,'All Meals'!$A$12:$S$62,4))=\"\",0,(VLOOKUP(A22,'All Meals'!$A$12:$S$62,4))))","v":null},{"$f":"IF(B22=0,\"\",IF((VLOOKUP(A22,'All Meals'!$A$12:$S$62,5))=\"\",0,(VLOOKUP(A22,'All Meals'!$A$12:$S$62,5))))","v":null},{"$f":"IF(B22=0,\"\",IF((VLOOKUP(A22,'All Meals'!$A$12:$S$62,6))=\"\",0,(VLOOKUP(A22,'All Meals'!$A$12:$S$62,6))))","v":null},{"$f":"IF(B22=0,\"\",IF(SUM(J22-L22)>=1,\"Yes\",\"No\"))","v":null},{"$f":"IF(B22=0,\"\",IF((VLOOKUP(A22,'All Meals'!$A$12:$S$62,19))=\"\",0,(VLOOKUP(A22,'All Meals'!$A$12:$S$62,19))))","v":null},{"$f":"IF(B22=0,\"\",IF(N22=\"\",\"No\",IF(N22>=1,\"Yes\",\"No\")))","v":null},null,"The decimal entered above has been converted to the following fraction:",null,null,null,null,{"$f":"FLOOR(V20,0.125)","v":null}]
[1,{"$f":"INDEX(meals,A23)","v":null},17,null,{"$f":"IF(B23=0,\"\",IF((VLOOKUP(A23,'All Meals'!$A$12:$S$62,9))=\"\",0,(VLOOKUP(A23,'All Meals'!$A$12:$S$62,9))))","v":null},{"$f":"IF(B23=0,\"\",IF((VLOOKUP(A23,'All Meals'!$A$12:$S$62,12))=\"\",0,(VLOOKUP(A23,'All Meals'!$A$12:$S$62,12))))","v":null},{"$f":"IF(B23=0,\"\",IF((VLOOKUP(A23,'All Meals'!$A$12:$S$62,15))=\"\",0,(VLOOKUP(A23,'All Meals'!$A$12:$S$62,15))))","v":null},{"$f":"IF(B23=0,\"\",IF((VLOOKUP(A23,'All Meals'!$A$12:$S$62,18))=\"\",0,(VLOOKUP(A23,'All Meals'!$A$12:$S$62,18))))","v":null},{"$f":"IF(B23=0,\"\",IF(E23=\"\",\"No\",IF(E23>=1,\"Yes\",\"No\")))","v":null},{"$f":"IF(B23=0,\"\",IF((VLOOKUP(A23,'All Meals'!$A$12:$S$62,4))=\"\",0,(VLOOKUP(A23,'All Meals'!$A$12:$S$62,4))))","v":null},{"$f":"IF(B23=0,\"\",IF((VLOOKUP(A23,'All Meals'!$A$12:$S$62,5))=\"\",0,(VLOOKUP(A23,'All Meals'!$A$12:$S$62,5))))","v":null},{"$f":"IF(B23=0,\"\",IF((VLOOKUP(A23,'All Meals'!$A$12:$S$62,6))=\"\",0,(VLOOKUP(A23,'All Meals'!$A$12:$S$62,6))))","v":null},{"$f":"IF(B23=0,\"\",IF(SUM(J23-L23)>=1,\"Yes\",\"No\"))","v":null},{"$f":"IF(B23=0,\"\",IF((VLOOKUP(A23,'All Meals'!$A$12:$S$62,19))=\"\",0,(VLOOKUP(A23,'All Meals'!$A$12:$S$62,19))))","v":null},{"$f":"IF(B23=0,\"\",IF(N23=\"\",\"No\",IF(N23>=1,\"Yes\",\"No\")))","v":null}]
[1,{"$f":"INDEX(meals,A24)","v":null},18,null,{"$f":"IF(B24=0,\"\",IF((VLOOKUP(A24,'All Meals'!$A$12:$S$62,9))=\"\",0,(VLOOKUP(A24,'All Meals'!$A$12:$S$62,9))))","v":null},{"$f":"IF(B24=0,\"\",IF((VLOOKUP(A24,'All Meals'!$A$12:$S$62,12))=\"\",0,(VLOOKUP(A24,'All Meals'!$A$12:$S$62,12))))","v":null},{"$f":"IF(B24=0,\"\",IF((VLOOKUP(A24,'All Meals'!$A$12:$S$62,15))=\"\",0,(VLOOKUP(A24,'All Meals'!$A$12:$S$62,15))))","v":null},{"$f":"IF(B24=0,\"\",IF((VLOOKUP(A24,'All Meals'!$A$12:$S$62,18))=\"\",0,(VLOOKUP(A24,'All Meals'!$A$12:$S$62,18))))","v":null},{"$f":"IF(B24=0,\"\",IF(E24=\"\",\"No\",IF(E24>=1,\"Yes\",\"No\")))","v":null},{"$f":"IF(B24=0,\"\",IF((VLOOKUP(A24,'All Meals'!$A$12:$S$62,4))=\"\",0,(VLOOKUP(A24,'All Meals'!$A$12:$S$62,4))))","v":null},{"$f":"IF(B24=0,\"\",IF((VLOOKUP(A24,'All Meals'!$A$12:$S$62,5))=\"\",0,(VLOOKUP(A24,'All Meals'!$A$12:$S$62,5))))","v":null},{"$f":"IF(B24=0,\"\",IF((VLOOKUP(A24,'All Meals'!$A$12:$S$62,6))=\"\",0,(VLOOKUP(A24,'All Meals'!$A$12:$S$62,6))))","v":null},{"$f":"IF(B24=0,\"\",IF(SUM(J24-L24)>=1,\"Yes\",\"No\"))","v":null},{"$f":"IF(B24=0,\"\",IF((VLOOKUP(A24,'All Meals'!$A$12:$S$62,19))=\"\",0,(VLOOKUP(A24,'All Meals'!$A$12:$S$62,19))))","v":null},{"$f":"IF(B24=0,\"\",IF(N24=\"\",\"No\",IF(N24>=1,\"Yes\",\"No\")))","v":null}]
[1,{"$f":"INDEX(meals,A25)","v":null},19,null,{"$f":"IF(B25=0,\"\",IF((VLOOKUP(A25,'All Meals'!$A$12:$S$62,9))=\"\",0,(VLOOKUP(A25,'All Meals'!$A$12:$S$62,9))))","v":null},{"$f":"IF(B25=0,\"\",IF((VLOOKUP(A25,'All Meals'!$A$12:$S$62,12))=\"\",0,(VLOOKUP(A25,'All Meals'!$A$12:$S$62,12))))","v":null},{"$f":"IF(B25=0,\"\",IF((VLOOKUP(A25,'All Meals'!$A$12:$S$62,15))=\"\",0,(VLOOKUP(A25,'All Meals'!$A$12:$S$62,15))))","v":null},{"$f":"IF(B25=0,\"\",IF((VLOOKUP(A25,'All Meals'!$A$12:$S$62,18))=\"\",0,(VLOOKUP(A25,'All Meals'!$A$12:$S$62,18))))","v":null},{"$f":"IF(B25=0,\"\",IF(E25=\"\",\"No\",IF(E25>=1,\"Yes\",\"No\")))","v":null},{"$f":"IF(B25=0,\"\",IF((VLOOKUP(A25,'All Meals'!$A$12:$S$62,4))=\"\",0,(VLOOKUP(A25,'All Meals'!$A$12:$S$62,4))))","v":null},{"$f":"IF(B25=0,\"\",IF((VLOOKUP(A25,'All Meals'!$A$12:$S$62,5))=\"\",0,(VLOOKUP(A25,'All Meals'!$A$12:$S$62,5))))","v":null},{"$f":"IF(B25=0,\"\",IF((VLOOKUP(A25,'All Meals'!$A$12:$S$62,6))=\"\",0,(VLOOKUP(A25,'All Meals'!$A$12:$S$62,6))))","v":null},{"$f":"IF(B25=0,\"\",IF(SUM(J25-L25)>=1,\"Yes\",\"No\"))","v":null},{"$f":"IF(B25=0,\"\",IF((VLOOKUP(A25,'All Meals'!$A$12:$S$62,19))=\"\",0,(VLOOKUP(A25,'All Meals'!$A$12:$S$62,19))))","v":null},{"$f":"IF(B25=0,\"\",IF(N25=\"\",\"No\",IF(N25>=1,\"Yes\",\"No\")))","v":null}]
[1,{"$f":"INDEX(meals,A26)","v":null},20,null,{"$f":"IF(B26=0,\"\",IF((VLOOKUP(A26,'All Meals'!$A$12:$S$62,9))=\"\",0,(VLOOKUP(A26,'All Meals'!$A$12:$S$62,9))))","v":null},{"$f":"IF(B26=0,\"\",IF((VLOOKUP(A26,'All Meals'!$A$12:$S$62,12))=\"\",0,(VLOOKUP(A26,'All Meals'!$A$12:$S$62,12))))","v":null},{"$f":"IF(B26=0,\"\",IF((VLOOKUP(A26,'All Meals'!$A$12:$S$62,15))=\"\",0,(VLOOKUP(A26,'All Meals'!$A$12:$S$62,15))))","v":null},{"$f":"IF(B26=0,\"\",IF((VLOOKUP(A26,'All Meals'!$A$12:$S$62,18))=\"\",0,(VLOOKUP(A26,'All Meals'!$A$12:$S$62,18))))","v":null},{"$f":"IF(B26=0,\"\",IF(E26=\"\",\"No\",IF(E26>=1,\"Yes\",\"No\")))","v":null},{"$f":"IF(B26=0,\"\",IF((VLOOKUP(A26,'All Meals'!$A$12:$S$62,4))=\"\",0,(VLOOKUP(A26,'All Meals'!$A$12:$S$62,4))))","v":null},{"$f":"IF(B26=0,\"\",IF((VLOOKUP(A26,'All Meals'!$A$12:$S$62,5))=\"\",0,(VLOOKUP(A26,'All Meals'!$A$12:$S$62,5))))","v":null},{"$f":"IF(B26=0,\"\",IF((VLOOKUP(A26,'All Meals'!$A$12:$S$62,6))=\"\",0,(VLOOKUP(A26,'All Meals'!$A$12:$S$62,6))))","v":null},{"$f":"IF(B26=0,\"\",IF(SUM(J26-L26)>=1,\"Yes\",\"No\"))","v":null},{"$f":"IF(B26=0,\"\",IF((VLOOKUP(A26,'All Meals'!$A$12:$S$62,19))=\"\",0,(VLOOKUP(A26,'All Meals'!$A$12:$S$62,19))))","v":null},{"$f":"IF(B26=0,\"\",IF(N26=\"\",\"No\",IF(N26>=1,\"Yes\",\"No\")))","v":null}]
[null,null,null,null,null,{"$f":"IF(B27=0,\"\",IF((VLOOKUP(A27,'All Meals'!$A$12:$S$62,12))=\"\",0,(VLOOKUP(A27,'All Meals'!$A$12:$S$62,12))))","v":null},null,null,null,{"$f":"SUM(J7:J26)","v":null},{"$f":"SUM(K7:K26)","v":null},{"$f":"SUM(L7:L26)","v":null}]
[null,null,null,null,null,{"$f":"IF(B28=0,\"\",IF((VLOOKUP(A28,'All Meals'!$A$12:$S$62,12))=\"\",0,(VLOOKUP(A28,'All Meals'!$A$12:$S$62,12))))","v":null},null,null,null,null,null,{"$f":"(J27-L27)","v":null}]

{"sheet":"Weekly Report","index":9,"n_rows":17,"n_cols":19,"rows_kept":17,"cut":false,"hidden":false,"merged":[[7,10,7,12],[8,10,9,11],[10,10,10,12],[10,13,10,14],[2,16,2,17],[3,16,3,17],[4,10,4,11],[5,10,5,11],[2,10,3,11],[2,18,2,19],[3,18,3,19],[0,0,0,8],[2,12,2,13],[2,14,2,15],[3,14,3,15],[3,12,3,13]]}
["Daily Requirement Summary\nBreakfast, Grades K-8"]
[]
["Go to instructions","Monday","Tuesday","Wednesday","Thursday","Friday","Weekly Total","Weekly Requirement (cups)","Weekly Requirement Check",null,"Weekly Fruit Juice Limit\n(no more than half of total fruit)",null,"Total Weekly Fruit",null,"Total Weekly Juice",null,"Percent of totally weekly fruit that is juice",null,"Weekly Requirement check"]
["Fruit, Vegetable, Fruit Juice or Vegetable Juice Servings",{"$f":"MIN(Monday!E7:E26)","v":null},{"$f":"MIN(Tuesday!E7:E26)","v":null},{"$f":"MIN(Wednesday!E7:E26)","v":null},{"$f":"MIN(Thursday!E7:E26)","v":null},{"$f":"MIN(Friday!E7:E26)","v":null},{"$f":"SUM(B4:F4)","v":null},5,{"$f":"IF(G4>=H4, \"Yes\", \"No\")","v":null},null,null,null,{"$f":"R6","v":null},null,{"$f":"R5","v":null},null,{"$f":"IF(ISERROR(O4/M4),0,O4/M4)","v":null},null,{"$f":"IF(Q4<=0.5, \"Yes\", \"No\")","v":null}]
[null,null,null,null,null,null,null,null,null,null,"Juice",null,{"$f":"MAX(Monday!F7:F26)","v":null},{"$f":"MAX(Tuesday!F7:F26)","v":null},{"$f":"MAX(Wednesday!F7:F26)","v":null},{"$f":"MAX(Thursday!F7:F26)","v":null},{"$f":"MAX(Friday!F7:F26)","v":null},{"$f":"SUM(M5:Q5)","v":null}]
[null,null,null,null,null,null,null,null,null,null,"fruit",null,{"$f":"MAX(Monday!E7:E26)","v":null},{"$f":"MAX(Tuesday!E7:E26)","v":null},{"$f":"MAX(Wednesday!E7:E26)","v":null},{"$f":"MAX(Thursday!E7:E26)","v":null},{"$f":"MAX(Friday!E7:E26)","v":null},{"$f":"SUM(M6:Q6)","v":null}]
[]
[null,"Monday","Tuesday","Wednesday","Thursday","Friday","Weekly Total","Weekly Requirement\n (oz equivalents)","Weekly Requirement Check",null,"Starchy vegetable fruit crediting",null,null,"Monday","Tuesday","Wednesday","Thursday","Friday","Weekly Total"]
["Minimum Grain",{"$f":"IF(COUNTIF(Monday!M7:M26,\"No\")>0, \"Check grains and m/ma crediting\", MIN(Monday!J7:J26))","v":null},{"$f":"IF(COUNTIF(Tuesday!M7:M26,\"No\")>0, \"Check grains and m/ma crediting\", MIN(Tuesday!J7:J26))","v":null},{"$f":"IF(COUNTIF(Wednesday!M7:M26,\"No\")>0, \"Check grains and m/ma crediting\", MIN(Wednesday!J7:J26))","v":null},{"$f":"IF(COUNTIF(Thursday!M7:M26,\"No\")>0, \"Check grains and m/ma crediting\", MIN(Thursday!J7:J26))","v":null},{"$f":"IF(COUNTIF(Friday!M7:M26,\"No\")>0, \"Check grains and m/ma crediting\", MIN(Friday!J7:J26))","v":null},{"$f":"SUM(B9:F9)","v":null},8,{"$f":"IF(G9>=H9, \"Yes\",\"no\")","v":null},null,"Must serve at least 2 cups of non-starchy prior to crediting starchy vegetables as fruit",null,"Non-starchy",{"$f":"MAX(Monday!G7:G26)","v":null},{"$f":"MAX(Tuesday!G7:G26)","v":null},{"$f":"MAX(Wednesday!G7:G26)","v":null},{"$f":"MAX(Thursday!G7:G26)","v":null},{"$f":"MAX(Friday!G7:G26)","v":null},{"$f":"SUM(N9:R9)","v":null}]
["Maximum Grain",{"$f":"IF(COUNTIF(Monday!M7:M26,\"No\")>0,\"Check grains and m/ma crediting\",MAX(Monday!J7:J26))","v":null},{"$f":"IF(COUNTIF(Tuesday!M7:M26,\"No\")>0,\"Check grains and m/ma crediting\",MAX(Tuesday!J7:J26))","v":null},{"$f":"IF(COUNTIF(Wednesday!M7:M26,\"No\")>0,\"Check grains and m/ma crediting\",MAX(Wednesday!J7:J26))","v":null},{"$f":"IF(COUNTIF(Thursday!M7:M26,\"No\")>0,\"Check grains and m/ma crediting\",MAX(Thursday!J7:J26))","v":null},{"$f":"IF(COUNTIF(Friday!M7:M26,\"No\")>0,\"Check grains and m/ma crediting\",MAX(Friday!J7:J26))","v":null},{"$f":"SUM(B10:F10)","v":null},10,{"$f":"IF(G10=0,\"\",IF(G10>H10,\"No\",\"Yes\"))","v":null},null,null,null,"Starchy",{"$f":"MAX(Monday!H7:H26)","v":null},{"$f":"MAX(Tuesday!H7:H26)","v":null},{"$f":"MAX(Wednesday!H7:H26)","v":null},{"$f":"MAX(Thursday!H7:H26)","v":null},{"$f":"MAX(Friday!H7:H26)","v":null},{"$f":"SUM(N10:R10)","v":null}]
["Whole Grain Rich Weekly Amount (oz eq)","Weekly Grains Total",{"$f":"IF(COUNTIF(B9:F9,\"Check grains and m/ma crediting\")>0,\"Check grains and m/ma crediting\",SUM(Monday:Friday!J7:J26)-SUM(Monday:Friday!L7:L26))","v":null},"Weekly Whole Grain-Rich Total",{"$f":"SUM(Monday:Friday!K7:K26)","v":null},"Percent of Whole Grain-Rich",{"$f":"IF(ISERROR(E11/C11),\"\",E11/C11)","v":null},1,{"$f":"IF(G11>=1,\"Yes\",IF(G11<0.5,\"No\",\"Check for Waiver\"))","v":null},null,"Starchy vegetable crediting check",null,null,{"$f":"IF(AND(S10>0,S9<2), \"Check starchy vegetable crediting\", \"\")","v":null}]
[]
[null,"Monday","Tuesday","Wednesday","Thursday","Friday","Weekly Total","Weekly Requirement (cups)","Weekly Requirement Check"]
["Minimum Fluid Milk (cups)",{"$f":"MIN(Monday!N7:N26)","v":null},{"$f":"MIN(Tuesday!N7:N26)","v":null},{"$f":"MIN(Wednesday!N7:N26)","v":null},{"$f":"MIN(Thursday!N7:N26)","v":null},{"$f":"MIN(Friday!N7:N26)","v":null},{"$f":"SUM(B14:F14)","v":null},5,{"$f":"IF(G14>=H14, \"Yes\", \"No\")","v":null}]
["Variety: Skim/fat-free unflavored, Skim/fat-free flavored, Low-fat (less than 1%), unflavored",{"$f":"Monday!W5","v":null},{"$f":"Tuesday!W5","v":null},{"$f":"Wednesday!W5","v":null},{"$f":"Thursday!W5","v":null},{"$f":"Friday!W5","v":null}]
["Low-fat (1% or less), flavored",{"$f":"Monday!W8","v":null},{"$f":"Tuesday!W8","v":null},{"$f":"Wednesday!W8","v":null},{"$f":"Thursday!W8","v":null},{"$f":"Friday!W8","v":null}]
["Reduced fat (2% fat) or whole, unflavored and flavored",{"$f":"Monday!W9","v":null},{"$f":"Tuesday!W9","v":null},{"$f":"Wednesday!W9","v":null},{"$f":"Thursday!W9","v":null},{"$f":"Friday!W9","v":null}]

{"sheet":"Nutrient Instructions","index":10,"n_rows":112,"n_cols":256,"rows_kept":112,"cut":false,"hidden":false,"merged":[]}
[]
["Simplified Nutrient Assessment Instructions"]
["REMEMBER TO PERIODICALLY SAVE THE WORKSHEET AS IT IS BEING COMPLETED!!!!",null,"REMEMBER TO PERIODICALLY SAVE THE WORKSHEET AS IT IS BEING COMPLETED!!!!","REMEMBER TO PERIODICALLY SAVE THE WORKSHEET AS IT IS BEING COMPLETED!!!!","REMEMBER TO PERIODICALLY SAVE THE WORKSHEET AS IT IS BEING COMPLETED!!!!","REMEMBER TO PERIODICALLY SAVE THE WORKSHEET AS IT IS BEING COMPLETED!!!!","REMEMBER TO PERIODICALLY SAVE THE WORKSHEET AS IT IS BEING COMPLETED!!!!","REMEMBER TO PERIODICALLY SAVE THE WORKSHEET AS IT IS BEING COMPLETED!!!!","REMEMBER TO PERIODICALLY SAVE THE WORKSHEET AS IT IS BEING COMPLETED!!!!","REMEMBER TO PERIODICALLY SAVE THE WORKSHEET AS IT IS BEING COMPLETED!!!!","REMEMBER TO PERIODICALLY SAVE THE WORKSHEET AS IT IS BEING COMPLETED!!!!","REMEMBER TO PERIODICALLY SAVE THE WORKSHEET AS IT IS BEING COMPLETED!!!!","REMEMBER TO PERIODICALLY SAVE THE WORKSHEET AS IT IS BEING COMPLETED!!!!","REMEMBER TO PERIODICALLY SAVE THE WORKSHEET AS IT IS BEING COMPLETED!!!!","REMEMBER TO PERIODICALLY SAVE THE WORKSHEET AS IT IS BEING COMPLETED!!!!","REMEMBER TO PERIODICALLY SAVE THE WORKSHEET AS IT IS BEING COMPLETED!!!!","REMEMBER TO PERIODICALLY SAVE THE WORKSHEET AS IT IS BEING COMPLETED!!!!","REMEMBER TO PERIODICALLY SAVE THE WORKSHEET AS IT IS BEING COMPLETED!!!!","REMEMBER TO PERIODICALLY SAVE THE WORKSHEET AS IT IS BEING COMPLETED!!!!","REMEMBER TO PERIODICALLY SAVE THE WORKSHEET AS IT IS BEING COMPLETED!!!!","REMEMBER TO PERIODICALLY SAVE THE WORKSHEET AS IT IS BEING COMPLETED!!!!","REMEMBER TO PERIODICALLY SAVE THE WORKSHEET AS IT IS BEING COMPLETED!!!!","REMEMBER TO PERIODICALLY SAVE THE WORKSHEET AS IT IS BEING COMPLETED!!!!","REMEMBER TO PERIODICALLY SAVE THE WORKSHEET AS IT IS BEING COMPLETED!!!!","REMEMBER TO PERIODICALLY SAVE THE WORKSHEET AS IT IS BEING COMPLETED!!!!","REMEMBER TO PERIODICALLY SAVE THE WORKSHEET AS IT IS BEING COMPLETED!!!!","REMEMBER TO PERIODICALLY SAVE THE WORKSHEET AS IT IS BEING COMPLETED!!!!","REMEMBER TO PERIODICALLY SAVE THE WORKSHEET AS IT IS BEING COMPLETED!!!!","REMEMBER TO PERIODICALLY SAVE THE WORKSHEET AS IT IS BEING COMPLETED!!!!","REMEMBER TO PERIODICALLY SAVE THE WORKSHEET AS IT IS BEING COMPLETED!!!!","REMEMBER TO PERIODICALLY SAVE THE WORKSHEET AS IT IS BEING COMPLETED!!!!","REMEMBER TO PERIODICALLY SAVE THE WORKSHEET AS IT IS BEING COMPLETED!!!!","REMEMBER TO PERIODICALLY SAVE THE WORKSHEET AS IT IS BEING COMPLETED!!!!","REMEMBER TO PERIODICALLY SAVE THE WORKSHEET AS IT IS BEING COMPLETED!!!!","REMEMBER TO PERIODICALLY SAVE THE WORKSHEET AS IT IS BEING COMPLETED!!!!","REMEMBER TO PERIODICALLY SAVE THE WORKSHEET AS IT IS BEING COMPLETED!!!!","REMEMBER TO PERIODICALLY SAVE THE WORKSHEET AS IT IS BEING COMPLETED!!!!","REMEMBER TO PERIODICALLY SAVE THE WORKSHEET AS IT IS BEING COMPLETED!!!!","REMEMBER TO PERIODICALLY SAVE THE WORKSHEET AS IT IS BEING COMPLETED!!!!","REMEMBER TO PERIODICALLY SAVE THE WORKSHEET AS IT IS BEING COMPLETED!!!!","REMEMBER TO PERIODICALLY SAVE THE WORKSHEET AS IT IS BEING COMPLETED!!!!","REMEMBER TO PERIODICALLY SAVE THE WORKSHEET AS IT IS BEING COMPLETED!!!!","REMEMBER TO PERIODICALLY SAVE THE WORKSHEET AS IT IS BEING COMPLETED!!!!","REMEMBER TO PERIODICALLY SAVE THE WORKSHEET AS IT IS BEING COMPLETED!!!!","REMEMBER TO PERIODICALLY SAVE THE WORKSHEET AS IT IS BEING COMPLETED!!!!","REMEMBER TO PERIODICALLY SAVE THE WORKSHEET AS IT IS BEING COMPLETED!!!!","REMEMBER TO PERIODICALLY SAVE THE WORKSHEET AS IT IS BEING COMPLETED!!!!","REMEMBER TO PERIODICALLY SAVE THE WORKSHEET AS IT IS BEING COMPLETED!!!!","REMEMBER TO PERIODICALLY SAVE THE WORKSHEET AS IT IS BEING COMPLETED!!!!","REMEMBER TO PERIODICALLY SAVE THE WORKSHEET AS IT IS BEING COMPLETED!!!!","REMEMBER TO PERIODICALLY SAVE THE WORKSHEET AS IT IS BEING COMPLETED!!!!","REMEMBER TO PERIODICALLY SAVE THE WORKSHEET AS IT IS BEING COMPLETED!!!!","REMEMBER TO PERIODICALLY SAVE THE WORKSHEET AS IT IS BEING COMPLETED!!!!","REMEMBER TO PERIODICALLY SAVE THE WORKSHEET AS IT IS BEING COMPLETED!!!!","REMEMBER TO PERIODICALLY SAVE THE WORKSHEET AS IT IS BEING COMPLETED!!!!","REMEMBER TO PERIODICALLY SAVE THE WORKSHEET AS IT IS BEING COMPLETED!!!!","REMEMBER TO PERIODICALLY SAVE THE WORKSHEET AS IT IS BEING COMPLETED!!!!","REMEMBER TO PERIODICALLY SAVE THE WORKSHEET AS IT IS BEING COMPLETED!!!!","REMEMBER TO PERIODICALLY SAVE THE WORKSHEET AS IT IS BEING COMPLETED!!!!","REMEMBER TO PERIODICALLY SAVE THE WORKSHEET AS IT IS BEING COMPLETED!!!!","REMEMBER TO PERIODICALLY SAVE THE WORKSHEET AS IT IS BEING COMPLETED!!!!","REMEMBER TO PERIODICALLY SAVE THE WORKSHEET AS IT IS BEING COMPLETED!!!!","REMEMBER TO PERIODICALLY SAVE THE WORKSHEET AS IT IS BEING COMPLETED!!!!","REMEMBER TO PERIODICALLY SAVE THE WORKSHEET AS IT IS BEING COMPLETED!!!!","REMEMBER TO PERIODICALLY SAVE THE WORKSHEET AS IT IS BEING COMPLETED!!!!","REMEMBER TO PERIODICALLY SAVE THE WORKSHEET AS IT IS BEING COMPLETED!!!!","REMEMBER TO PERIODICALLY SAVE THE WORKSHEET AS IT IS BEING COMPLETED!!!!","REMEMBER TO PERIODICALLY SAVE THE WORKSHEET AS IT IS BEING COMPLETED!!!!","REMEMBER TO PERIODICALLY SAVE THE WORKSHEET AS IT IS BEING COMPLETED!!!!","REMEMBER TO PERIODICALLY SAVE THE WORKSHEET AS IT IS BEING COMPLETED!!!!","REMEMBER TO PERIODICALLY SAVE THE WORKSHEET AS IT IS BEING COMPLETED!!!!","REMEMBER TO PERIODICALLY SAVE THE WORKSHEET AS IT IS BEING COMPLETED!!!!","REMEMBER TO PERIODICALLY SAVE THE WORKSHEET AS IT IS BEING COMPLETED!!!!","REMEMBER TO PERIODICALLY SAVE THE WORKSHEET AS IT IS BEING COMPLETED!!!!","REMEMBER TO PERIODICALLY SAVE THE WORKSHEET AS IT IS BEING COMPLETED!!!!","REMEMBER TO PERIODICALLY SAVE THE WORKSHEET AS IT IS BEING COMPLETED!!!!","REMEMBER TO PERIODICALLY SAVE THE WORKSHEET AS IT IS BEING COMPLETED!!!!","REMEMBER TO PERIODICALLY SAVE THE WORKSHEET AS IT IS BEING COMPLETED!!!!","REMEMBER TO PERIODICALLY SAVE THE WORKSHEET AS IT IS BEING COMPLETED!!!!","REMEMBER TO PERIODICALLY SAVE THE WORKSHEET AS IT IS BEING COMPLETED!!!!","REMEMBER TO PERIODICALLY SAVE THE WORKSHEET AS IT IS BEING COMPLETED!!!!","REMEMBER TO PERIODICALLY SAVE THE WORKSHEET AS IT IS BEING COMPLETED!!!!","REMEMBER TO PERIODICALLY SAVE THE WORKSHEET AS IT IS BEING COMPLETED!!!!","REMEMBER TO PERIODICALLY SAVE THE WORKSHEET AS IT IS BEING COMPLETED!!!!","REMEMBER TO PERIODICALLY SAVE THE WORKSHEET AS IT IS BEING COMPLETED!!!!","REMEMBER TO PERIODICALLY SAVE THE WORKSHEET AS IT IS BEING COMPLETED!!!!","REMEMBER TO PERIODICALLY SAVE THE WORKSHEET AS IT IS BEING COMPLETED!!!!","REMEMBER TO PERIODICALLY SAVE THE WORKSHEET AS IT IS BEING COMPLETED!!!!","REMEMBER TO PERIODICALLY SAVE THE WORKSHEET AS IT IS BEING COMPLETED!!!!","REMEMBER TO PERIODICALLY SAVE THE WORKSHEET AS IT IS BEING COMPLETED!!!!","REMEMBER TO PERIODICALLY SAVE THE WORKSHEET AS IT IS BEING COMPLETED!!!!","REMEMBER TO PERIODICALLY SAVE THE WORKSHEET AS IT IS BEING COMPLETED!!!!","REMEMBER TO PERIODICALLY SAVE THE WORKSHEET AS IT IS BEING COMPLETED!!!!","REMEMBER TO PERIODICALLY SAVE THE WORKSHEET AS IT IS BEING COMPLETED!!!!","REMEMBER TO PERIODICALLY SAVE THE WORKSHEET AS IT IS BEING COMPLETED!!!!","REMEMBER TO PERIODICALLY SAVE THE WORKSHEET AS IT IS BEING COMPLETED!!!!","REMEMBER TO PERIODICALLY SAVE THE WORKSHEET AS IT IS BEING COMPLETED!!!!","REMEMBER TO PERIODICALLY SAVE THE WORKSHEET AS IT IS BEING COMPLETED!!!!","REMEMBER TO PERIODICALLY SAVE THE WORKSHEET AS IT IS BEING COMPLETED!!!!","REMEMBER TO PERIODICALLY SAVE THE WORKSHEET AS IT IS BEING COMPLETED!!!!","REMEMBER TO PERIODICALLY SAVE THE WORKSHEET AS IT IS BEING COMPLETED!!!!","REMEMBER TO PERIODICALLY SAVE THE WORKSHEET AS IT IS BEING COMPLETED!!!!","REMEMBER TO PERIODICALLY SAVE THE WORKSHEET AS IT IS BEING COMPLETED!!!!","REMEMBER TO PERIODICALLY SAVE THE WORKSHEET AS IT IS BEING COMPLETED!!!!","REMEMBER TO PERIODICALLY SAVE THE WORKSHEET AS IT IS BEING COMPLETED!!!!","REMEMBER TO PERIODICALLY SAVE THE WORKSHEET AS IT IS BEING COMPLETED!!!!","REMEMBER TO PERIODICALLY SAVE THE WORKSHEET AS IT IS BEING COMPLETED!!!!","REMEMBER TO PERIODICALLY SAVE THE WORKSHEET AS IT IS BEING COMPLETED!!!!","REMEMBER TO PERIODICALLY SAVE THE WORKSHEET AS IT IS BEING COMPLETED!!!!","REMEMBER TO PERIODICALLY SAVE THE WORKSHEET AS IT IS BEING COMPLETED!!!!","REMEMBER TO PERIODICALLY SAVE THE WORKSHEET AS IT IS BEING COMPLETED!!!!","REMEMBER TO PERIODICALLY SAVE THE WORKSHEET AS IT IS BEING COMPLETED!!!!","REMEMBER TO PERIODICALLY SAVE THE WORKSHEET AS IT IS BEING COMPLETED!!!!","REMEMBER TO PERIODICALLY SAVE THE WORKSHEET AS IT IS BEING COMPLETED!!!!","REMEMBER TO PERIODICALLY SAVE THE WORKSHEET AS IT IS BEING COMPLETED!!!!","REMEMBER TO PERIODICALLY SAVE THE WORKSHEET AS IT IS BEING COMPLETED!!!!","REMEMBER TO PERIODICALLY SAVE THE WORKSHEET AS IT IS BEING COMPLETED!!!!","REMEMBER TO PERIODICALLY SAVE THE WORKSHEET AS IT IS BEING COMPLETED!!!!","REMEMBER TO PERIODICALLY SAVE THE WORKSHEET AS IT IS BEING COMPLETED!!!!","REMEMBER TO PERIODICALLY SAVE THE WORKSHEET AS IT IS BEING COMPLETED!!!!","REMEMBER TO PERIODICALLY SAVE THE WORKSHEET AS IT IS BEING COMPLETED!!!!","REMEMBER TO PERIODICALLY SAVE THE WORKSHEET AS IT IS BEING COMPLETED!!!!","REMEMBER TO PERIODICALLY SAVE THE WORKSHEET AS IT IS BEING COMPLETED!!!!","REMEMBER TO PERIODICALLY SAVE THE WORKSHEET AS IT IS BEING COMPLETED!!!!","REMEMBER TO PERIODICALLY SAVE THE WORKSHEET AS IT IS BEING COMPLETED!!!!","REMEMBER TO PERIODICALLY SAVE THE WORKSHEET AS IT IS BEING COMPLETED!!!!","REMEMBER TO PERIODICALLY SAVE THE WORKSHEET AS IT IS BEING COMPLETED!!!!","REMEMBER TO PERIODICALLY SAVE THE WORKSHEET AS IT IS BEING COMPLETED!!!!","REMEMBER TO PERIODICALLY SAVE THE WORKSHEET AS IT IS BEING COMPLETED!!!!","REMEMBER TO PERIODICALLY SAVE THE WORKSHEET AS IT IS BEING COMPLETED!!!!","REMEMBER TO PERIODICALLY SAVE THE WORKSHEET AS IT IS BEING COMPLETED!!!!","REMEMBER TO PERIODICALLY SAVE THE WORKSHEET AS IT IS BEING COMPLETED!!!!","REMEMBER TO PERIODICALLY SAVE THE WORKSHEET AS IT IS BEING COMPLETED!!!!","REMEMBER TO PERIODICALLY SAVE THE WORKSHEET AS IT IS BEING COMPLETED!!!!","REMEMBER TO PERIODICALLY SAVE THE WORKSHEET AS IT IS BEING COMPLETED!!!!","REMEMBER TO PERIODICALLY SAVE THE WORKSHEET AS IT IS BEING COMPLETED!!!!","REMEMBER TO PERIODICALLY SAVE THE WORKSHEET AS IT IS BEING COMPLETED!!!!","REMEMBER TO PERIODICALLY SAVE THE WORKSHEET AS IT IS BEING COMPLETED!!!!","REMEMBER TO PERIODICALLY SAVE THE WORKSHEET AS IT IS BEING COMPLETED!!!!","REMEMBER TO PERIODICALLY SAVE THE WORKSHEET AS IT IS BEING COMPLETED!!!!","REMEMBER TO PERIODICALLY SAVE THE WORKSHEET AS IT IS BEING COMPLETED!!!!","REMEMBER TO PERIODICALLY SAVE THE WORKSHEET AS IT IS BEING COMPLETED!!!!","REMEMBER TO PERIODICALLY SAVE THE WORKSHEET AS IT IS BEING COMPLETED!!!!","REMEMBER TO PERIODICALLY SAVE THE WORKSHEET AS IT IS BEING COMPLETED!!!!","REMEMBER TO PERIODICALLY SAVE THE WORKSHEET AS IT IS BEING COMPLETED!!!!","REMEMBER TO PERIODICALLY SAVE THE WORKSHEET AS IT IS BEING COMPLETED!!!!","REMEMBER TO PERIODICALLY SAVE THE WORKSHEET AS IT IS BEING COMPLETED!!!!","REMEMBER TO PERIODICALLY SAVE THE WORKSHEET AS IT IS BEING COMPLETED!!!!","REMEMBER TO PERIODICALLY SAVE THE WORKSHEET AS IT IS BEING COMPLETED!!!!","REMEMBER TO PERIODICALLY SAVE THE WORKSHEET AS IT IS BEING COMPLETED!!!!","REMEMBER TO PERIODICALLY SAVE THE WORKSHEET AS IT IS BEING COMPLETED!!!!","REMEMBER TO PERIODICALLY SAVE THE WORKSHEET AS IT IS BEING COMPLETED!!!!","REMEMBER TO PERIODICALLY SAVE THE WORKSHEET AS IT IS BEING COMPLETED!!!!","REMEMBER TO PERIODICALLY SAVE THE WORKSHEET AS IT IS BEING COMPLETED!!!!","REMEMBER TO PERIODICALLY SAVE THE WORKSHEET AS IT IS BEING COMPLETED!!!!","REMEMBER TO PERIODICALLY SAVE THE WORKSHEET AS IT IS BEING COMPLETED!!!!","REMEMBER TO PERIODICALLY SAVE THE WORKSHEET AS IT IS BEING COMPLETED!!!!","REMEMBER TO PERIODICALLY SAVE THE WORKSHEET AS IT IS BEING COMPLETED!!!!","REMEMBER TO PERIODICALLY SAVE THE WORKSHEET AS IT IS BEING COMPLETED!!!!","REMEMBER TO PERIODICALLY SAVE THE WORKSHEET AS IT IS BEING COMPLETED!!!!","REMEMBER TO PERIODICALLY SAVE THE WORKSHEET AS IT IS BEING COMPLETED!!!!","REMEMBER TO PERIODICALLY SAVE THE WORKSHEET AS IT IS BEING COMPLETED!!!!","REMEMBER TO PERIODICALLY SAVE THE WORKSHEET AS IT IS BEING COMPLETED!!!!","REMEMBER TO PERIODICALLY SAVE THE WORKSHEET AS IT IS BEING COMPLETED!!!!","REMEMBER TO PERIODICALLY SAVE THE WORKSHEET AS IT IS BEING COMPLETED!!!!","REMEMBER TO PERIODICALLY SAVE THE WORKSHEET AS IT IS BEING COMPLETED!!!!","REMEMBER TO PERIODICALLY SAVE THE WORKSHEET AS IT IS BEING COMPLETED!!!!","REMEMBER TO PERIODICALLY SAVE THE WORKSHEET AS IT IS BEING COMPLETED!!!!","REMEMBER TO PERIODICALLY SAVE THE WORKSHEET AS IT IS BEING COMPLETED!!!!","REMEMBER TO PERIODICALLY SAVE THE WORKSHEET AS IT IS BEING COMPLETED!!!!","REMEMBER TO PERIODICALLY SAVE THE WORKSHEET AS IT IS BEING COMPLETED!!!!","REMEMBER TO PERIODICALLY SAVE THE WORKSHEET AS IT IS BEING COMPLETED!!!!","REMEMBER TO PERIODICALLY SAVE THE WORKSHEET AS IT IS BEING COMPLETED!!!!","REMEMBER TO PERIODICALLY SAVE THE WORKSHEET AS IT IS BEING COMPLETED!!!!","REMEMBER TO PERIODICALLY SAVE THE WORKSHEET AS IT IS BEING COMPLETED!!!!","REMEMBER TO PERIODICALLY SAVE THE WORKSHEET AS IT IS BEING COMPLETED!!!!","REMEMBER TO PERIODICALLY SAVE THE WORKSHEET AS IT IS BEING COMPLETED!!!!","REMEMBER TO PERIODICALLY SAVE THE WORKSHEET AS IT IS BEING COMPLETED!!!!","REMEMBER TO PERIODICALLY SAVE THE WORKSHEET AS IT IS BEING COMPLETED!!!!","REMEMBER TO PERIODICALLY SAVE THE WORKSHEET AS IT IS BEING COMPLETED!!!!","REMEMBER TO PERIODICALLY SAVE THE WORKSHEET AS IT IS BEING COMPLETED!!!!","REMEMBER TO PERIODICALLY SAVE THE WORKSHEET AS IT IS BEING COMPLETED!!!!","REMEMBER TO PERIODICALLY SAVE THE WORKSHEET AS IT IS BEING COMPLETED!!!!","REMEMBER TO PERIODICALLY SAVE THE WORKSHEET AS IT IS BEING COMPLETED!!!!","REMEMBER TO PERIODICALLY SAVE THE WORKSHEET AS IT IS BEING COMPLETED!!!!","REMEMBER TO PERIODICALLY SAVE THE WORKSHEET AS IT IS BEING COMPLETED!!!!","REMEMBER TO PERIODICALLY SAVE THE WORKSHEET AS IT IS BEING COMPLETED!!!!","REMEMBER TO PERIODICALLY SAVE THE WORKSHEET AS IT IS BEING COMPLETED!!!!","REMEMBER TO PERIODICALLY SAVE THE WORKSHEET AS IT IS BEING COMPLETED!!!!","REMEMBER TO PERIODICALLY SAVE THE WORKSHEET AS IT IS BEING COMPLETED!!!!","REMEMBER TO PERIODICALLY SAVE THE WORKSHEET AS IT IS BEING COMPLETED!!!!","REMEMBER TO PERIODICALLY SAVE THE WORKSHEET AS IT IS BEING COMPLETED!!!!","REMEMBER TO PERIODICALLY SAVE THE WORKSHEET AS IT IS BEING COMPLETED!!!!","REMEMBER TO PERIODICALLY SAVE THE WORKSHEET AS IT IS BEING COMPLETED!!!!","REMEMBER TO PERIODICALLY SAVE THE WORKSHEET AS IT IS BEING COMPLETED!!!!","REMEMBER TO PERIODICALLY SAVE THE WORKSHEET AS IT IS BEING COMPLETED!!!!","REMEMBER TO PERIODICALLY SAVE THE WORKSHEET AS IT IS BEING COMPLETED!!!!","REMEMBER TO PERIODICALLY SAVE THE WORKSHEET AS IT IS BEING COMPLETED!!!!","REMEMBER TO PERIODICALLY SAVE THE WORKSHEET AS IT IS BEING COMPLETED!!!!","REMEMBER TO PERIODICALLY SAVE THE WORKSHEET AS IT IS BEING COMPLETED!!!!","REMEMBER TO PERIODICALLY SAVE THE WORKSHEET AS IT IS BEING COMPLETED!!!!","REMEMBER TO PERIODICALLY SAVE THE WORKSHEET AS IT IS BEING COMPLETED!!!!","REMEMBER TO PERIODICALLY SAVE THE WORKSHEET AS IT IS BEING COMPLETED!!!!","REMEMBER TO PERIODICALLY SAVE THE WORKSHEET AS IT IS BEING COMPLETED!!!!","REMEMBER TO PERIODICALLY SAVE THE WORKSHEET AS IT IS BEING COMPLETED!!!!","REMEMBER TO PERIODICALLY SAVE THE WORKSHEET AS IT IS BEING COMPLETED!!!!","REMEMBER TO PERIODICALLY SAVE THE WORKSHEET AS IT IS BEING COMPLETED!!!!","REMEMBER TO PERIODICALLY SAVE THE WORKSHEET AS IT IS BEING COMPLETED!!!!","REMEMBER TO PERIODICALLY SAVE THE WORKSHEET AS IT IS BEING COMPLETED!!!!","REMEMBER TO PERIODICALLY SAVE THE WORKSHEET AS IT IS BEING COMPLETED!!!!","REMEMBER TO PERIODICALLY SAVE THE WORKSHEET AS IT IS BEING COMPLETED!!!!","REMEMBER TO PERIODICALLY SAVE THE WORKSHEET AS IT IS BEING COMPLETED!!!!","REMEMBER TO PERIODICALLY SAVE THE WORKSHEET AS IT IS BEING COMPLETED!!!!","REMEMBER TO PERIODICALLY SAVE THE WORKSHEET AS IT IS BEING COMPLETED!!!!","REMEMBER TO PERIODICALLY SAVE THE WORKSHEET AS IT IS BEING COMPLETED!!!!","REMEMBER TO PERIODICALLY SAVE THE WORKSHEET AS IT IS BEING COMPLETED!!!!","REMEMBER TO PERIODICALLY SAVE THE WORKSHEET AS IT IS BEING COMPLETED!!!!","REMEMBER TO PERIODICALLY SAVE THE WORKSHEET AS IT IS BEING COMPLETED!!!!","REMEMBER TO PERIODICALLY SAVE THE WORKSHEET AS IT IS BEING COMPLETED!!!!","REMEMBER TO PERIODICALLY SAVE THE WORKSHEET AS IT IS BEING COMPLETED!!!!","REMEMBER TO PERIODICALLY SAVE THE WORKSHEET AS IT IS BEING COMPLETED!!!!","REMEMBER TO PERIODICALLY SAVE THE WORKSHEET AS IT IS BEING COMPLETED!!!!","REMEMBER TO PERIODICALLY SAVE THE WORKSHEET AS IT IS BEING COMPLETED!!!!","REMEMBER TO PERIODICALLY SAVE THE WORKSHEET AS IT IS BEING COMPLETED!!!!","REMEMBER TO PERIODICALLY SAVE THE WORKSHEET AS IT IS BEING COMPLETED!!!!","REMEMBER TO PERIODICALLY SAVE THE WORKSHEET AS IT IS BEING COMPLETED!!!!","REMEMBER TO PERIODICALLY SAVE THE WORKSHEET AS IT IS BEING COMPLETED!!!!","REMEMBER TO PERIODICALLY SAVE THE WORKSHEET AS IT IS BEING COMPLETED!!!!","REMEMBER TO PERIODICALLY SAVE THE WORKSHEET AS IT IS BEING COMPLETED!!!!","REMEMBER TO PERIODICALLY SAVE THE WORKSHEET AS IT IS BEING COMPLETED!!!!","REMEMBER TO PERIODICALLY SAVE THE WORKSHEET AS IT IS BEING COMPLETED!!!!","REMEMBER TO PERIODICALLY SAVE THE WORKSHEET AS IT IS BEING COMPLETED!!!!","REMEMBER TO PERIODICALLY SAVE THE WORKSHEET AS IT IS BEING COMPLETED!!!!","REMEMBER TO PERIODICALLY SAVE THE WORKSHEET AS IT IS BEING COMPLETED!!!!","REMEMBER TO PERIODICALLY SAVE THE WORKSHEET AS IT IS BEING COMPLETED!!!!","REMEMBER TO PERIODICALLY SAVE THE WORKSHEET AS IT IS BEING COMPLETED!!!!","REMEMBER TO PERIODICALLY SAVE THE WORKSHEET AS IT IS BEING COMPLETED!!!!","REMEMBER TO PERIODICALLY SAVE THE WORKSHEET AS IT IS BEING COMPLETED!!!!","REMEMBER TO PERIODICALLY SAVE THE WORKSHEET AS IT IS BEING COMPLETED!!!!","REMEMBER TO PERIODICALLY SAVE THE WORKSHEET AS IT IS BEING COMPLETED!!!!","REMEMBER TO PERIODICALLY SAVE THE WORKSHEET AS IT IS BEING COMPLETED!!!!","REMEMBER TO PERIODICALLY SAVE THE WORKSHEET AS IT IS BEING COMPLETED!!!!","REMEMBER TO PERIODICALLY SAVE THE WORKSHEET AS IT IS BEING COMPLETED!!!!","REMEMBER TO PERIODICALLY SAVE THE WORKSHEET AS IT IS BEING COMPLETED!!!!","REMEMBER TO PERIODICALLY SAVE THE WORKSHEET AS IT IS BEING COMPLETED!!!!","REMEMBER TO PERIODICALLY SAVE THE WORKSHEET AS IT IS BEING COMPLETED!!!!","REMEMBER TO PERIODICALLY SAVE THE WORKSHEET AS IT IS BEING COMPLETED!!!!","REMEMBER TO PERIODICALLY SAVE THE WORKSHEET AS IT IS BEING COMPLETED!!!!","REMEMBER TO PERIODICALLY SAVE THE WORKSHEET AS IT IS BEING COMPLETED!!!!","REMEMBER TO PERIODICALLY SAVE THE WORKSHEET AS IT IS BEING COMPLETED!!!!","REMEMBER TO PERIODICALLY SAVE THE WORKSHEET AS IT IS BEING COMPLETED!!!!","REMEMBER TO PERIODICALLY SAVE THE WORKSHEET AS IT IS BEING COMPLETED!!!!","REMEMBER TO PERIODICALLY SAVE THE WORKSHEET AS IT IS BEING COMPLETED!!!!","REMEMBER TO PERIODICALLY SAVE THE WORKSHEET AS IT IS BEING COMPLETED!!!!","REMEMBER TO PERIODICALLY SAVE THE WORKSHEET AS IT IS BEING COMPLETED!!!!","REMEMBER TO PERIODICALLY SAVE THE WORKSHEET AS IT IS BEING COMPLETED!!!!"]
["Key Information"]
["SFAs must provide calorie and saturated fat information for all main dish items, side items with grains and/or meat/meat alternates, and condiments. The Simplified Nutrient Assessment does NOT have this capability. Information can be collected from nutrition labels, product specifications, or other sources (including nutrient analysis software or an online system such as the CNPP SuperTracker)."]
["SFAs do not need specific calorie or saturated fat information for milk or Fruit/Vegetable/Juice. Estimates for these components have been preprogrammed."]
["SFAs that have nutrient analysis software may still choose the FNS simplified assessment option if desired."]
[]
["Below is a list of calorie and fat sources typically added to foods, for reference:"]
[]
["Common fats added to vegetables or fruit"]
["Butter"]
["Margarine"]
["Vegetable oil (soybean, canola, olive, nut based)"]
["Salad dressing"]
["Mayonnaise"]
["Cream/whipped cream/sour cream"]
["Shortening"]
["Bacon crumbles"]
[]
["Common sources of added sugars to vegetables or fruit"]
["Brown or white sugar"]
["Honey"]
["Maple and/or fruit syrup"]
["Begin on the left side of the sheet with the “Fruit, Milk, and Vegetable Subgroup Simplified Nutrient Assessment.”"]
[]
["Fruit, Milk, and Non-starchy and Starchy Vegetable Nutrient Assessment"]
["This section contains a set of questions to determine how fruits, vegetables, and milk are typically offered.  SFAs will answer a series of questions pertaining to the frequency of adding fats and sugars in the preparation and offering of fruit, milk, and vegetable subgroups for the week of menus submitted for the certification process.  "]
["Fruit "]
["This box does NOT calculate the menu’s total weekly servings from earlier data entered, so must be entered here (ONLY fruit and fruit juice, NOT vegetables or vegetable juice)"]
["Select the two buttons that best apply to fruit offerings within the 5-day menu entered for the menu worksheet- the percentage of offerings containing added fat and/or added sugar. Include fats and sugars used during preparation of the food as well as any additional fats and/or sugars accompanying the component."]
["The default option is “Fruit not offered.”"]
["Only ONE selection can be made for added sugar, and ONE selection for added fat. Refer to the above list of commonly added ingredients to fruits for assistance. Select the best choice."]
["Estimates are based on average/typical use of fat and sugar in fruit offerings. Fruits served with significant (more than 2 teaspoons/cup) added fat and/or sugar may be listed in column O1 (“Side or Condiment”) to report, along with total offered servings within the week, exact calorie and saturated fat values."]
["Indicate the following for fruit for both fat and sugar."]
["If FRUIT is offered less than 30% of the time with added fat/sugar."]
["If FRUIT is offered 30% to 70% of the time with added fat/sugar."]
["If FRUIT is offered more than 70% of the time with added fat/sugar."]
["Fruit Example:"]
["2 cups of fruit offered over the week "]
["(1 cup canned in light syrup, 1 cup fresh/plain fruit)"]
["Result: Fruit offered with added sugar 50% of the time (1 divided by 2; select “30% to 70% of the total fruit offerings) "]
["Result: Fruit offered with added fat 0% of the time (0 divided by 2; select “less than 30% of the total fruit offerings”)"]
[]
["Milk"]
[]
["This box has already calculated the menu’s average serving size and total weekly servings from earlier data entered."]
["Select the button describing which two milk offerings are most frequently served  this week. Only ONE selection can be made- refer to historical usage, inventory records, etc. and select the best choice. Default option is “Milk not offered.”"]
[]
["Estimates based on average usage of standard commercial products. Milk offerings with a unique nutrient profile (e.g. reduced sugar flavored milk) may be listed in column O1 (“Side or Condiment”) to report, along with total offered servings within the week, exact calorie and saturated fat values."]
["The default option is “Milk not offered.”"]
["Milk Example: "]
["5 cups of milk offered over the week"]
["Nonfat unflavored and low fat unflavored milk daily, chocolate nonfat milk offered Fridays only."]
["Using inventory, offered 450 nonfat unflavored, 450 low fat unflavored, 100 chocolate nonfat"]
["Result: SFA would select the “nonfat unflavored & low-fat (1%) unflavored” option."]
[]
["Non-Starchy and Starchy Vegetables"]
["Both non-starchy and starchy vegetables have a selection box"]
[]
["-Select the button that best describes added fat in offered of each VEGETABLE TYPE. The default option is “ VEGETABLE TYPE not offered.” Only ONE selection can be made- refer to the above list of commonly added ingredients to vegetables and select the best choice."]
["If VEGETABLE TYPE are offered less than 30% of the time with added fat."]
["If VEGETABLE TYPE are offered 30% to 70% of the time with added fat."]
["If VEGETABLE TYPE are offered more than 70% of the time with added fat."]
[]
["Grains and Meats/Meat Alternates Simplified Nutrient Data Entry"]
["The middle section is entitled “Grains and Meats/Meat Alternates Simplified Nutrient Data Entry.”"]
[]
["All meals offered over the week have been pre-populated (column M1). "]
["In column M2, enter the Main Dish, the part of the meal associated with the information entered in columns M3-M5 (calories, saturated fat, number of offered weekly servings)."]
["For each meal, the user must enter calories, saturated fat and the number of main dishes prepared over the course of the entire week (columns M3 through M5). If a meal is offered more than once per week, add the number of servings for all days offered together."]
[" Only include the calories and saturated fat for the main dish and any components included as part of the main dish. "]
["Use standard rounding procedures to two decimals points"]
["Some double counting may occur with main dishes containing large amounts of fruits or vegetables (egg burrito w/vegetables). If possible to report calorie and saturated fat information for main dish and exclude vegetables/fruits it contains, this is acceptable. Otherwise, report calorie and saturated fat information in entire main dish."]
["Include calorie and saturated fat information for condiments in Main Dish section (columns M3-M5), OR in the Sides and Condiments section (columns O2-O4). "]
["In last column, enter number of servings of each main dish offered over the course of the week. Rely on production records and historical data if this is a new menu."]
["At the top of this section is a link to Optional Serving Size and Fraction Calculators, tools intended to help users with serving size calculations by volume or weight, adding fractions, and converting decimals to fractions."]
["Condiments Example:  "]
["Pancakes served w/maple syrup"]
["Reported in Main Dish: 300 pancakes, each including 1 tablespoon syrup in analysis, OR "]
["Reported in Sides/Condiments: 300 servings of 1 packet (tablespoon) of syrup"]
[]
["Other Items Nutrient Assessment"]
["The section to the far right is entitled “Other items: Sides and Condiments Nutrient Data Entry.”"]
[]
["Click the following link: \"Click here to go to the calories and saturated fat table for commonly used condiments\" to go to a chart listing calories and saturated fat for commonly used condiments, such as margarine and salad dressings."]
[]
[" Enter the name of the food item (O1), calories per serving (O2), and saturated fat grams per serving (O3). Use standard rounding procedures to two decimals points."]
["Enter the number of servings of each item offered over the course of the week (O4)."]
[]
["For condiments, amounts may be entered based on a per serving basis or in bulk quantities based on weekly usage data. Total calories and saturated fat over the week is equivalent in either method of reporting. (The denominator for determining averages is the total number of MEALS served over the week [total of all numbers recorded in column O4])."]
["Condiments Example: "]
["Item offered: ketchup "]
["Per Serving Reporting: 256 planned servings of 1 Tablespoon amounts (73 calories, 1.2 grams saturated fat per serving) "]
["Bulk Quantity Reporting: 1 planned serving of 1 gallon offered over the week (18,688 calories, 307.2 grams saturated fat)"]
[]
["Sodium Portion of Simplified Nutrient Assessment"]
["Beginning in SY 2014-15, SFAs must also meet Target 1 for average daily sodium requirements. In the next section of the assessment, below the vegetable subgroup questions, select “Yes” or “No” for each of the first 3 questions. For the question regarding USDA Foods, select the option that best represents the percentage of USDA food vegetables offered during the week."]
[]
["These questions will provide estimates of sodium content to the total weekly vegetable offering- therefore, there is no need to respond to a separate sodium question for each of the vegetable subgroups."]
[]
[]
["Simplified Nutrient Assessment (results)"]
["Scroll to the bottom/middle of the screen (past the bottom of the Main Dish and Side/Condiment chart)."]
[]
["This section, “Daily Amounts Based on the Average for a 5-day week,” calculates daily average calories and percentage of calories from saturated fat. The values based on the entered menu are in grey boxes. The required range for the menu type is shown in the yellow boxes."]
[]
["If the menu meets requirements, the Assessment box turns Green. If the menu is within 25 calories of the required calorie range, or within half a percentage point of the saturated fat limit, the Assessment box turns Yellow. This provides SFAs an opportunity to work with their State as to why the menu is not within the range without an immediate rejection."]
[]
[" If calories or saturated fat are beyond the cautionary range, the Assessment box turns Red."]
[]
["Simplified Nutrient Assessment is now complete save this file and submit to the State Agency for review."]

{"sheet":"Simplified Nutrient Assessment","index":11,"n_rows":74,"n_cols":48,"rows_kept":74,"cut":false,"hidden":false,"merged":[[0,0,0,28],[1,0,1,13],[1,14,1,17],[1,24,1,25],[1,26,1,29],[2,1,2,10],[2,14,2,19],[2,24,2,28],[3,1,5,10],[3,14,3,19],[21,6,21,10],[27,6,27,10],[28,6,28,10],[29,6,29,10],[7,1,7,6],[23,1,23,10],[24,1,24,6],[3,24,3,28],[5,33,5,40],[5,42,6,48],[6,1,6,10],[6,33,6,40],[45,1,45,6],[8,47,8,48],[9,33,10,36],[9,39,10,40],[9,47,9,48],[7,33,7,36],[7,39,7,40],[7,42,12,44],[7,47,7,48],[8,1,8,6],[8,7,8,10],[8,33,8,36],[8,39,8,40],[10,47,10,48],[11,33,12,36],[11,39,12,40],[11,47,11,48],[12,47,12,48],[46,1,46,6],[13,33,13,40],[13,42,14,48],[14,1,14,10],[14,33,14,36],[14,39,14,40],[15,33,15,36],[15,39,15,40],[15,42,16,44],[15,47,16,48],[16,1,16,10],[16,33,17,36],[16,39,17,40],[17,6,17,10],[17,42,18,44],[17,47,18,48],[18,6,18,10],[18,33,19,36],[18,39,19,40],[19,6,19,10],[20,6,20,10],[21,33,21,48],[22,1,22,10],[49,1,49,6],[47,1,47,10],[48,1,48,6],[25,1,25,10],[26,6,26,10],[44,1,44,6],[31,8,31,10],[43,1,43,6],[41,1,41,10],[42,1,42,10],[29,34,29,39],[26,34,26,39],[26,40,26,42],[26,43,26,44],[61,17,61,18],[62,17,62,18],[27,34,27,39],[28,34,28,39],[60,17,60,18],[31,34,31,39],[64,16,65,16],[64,17,64,18],[65,17,65,18],[64,19,65,23],[64,24,65,24],[63,17,63,18],[62,24,63,24],[27,40,27,42],[27,43,27,44],[34,6,34,10],[34,34,34,39],[35,6,35,10],[35,34,35,39],[32,1,32,10],[32,34,32,39],[33,6,33,10],[33,34,33,39],[28,43,28,44],[29,40,29,42],[29,43,29,44],[36,6,36,10],[36,34,36,39],[38,1,38,10],[37,34,37,39],[30,6,30,10],[30,34,30,39],[31,1,31,6],[55,7,55,10],[58,16,58,24],[59,19,59,23],[73,16,74,24],[75,16,103,24],[60,16,61,16],[60,19,61,23],[60,24,61,24],[62,16,63,16],[62,19,63,23],[30,40,30,42],[30,43,30,44],[31,40,31,42],[31,43,31,44],[28,40,28,42],[54,1,54,10],[39,1,39,10],[38,34,38,39],[40,1,40,10],[52,6,52,10],[34,43,34,44],[35,40,35,42],[35,43,35,44],[32,40,32,42],[32,43,32,44],[33,40,33,42],[33,43,33,44],[59,17,59,18],[50,1,50,10],[25,34,25,47],[38,40,38,42],[38,43,38,44],[36,40,36,42],[36,43,36,44],[37,40,37,42],[37,43,37,44],[34,40,34,42]]}
["Simplified Nutrient Assessment for Breakfast, Grades K-8"]
["Go to Instructions","'Nutrient Instructions'!A1","'Nutrient Instructions'!A1","'Nutrient Instructions'!A1","'Nutrient Instructions'!A1","'Nutrient Instructions'!A1","'Nutrient Instructions'!A1","'Nutrient Instructions'!A1","'Nutrient Instructions'!A1","'Nutrient Instructions'!A1","'Nutrient Instructions'!A1","'Nutrient Instructions'!A1","'Nutrient Instructions'!A1","'Nutrient Instructions'!A1","Click here to go to Optional Serving Size and Fraction Calculators","'Simplified Nutrient Assessment'!AQ6","'Simplified Nutrient Assessment'!AQ6","'Simplified Nutrient Assessment'!AQ6",null,null,null,null,null,null,"Click here to go to the calories and saturated fat table for commonly used condiments","'Simplified Nutrient Assessment'!AC33","Go to Results","'Simplified Nutrient Assessment'!L60","'Simplified Nutrient Assessment'!L60","'Simplified Nutrient Assessment'!L60"]
[null,"Fruit, Milk, and Non-starchy and Starchy Vegetable Nutrient Assessement","'Nutrient Instructions'!A26","'Nutrient Instructions'!A26","'Nutrient Instructions'!A26","'Nutrient Instructions'!A26","'Nutrient Instructions'!A26","'Nutrient Instructions'!A26","'Nutrient Instructions'!A26","'Nutrient Instructions'!A26","'Nutrient Instructions'!A26",null,null,null,"Grains and Meats/Meat Alternates Simplified Nutrient Data Entry","'Nutrient Instructions'!A66","'Nutrient Instructions'!A66","'Nutrient Instructions'!A66","'Nutrient Instructions'!A66","'Nutrient Instructions'!A66",null,null,null,null,"Other items: Sides and Condiments Nutrient Data Entry","'Nutrient Instructions'!A80","'Nutrient Instructions'!A80","'Nutrient Instructions'!A80","'Nutrient Instructions'!A80"]
[null,"Select the option best representing how each food item is offered throughout the week. Only select one option per food item. \nInclude fat and sugars used during preparation of the food as well as any additional fats and/or sugars offered with the food item",null,null,null,null,null,null,null,null,null,null,null,null,"Enter the calories and saturated fat for one serving of the grains and meat/meat alternate offered with this meal, and the number of servings offered during the week. Only include the calories and saturated fat for the grains and meat/meat alternate.  The number of offered servings should include all sites serving the menu type.\nUse standard rounding procedures to two decimal points",null,null,null,null,null,null,null,null,null,"Enter the calories and saturated fat for each condiment offered. Also enter the number of servings offered during the week. Do not include fruit or vegetable based dishes.\nUse standard rounding procedures to two decimal points"]
[null,null,null,null,null,null,null,null,null,null,null,null,null,null,"M1","M2","M3","M4","M5","M6",null,null,null,null,"O1","O2","O3","O4","O5"]
[null,null,null,null,null,null,null,null,null,null,null,"Cal_serv","fat_serv",null,"Meal Name\nThis column is pre-populated with the meal names entered\n on the \"All Meals\" tab","Grains and Meat/Meat Alternates\nThe part of the meal associated with the information entered in columns M3-M5","Calories/serving (kcal)","Saturated Fat/serving (g)","Sodium/ serving (mg)","Number of planned servings for the week","cal","fat","sod",null,"Condiments","Calories/serving (kcal)","Saturated Fat/serving (g)","Sodium/ serving (mg)","Number of offered servings for the week","cal","fat","sod",null,"OPTIONAL Tools to Assist in Serving Calculations",null,null,null,null,null,null,null,null,"OPTIONAL Tools to Assist in Fraction and Decimal Calculations"]
[null,"Fruit (cups)","'Nutrient Instructions'!A28","'Nutrient Instructions'!A28","'Nutrient Instructions'!A28","'Nutrient Instructions'!A28","'Nutrient Instructions'!A28","'Nutrient Instructions'!A28","'Nutrient Instructions'!A28","'Nutrient Instructions'!A28","'Nutrient Instructions'!A28",{"$f":"H8*J14","v":null},{"$f":"E14*H8","v":null},null,"Example: Bagel and cream cheese","Bagel ",250,4,150,100,null,null,null,null,"Example: Ketchup",50,1,null,100,null,null,null,null,"Calories and Saturated Fat Serving Size Calculator (cups)"]
[null,"Cups fruit offered over the week:",null,null,null,null,null,null,null,null,null,"sodium=",{"$f":"H8*F14","v":null},null,"SAND SLIDER SAUS EGG & CHS IW 72-2CT",null,222,2.1,402.8,523,{"$f":"Q8*T8","v":null},{"$f":"R8*T8","v":null},{"$f":"S8*T8","v":null},null,"Assorted Cereal",107.14,0.14,150,3374,{"$f":"Z8*AC8","v":null},{"$f":"AA8*AC8","v":null},{"$f":"AB8*AC8","v":null},null,"Enter the number of cups offered:",null,null,null,1,{"$f":"INDEX(cups1,AL8)","v":null},null,null,null,"Fraction Calculator: \nUse this calculator to add the number of cups.",null,null,1,{"$f":"INDEX(cups1,AT8)","v":null}]
[null,"Fruit is offered throughout the week with added fat:",null,null,null,null,null,"Fruit is offered throughout the week with added sugar:",null,null,null,"avg_day_sod",{"$f":"M8/5","v":null},null,"PIZZA BKFST EGG&BCN WGRAIN 128-2.95Z",null,210,3.5,320,567,{"$f":"Q9*T9","v":null},{"$f":"R9*T9","v":null},{"$f":"S9*T9","v":null},null,"YOGURT DANIMAL STRAWB BAN N/F 48-4Z",70,0,60,581,{"$f":"Z9*AC9","v":null},{"$f":"AA9*AC9","v":null},{"$f":"AB9*AC9","v":null},null,"Enter the number of cups in a serving:",null,null,null,1,{"$f":"INDEX(cups1,AL9)","v":null},null,null,null,null,null,null,1,{"$f":"INDEX(cups1,AT9)","v":null}]
[null,null,4,133.38,0.42,7.4,"Less than 30% of the total fruit offerings",null,4,5.51,"Less than 30% of the total fruit offerings","avg_wk_cal","avg_wk_fat",null,"BAR GRANOLA CKYS & CRM 125-1.37Z",null,150,1,135,581,{"$f":"Q10*T10","v":null},{"$f":"R10*T10","v":null},{"$f":"S10*T10","v":null},null,null,null,null,null,null,{"$f":"Z10*AC10","v":null},{"$f":"AA10*AC10","v":null},{"$f":"AB10*AC10","v":null},null,"Enter the number of calories or sat fat grams/serving (cups):",null,null,null,null,null,null,null,null,null,null,null,1,{"$f":"INDEX(cups1,AT10)","v":null}]
[null,null,null,157.74,1.33,17.4,"30% to 70% of the total fruit offerings",null,null,18.38,"30% to 70% of the total fruit offerings",{"$f":"L7","v":null},{"$f":"M7","v":null},null,"PASTRY POP-TART WGRAIN STRAWB 120-1CT",null,180,1,190,567,{"$f":"Q11*T11","v":null},{"$f":"R11*T11","v":null},{"$f":"S11*T11","v":null},null,null,null,null,null,null,{"$f":"Z11*AC11","v":null},{"$f":"AA11*AC11","v":null},{"$f":"AB11*AC11","v":null},null,null,null,null,null,null,null,null,null,null,null,null,null,1,{"$f":"INDEX(cups1,AT11)","v":null}]
[null,null,null,182.1,2.24,27.4,"More than 70% of the total fruit offerings",null,null,31.24,"More than 70% of the total fruit offerings","avg_day_cal","avg_day_cal",null,"TOAST TEXAS APPL CINN IW 96-3.3Z S&F",null,260,1,290,523,{"$f":"Q12*T12","v":null},{"$f":"R12*T12","v":null},{"$f":"S12*T12","v":null},null,null,null,null,null,null,{"$f":"Z12*AC12","v":null},{"$f":"AA12*AC12","v":null},{"$f":"AB12*AC12","v":null},null,"Number of calories or saturated fat/serving (cups) offered:",null,null,null,null,null,{"$f":"ROUND(IF(ISERROR((AN10*AM8)/AM9),0,(AN10*AM8)/AM9),2)","v":null},null,null,null,null,null,1,{"$f":"INDEX(cups1,AT12)","v":null}]
[null,null,null,0,0,0,"Fruit not offered",null,null,0,"Fruit not offered",{"$f":"L11/5","v":null},{"$f":"M11/5","v":null},null,{"$f":"IF('All Meals'!C18=\"\",\"\",'All Meals'!C18)","v":null},null,null,null,null,null,{"$f":"Q13*T13","v":null},{"$f":"R13*T13","v":null},{"$f":"S13*T13","v":null},null,null,null,null,null,null,{"$f":"Z13*AC13","v":null},{"$f":"AA13*AC13","v":null},{"$f":"AB13*AC13","v":null},null,null,null,null,null,null,null,null,null,null,null,null,null,null,null,{"$f":"SUM(AU8:AU12)","v":null}]
[null,null,null,{"$f":"IF($C$10=1,$D$10,IF($C$10=2,D11,IF($C$10=3,D12,IF($C$10=4,D13,0))))","v":null},{"$f":"IF($C$10=1,E10,IF($C$10=2,E11,IF($C$10=3,E12,IF($C$10=4,E13,0))))","v":null},{"$f":"IF($C$10=1,F10,IF($C$10=2,F11,IF($C$10=3,F12,IF($C$10=4,F13,0))))","v":null},null,null,{"$f":"IF($I$10=1,$J$10,IF($I$10=2,J11,IF($I$10=3,J12,IF($I$10=4,J13,0))))","v":null},{"$f":"SUM(D14,I14)","v":null},null,null,null,null,{"$f":"IF('All Meals'!C19=\"\",\"\",'All Meals'!C19)","v":null},null,null,null,null,null,{"$f":"Q14*T14","v":null},{"$f":"R14*T14","v":null},{"$f":"S14*T14","v":null},null,null,null,null,null,null,{"$f":"Z14*AC14","v":null},{"$f":"AA14*AC14","v":null},{"$f":"AB14*AC14","v":null},null,"Calories and Saturated Fat Serving Size Calculator (weight)",null,null,null,null,null,null,null,null,"Decimal/Fraction Converter\n(Rounded down to the nearest 1/8)"]
[null,"Milk (cups)","'Nutrient Instructions'!A40","'Nutrient Instructions'!A40","'Nutrient Instructions'!A40","'Nutrient Instructions'!A40","'Nutrient Instructions'!A40","'Nutrient Instructions'!A40","'Nutrient Instructions'!A40","'Nutrient Instructions'!A40","'Nutrient Instructions'!A40","Cal_serv","fat_serv",null,{"$f":"IF('All Meals'!C20=\"\",\"\",'All Meals'!C20)","v":null},null,null,null,null,null,{"$f":"Q15*T15","v":null},{"$f":"R15*T15","v":null},{"$f":"S15*T15","v":null},null,null,null,null,null,null,{"$f":"Z15*AC15","v":null},{"$f":"AA15*AC15","v":null},{"$f":"AB15*AC15","v":null},null,"Enter food item weight offered:"]
[null,"Average serving size:",null,null,null,null,{"$f":"IF(ISERROR(AVERAGE('All Meals'!S13:S62)),0, (AVERAGE('All Meals'!S13:S62)))","v":null},"Total weekly servings:",null,null,{"$f":"'Weekly Report'!G14","v":null},{"$f":"D22*$G$16","v":null},{"$f":"E22*$G$16","v":null},null,{"$f":"IF('All Meals'!C21=\"\",\"\",'All Meals'!C21)","v":null},null,null,null,null,null,{"$f":"Q16*T16","v":null},{"$f":"R16*T16","v":null},{"$f":"S16*T16","v":null},null,null,null,null,null,null,{"$f":"Z16*AC16","v":null},{"$f":"AA16*AC16","v":null},{"$f":"AB16*AC16","v":null},null,"Enter food item weight in a serving:",null,null,null,null,null,null,null,null,"Enter the decimal you wish to convert to a fraction in the box:"]
[null,"What two types of milk are offered most during the week?",null,null,null,null,null,null,null,null,null,"sodium=",{"$f":"G16*F22","v":null},null,{"$f":"IF('All Meals'!C22=\"\",\"\",'All Meals'!C22)","v":null},null,null,null,null,null,{"$f":"Q17*T17","v":null},{"$f":"R17*T17","v":null},{"$f":"S17*T17","v":null},null,null,null,null,null,null,{"$f":"Z17*AC17","v":null},{"$f":"AA17*AC17","v":null},{"$f":"AB17*AC17","v":null},null,"Enter the number of calories or sat fat grams/serving:"]
[null,null,4,114.65,0.1685,136,"Nonfat unflavored & nonfat flavored",null,null,null,null,null,null,null,{"$f":"IF('All Meals'!C23=\"\",\"\",'All Meals'!C23)","v":null},null,null,null,null,null,{"$f":"Q18*T18","v":null},{"$f":"R18*T18","v":null},{"$f":"S18*T18","v":null},null,null,null,null,null,null,{"$f":"Z18*AC18","v":null},{"$f":"AA18*AC18","v":null},{"$f":"AB18*AC18","v":null},null,null,null,null,null,null,null,null,null,null,"The decimal entered above has been converted to the following fraction:",null,null,null,null,{"$f":"FLOOR(AV16,0.125)","v":null}]
[null,null,null,92.5,0.841,105,"Nonfat unflavored & low-fat (1%) unflavored",null,null,null,null,"avg_day_cal","avg_day_fat",null,{"$f":"IF('All Meals'!C24=\"\",\"\",'All Meals'!C24)","v":null},null,null,null,null,null,{"$f":"Q19*T19","v":null},{"$f":"R19*T19","v":null},{"$f":"S19*T19","v":null},null,null,null,null,null,null,{"$f":"Z19*AC19","v":null},{"$f":"AA19*AC19","v":null},{"$f":"AB19*AC19","v":null},null,"Number of calories or saturated fat\n (weight offered):",null,null,null,null,null,{"$f":"ROUND(IF(ISERROR((AN17*AN15)/AN16),0,(AN17*AN15)/AN16),2)","v":null}]
[null,null,null,124.15,0.8725000000000001,138,"Low-fat (1%) unflavored & nonfat flavored",null,null,null,null,{"$f":"L16","v":null},{"$f":"M16","v":null},null,{"$f":"IF('All Meals'!C25=\"\",\"\",'All Meals'!C25)","v":null},null,null,null,null,null,{"$f":"Q20*T20","v":null},{"$f":"R20*T20","v":null},{"$f":"S20*T20","v":null},null,null,null,null,null,null,{"$f":"Z20*AC20","v":null},{"$f":"AA20*AC20","v":null},{"$f":"AB20*AC20","v":null}]
[null,null,null,0,0,0,"Milk not offered",null,null,null,null,null,null,null,{"$f":"IF('All Meals'!C26=\"\",\"\",'All Meals'!C26)","v":null},null,null,null,null,null,{"$f":"Q21*T21","v":null},{"$f":"R21*T21","v":null},{"$f":"S21*T21","v":null},null,null,null,null,null,null,{"$f":"Z21*AC21","v":null},{"$f":"AA21*AC21","v":null},{"$f":"AB21*AC21","v":null}]
[null,null,null,{"$f":"IF($C$18=1,D18,IF($C$18=2,D19,IF($C$18=3,D20,IF($C$18=4,D21,0))))","v":null},{"$f":"IF($C$18=1,E18,IF($C$18=2,E19,IF($C$18=3,E20,IF($C$18=4,E21,0))))","v":null},{"$f":"IF($C$18=1,F18,IF($C$18=2,F19,IF($C$18=3,F20,IF($C$18=4,F21,0))))","v":null},"          Non-Starchy and Starchy Vegetables",null,null,null,null,null,null,null,{"$f":"IF('All Meals'!C27=\"\",\"\",'All Meals'!C27)","v":null},null,null,null,null,null,{"$f":"Q22*T22","v":null},{"$f":"R22*T22","v":null},{"$f":"S22*T22","v":null},null,null,null,null,null,null,{"$f":"Z22*AC22","v":null},{"$f":"AA22*AC22","v":null},{"$f":"AB22*AC22","v":null},null,"Go Back to Assessment","'Simplified Nutrient Assessment'!A1","'Simplified Nutrient Assessment'!A1","'Simplified Nutrient Assessment'!A1","'Simplified Nutrient Assessment'!A1","'Simplified Nutrient Assessment'!A1","'Simplified Nutrient Assessment'!A1","'Simplified Nutrient Assessment'!A1","'Simplified Nutrient Assessment'!A1","'Simplified Nutrient Assessment'!A1","'Simplified Nutrient Assessment'!A1","'Simplified Nutrient Assessment'!A1","'Simplified Nutrient Assessment'!A1","'Simplified Nutrient Assessment'!A1","'Simplified Nutrient Assessment'!A1"]
[null,"For the following two sections please indicate how each type of vegetable is offered throughout the week",null,null,null,null,null,null,null,null,null,null,null,null,{"$f":"IF('All Meals'!C28=\"\",\"\",'All Meals'!C28)","v":null},null,null,null,null,null,{"$f":"Q23*T23","v":null},{"$f":"R23*T23","v":null},{"$f":"S23*T23","v":null},null,null,null,null,null,null,{"$f":"Z23*AC23","v":null},{"$f":"AA23*AC23","v":null},{"$f":"AB23*AC23","v":null}]
[null,"Non-Starchy Vegetables",null,null,null,null,null,null,null,null,null,null,null,null,{"$f":"IF('All Meals'!C29=\"\",\"\",'All Meals'!C29)","v":null},null,null,null,null,null,{"$f":"Q24*T24","v":null},{"$f":"R24*T24","v":null},{"$f":"S24*T24","v":null},null,null,null,null,null,null,{"$f":"Z24*AC24","v":null},{"$f":"AA24*AC24","v":null},{"$f":"AB24*AC24","v":null}]
[null,"Cups of non-starchy vegetables offered over the week",null,null,null,null,null,null,null,null,null,"sodium=",{"$f":"H25*F31","v":null},null,{"$f":"IF('All Meals'!C30=\"\",\"\",'All Meals'!C30)","v":null},null,null,null,null,null,{"$f":"Q25*T25","v":null},{"$f":"R25*T25","v":null},{"$f":"S25*T25","v":null},null,null,null,null,null,null,{"$f":"Z25*AC25","v":null},{"$f":"AA25*AC25","v":null},{"$f":"AB25*AC25","v":null}]
[null,"Non-starchy vegetables are offered throughout the week with added fat:",null,null,null,null,null,null,null,null,null,"avg_day_sod=",{"$f":"M25/5","v":null},null,{"$f":"IF('All Meals'!C31=\"\",\"\",'All Meals'!C31)","v":null},null,null,null,null,null,{"$f":"Q26*T26","v":null},{"$f":"R26*T26","v":null},{"$f":"S26*T26","v":null},null,null,null,null,null,null,{"$f":"Z26*AC26","v":null},{"$f":"AA26*AC26","v":null},{"$f":"AB26*AC26","v":null},null,null,"Calories and Saturated Fat for Commonly Used Condiments"]
[null,null,4,112.9094444444444,0.4789472222222223,189,"Less than 30% of the total non starchy offerings",null,null,null,null,"Cal_wk","fat_wk",null,{"$f":"IF('All Meals'!C32=\"\",\"\",'All Meals'!C32)","v":null},null,null,null,null,null,{"$f":"Q27*T27","v":null},{"$f":"R27*T27","v":null},{"$f":"S27*T27","v":null},null,null,null,null,null,null,{"$f":"Z27*AC27","v":null},{"$f":"AA27*AC27","v":null},{"$f":"AB27*AC27","v":null},null,null,"Source of Fat",null,null,null,null,null,"Calories (kcal)",null,null,"Saturated Fat (gm)",null,null,null,"Sodium (Na)"]
[null,null,null,137.2694444444444,1.386847222222222,189,"30% to 70% of the total non starchy offerings",null,null,null,null,{"$f":"D31*H25","v":null},{"$f":"H25*E31","v":null},null,{"$f":"IF('All Meals'!C33=\"\",\"\",'All Meals'!C33)","v":null},null,null,null,null,null,{"$f":"Q28*T28","v":null},{"$f":"R28*T28","v":null},{"$f":"S28*T28","v":null},null,null,null,null,null,null,{"$f":"Z28*AC28","v":null},{"$f":"AA28*AC28","v":null},{"$f":"AB28*AC28","v":null},null,null,"Butter (2tsp)",null,null,null,null,null,68,null,null,4.87,null,null,null,61]
[null,null,null,161.6294444444445,2.294747222222222,189,"More than 70% of the total non starchy offerings",null,null,null,null,"avg_day_cal","avg_day_fat",null,{"$f":"IF('All Meals'!C34=\"\",\"\",'All Meals'!C34)","v":null},null,null,null,null,null,{"$f":"Q29*T29","v":null},{"$f":"R29*T29","v":null},{"$f":"S29*T29","v":null},null,null,null,null,null,null,{"$f":"Z29*AC29","v":null},{"$f":"AA29*AC29","v":null},{"$f":"AB29*AC29","v":null},null,null,"Margarine (2tsp)",68,1.58,"Margarine (stick)",68,1.58,94,1.58,"Margarine (stick)",1.6,null,null,null,70]
[null,null,null,0,0,0,"Non starchy vegetables not offered",null,null,null,null,{"$f":"L28/5","v":null},{"$f":"M28/5","v":null},null,{"$f":"IF('All Meals'!C35=\"\",\"\",'All Meals'!C35)","v":null},null,null,null,null,null,{"$f":"Q30*T30","v":null},{"$f":"R30*T30","v":null},{"$f":"S30*T30","v":null},null,null,null,null,null,null,{"$f":"Z30*AC30","v":null},{"$f":"AA30*AC30","v":null},{"$f":"AB30*AC30","v":null},null,null,"Heavy cream (2 Tbsp)",52,3.46,"Heavy cream (2 Tbsp)",52,3.46,52,3.46,"Heavy cream (2 Tbsp)",3.46,null,null,null,6]
[null,null,null,{"$f":"IF($C$27=1,D27,IF($C$27=2,D28,IF($C$27=3,D29,IF($C$27=4,D30,0))))","v":null},{"$f":"IF($C$27=1,E27,IF($C$27=2,E28,IF($C$27=3,E29,IF($C$27=4,E30,0))))","v":null},{"$f":"IF($C$27=1,F27,IF($C$27=2,F28,IF($C$27=3,F29,IF($C$27=4,F30,0))))","v":null},"                              Starchy vegetables",null,null,null,null,null,null,null,{"$f":"IF('All Meals'!C36=\"\",\"\",'All Meals'!C36)","v":null},null,null,null,null,null,{"$f":"Q31*T31","v":null},{"$f":"R31*T31","v":null},{"$f":"S31*T31","v":null},null,null,null,null,null,null,{"$f":"Z31*AC31","v":null},{"$f":"AA31*AC31","v":null},{"$f":"AB31*AC31","v":null},null,null,"Ranch dressing, regular (1 Tbsp)",73,1.2,"Ranch dressing, regular (1 Tbsp)",73,1.2,73,1.2,"Ranch dressing, regular (1 Tbsp)",1.2,null,null,null,135]
[null,"Cups of starchy vegetables offered over the week",null,null,null,null,null,null,null,null,null,null,null,null,{"$f":"IF('All Meals'!C37=\"\",\"\",'All Meals'!C37)","v":null},null,null,null,null,null,{"$f":"Q32*T32","v":null},{"$f":"R32*T32","v":null},{"$f":"S32*T32","v":null},null,null,null,null,null,null,{"$f":"Z32*AC32","v":null},{"$f":"AA32*AC32","v":null},{"$f":"AB32*AC32","v":null},null,null,"Ranch dressing, reduced fat (1 Tbsp)",29,0.19,"Ranch dressing, reduced fat (1 Tbsp)",29,0.19,29,0.19,"Ranch dressing, reduced fat (1 Tbsp)",0.19,null,null,null,168]
[null,"Starchy vegetables are offered throughout the week with added fat:",null,null,null,null,null,null,null,null,null,"sodium=",{"$f":"H32*F38","v":null},null,{"$f":"IF('All Meals'!C38=\"\",\"\",'All Meals'!C38)","v":null},null,null,null,null,null,{"$f":"Q33*T33","v":null},{"$f":"R33*T33","v":null},{"$f":"S33*T33","v":null},null,null,null,null,null,null,{"$f":"Z33*AC33","v":null},{"$f":"AA33*AC33","v":null},{"$f":"AB33*AC33","v":null},null,null,"Italian dressing, regular (1 Tbsp)",43,0.66,"Italian dressing, regular (1 Tbsp)",43,0.66,43,0.66,"Italian dressing, regular (1 Tbsp)",0.66,null,null,null,146]
[null,null,4,222.6066666666667,2.9261,269.75,"Less than 30% of the total starchy offerings",null,null,null,null,"avg_day_sod=",{"$f":"M33/5","v":null},null,{"$f":"IF('All Meals'!C39=\"\",\"\",'All Meals'!C39)","v":null},null,null,null,null,null,{"$f":"Q34*T34","v":null},{"$f":"R34*T34","v":null},{"$f":"S34*T34","v":null},null,null,null,null,null,null,{"$f":"Z34*AC34","v":null},{"$f":"AA34*AC34","v":null},{"$f":"AB34*AC34","v":null},null,null,"Italian dressing, reduced fat (1 Tbsp)",11,0.07000000000000001,"Italian dressing, reduced fat (1 Tbsp)",11,0.07000000000000001,11,0.07000000000000001,"Italian dressing, reduced fat (1 Tbsp)",0.07000000000000001,null,null,null,134]
[null,null,null,246.9666666666666,3.834,269.75,"30% to 70% of the total starchy offerings",null,null,null,null,null,null,null,{"$f":"IF('All Meals'!C40=\"\",\"\",'All Meals'!C40)","v":null},null,null,null,null,null,{"$f":"Q35*T35","v":null},{"$f":"R35*T35","v":null},{"$f":"S35*T35","v":null},null,null,null,null,null,null,{"$f":"Z35*AC35","v":null},{"$f":"AA35*AC35","v":null},{"$f":"AB35*AC35","v":null},null,null,"Mayonnaise (1 Tbsp)",57,0.72,"Mayonnaise (1 Tbsp)",57,0.72,57,0.72,"Mayonnaise (1 Tbsp)",0.72,null,null,null,88]
[null,null,null,271.3266666666667,4.7419,269.75,"More than 70% of the total starchy offerings",null,null,null,null,"Cal_wk","fat_wk",null,{"$f":"IF('All Meals'!C41=\"\",\"\",'All Meals'!C41)","v":null},null,null,null,null,null,{"$f":"Q36*T36","v":null},{"$f":"R36*T36","v":null},{"$f":"S36*T36","v":null},null,null,null,null,null,null,{"$f":"Z36*AC36","v":null},{"$f":"AA36*AC36","v":null},{"$f":"AB36*AC36","v":null},null,null,"Ketchup (9gm packet)",9,0,"Ketchup (9gm packet)",9,0,9,0,"Ketchup (9gm packet)",0,null,null,null,82]
[null,null,null,0,0,0,"Starchy vegetables not offered",null,null,null,null,{"$f":"D38*$H$32","v":null},{"$f":"E38*$H$32","v":null},null,{"$f":"IF('All Meals'!C42=\"\",\"\",'All Meals'!C42)","v":null},null,null,null,null,null,{"$f":"Q37*T37","v":null},{"$f":"R37*T37","v":null},{"$f":"S37*T37","v":null},null,null,null,null,null,null,{"$f":"Z37*AC37","v":null},{"$f":"AA37*AC37","v":null},{"$f":"AB37*AC37","v":null},null,null,"Honey (1 Tbsp)",38,0,"Honey (1 Tbsp)",38,0,38,0,"Honey (1 Tbsp)",0,null,null,null,1]
[null,null,null,{"$f":"IF($C$34=1,D34,IF($C$34=2,D35,IF($C$34=3,D36,IF($C$34=4,D37,0))))","v":null},{"$f":"IF($C$34=1,E34,IF($C$34=2,E35,IF($C$34=3,E36,IF($C$34=4,E37,0))))","v":null},{"$f":"IF($C$34=1,F34,IF($C$34=2,F35,IF($C$34=3,F36,IF($C$34=4,F37,0))))","v":null},null,null,null,null,null,null,null,null,{"$f":"IF('All Meals'!C43=\"\",\"\",'All Meals'!C43)","v":null},null,null,null,null,null,null,null,{"$f":"S38*T38","v":null},null,null,null,null,null,null,null,null,{"$f":"AB38*AC38","v":null},null,null,"Maple syrup (2 Tbsp)",106,0.01,"Maple syrup (2 Tbsp)",106,0.01,106,0.01,"Maple syrup (2 Tbsp)",0.01,null,null,null,24]
[null,null,null,null,null,null,null,null,null,null,null,"avg_day_cal","avg_day_fat",null,{"$f":"IF('All Meals'!C44=\"\",\"\",'All Meals'!C44)","v":null},null,null,null,null,null,{"$f":"Q39*T39","v":null},{"$f":"R39*T39","v":null},{"$f":"S39*T39","v":null},null,null,null,null,null,null,{"$f":"Z39*AC39","v":null},{"$f":"AA39*AC39","v":null},{"$f":"AB39*AC39","v":null},null,null,"Mustard (5gm packet)",3,0.01,"Mustard (5gm packet)",3,0.01,3,0.01,"Mustard (5gm packet)",0.01,null,null,null,57]
[null,null,null,null,null,null,null,null,null,null,null,{"$f":"L37/5","v":null},{"$f":"M37/5","v":null},null,{"$f":"IF('All Meals'!C45=\"\",\"\",'All Meals'!C45)","v":null},null,null,null,null,null,{"$f":"Q40*T40","v":null},{"$f":"R40*T40","v":null},{"$f":"S40*T40","v":null},null,null,null,null,null,null,{"$f":"Z40*AC40","v":null},{"$f":"AA40*AC40","v":null},{"$f":"AB40*AC40","v":null},null,null,"Go Back to Assessment"]
[null,null,null,null,null,null,null,null,null,null,null,null,null,null,{"$f":"IF('All Meals'!C46=\"\",\"\",'All Meals'!C46)","v":null},null,null,null,null,null,{"$f":"Q41*T41","v":null},{"$f":"R41*T41","v":null},{"$f":"S41*T41","v":null},null,null,null,null,null,null,{"$f":"Z41*AC41","v":null},{"$f":"AA41*AC41","v":null},{"$f":"AB41*AC41","v":null},null,null,"'Simplified Nutrient Assessment'!A1","'Simplified Nutrient Assessment'!A1","'Simplified Nutrient Assessment'!A1","'Simplified Nutrient Assessment'!A1","'Simplified Nutrient Assessment'!A1","'Simplified Nutrient Assessment'!A1","'Simplified Nutrient Assessment'!A1","'Simplified Nutrient Assessment'!A1","'Simplified Nutrient Assessment'!A1","'Simplified Nutrient Assessment'!A1","'Simplified Nutrient Assessment'!A1","'Simplified Nutrient Assessment'!A1"]
[null,"Vegetable Sodium Assessment Questions\n**Only complete if vegetables are offered**",null,null,null,null,null,null,null,null,null,null,null,null,{"$f":"IF('All Meals'!C47=\"\",\"\",'All Meals'!C47)","v":null},null,null,null,null,null,{"$f":"Q42*T42","v":null},{"$f":"R42*T42","v":null},{"$f":"S42*T42","v":null},null,null,null,null,null,null,{"$f":"Z42*AC42","v":null},{"$f":"AA42*AC42","v":null},{"$f":"AB42*AC42","v":null}]
[null,"If you offer vegetables during the week at breakfast, select \"Yes\" or \"No\" for each question regarding sodium usage in vegetables. ",null,null,null,null,null,null,null,null,null,"Total veg",{"$f":"H25+H32","v":null},null,{"$f":"IF('All Meals'!C48=\"\",\"\",'All Meals'!C48)","v":null},null,null,null,null,null,{"$f":"Q43*T43","v":null},{"$f":"R43*T43","v":null},{"$f":"S43*T43","v":null},null,null,null,null,null,null,{"$f":"Z43*AC43","v":null},{"$f":"AA43*AC43","v":null},{"$f":"AB43*AC43","v":null}]
[null,"Question",null,null,null,null,null,"Yes",null,null,"No","Total starchy",{"$f":"H32","v":null},null,{"$f":"IF('All Meals'!C49=\"\",\"\",'All Meals'!C49)","v":null},null,null,null,null,null,{"$f":"Q44*T44","v":null},{"$f":"R44*T44","v":null},{"$f":"S44*T44","v":null},null,null,null,null,null,null,{"$f":"Z44*AC44","v":null},{"$f":"AA44*AC44","v":null},{"$f":"AB44*AC44","v":null}]
[null,"1. Do you serve fresh vegetables two or more days per week?",null,null,null,null,null,null,null,null,null,false,{"$f":"IF(L45=TRUE,M43*140,0)","v":null},null,{"$f":"IF('All Meals'!C50=\"\",\"\",'All Meals'!C50)","v":null},null,null,null,null,null,{"$f":"Q45*T45","v":null},{"$f":"R45*T45","v":null},{"$f":"S45*T45","v":null},null,null,null,null,null,null,{"$f":"Z45*AC45","v":null},{"$f":"AA45*AC45","v":null},{"$f":"AB45*AC45","v":null}]
[null,"2. Do you offer fried potatoes less than two days per week?\n (select \"No\" if you offer MORE than two days)",null,null,null,null,null,null,null,null,null,false,{"$f":"IF(L46=TRUE,M44*110,0)","v":null},null,{"$f":"IF('All Meals'!C51=\"\",\"\",'All Meals'!C51)","v":null},null,null,null,null,null,{"$f":"Q46*T46","v":null},{"$f":"R46*T46","v":null},{"$f":"S46*T46","v":null},null,null,null,null,null,null,{"$f":"Z46*AC46","v":null},{"$f":"AA46*AC46","v":null},{"$f":"AB46*AC46","v":null}]
[null,"3. Do you often or always offer low or no-sodium varieties of canned vegetables?",null,null,null,null,null,null,null,null,null,false,{"$f":"IF(L47=TRUE,M43*30,0)","v":null},null,{"$f":"IF('All Meals'!C52=\"\",\"\",'All Meals'!C52)","v":null},null,null,null,null,null,{"$f":"Q47*T47","v":null},{"$f":"R47*T47","v":null},{"$f":"S47*T47","v":null},null,null,null,null,null,null,{"$f":"Z47*AC47","v":null},{"$f":"AA47*AC47","v":null},{"$f":"AB47*AC47","v":null}]
[null,"Select the option that best represent the percentage of USDA food vegetables offered during the week",null,null,null,null,null,null,null,null,null,null,null,null,{"$f":"IF('All Meals'!C53=\"\",\"\",'All Meals'!C53)","v":null},null,null,null,null,null,{"$f":"Q48*T48","v":null},{"$f":"R48*T48","v":null},{"$f":"S48*T48","v":null},null,null,null,null,null,null,{"$f":"Z48*AC48","v":null},{"$f":"AA48*AC48","v":null},{"$f":"AB48*AC48","v":null}]
[null,"Question",null,null,null,null,null,"Less than 50% of the vegetables are from USDA foods",null,null,"50% or more of the vegetables offered during the week are USDA foods",null,null,null,{"$f":"IF('All Meals'!C54=\"\",\"\",'All Meals'!C54)","v":null},null,null,null,null,null,{"$f":"Q49*T49","v":null},{"$f":"R49*T49","v":null},{"$f":"S49*T49","v":null},null,null,null,null,null,null,{"$f":"Z49*AC49","v":null},{"$f":"AA49*AC49","v":null},{"$f":"AB49*AC49","v":null}]
[null,"4. What percentage of vegetables offered each week are USDA foods items?",null,null,null,null,null,null,null,null,null,false,{"$f":"IF(L50=TRUE,M43*30,0)","v":null},null,{"$f":"IF('All Meals'!C55=\"\",\"\",'All Meals'!C55)","v":null},null,null,null,null,null,{"$f":"Q50*T50","v":null},{"$f":"R50*T50","v":null},{"$f":"S50*T50","v":null},null,null,null,null,null,null,{"$f":"Z50*AC50","v":null},{"$f":"AA50*AC50","v":null},{"$f":"AB50*AC50","v":null}]
[null,"Once all questions have been answered for fruits, milk, non-starchy and starchy vegetables, scroll to the top and begin the \"Main Dish Simplified Nutrient Data Entry\" section and the \"Other items\" data entry section.",null,null,null,null,null,null,null,null,null,"Total adds",{"$f":"SUM(M45:M50)/5","v":null},null,{"$f":"IF('All Meals'!C56=\"\",\"\",'All Meals'!C56)","v":null},null,null,null,null,null,{"$f":"Q51*T51","v":null},{"$f":"R51*T51","v":null},{"$f":"S51*T51","v":null},null,null,null,null,null,null,{"$f":"Z51*AC51","v":null},{"$f":"AA51*AC51","v":null},{"$f":"AB51*AC51","v":null}]
[null,null,null,null,null,null,null,null,null,null,null,null,null,null,{"$f":"IF('All Meals'!C57=\"\",\"\",'All Meals'!C57)","v":null},null,null,null,null,null,{"$f":"Q52*T52","v":null},{"$f":"R52*T52","v":null},{"$f":"S52*T52","v":null},null,null,null,null,null,null,{"$f":"Z52*AC52","v":null},{"$f":"AA52*AC52","v":null},{"$f":"AB52*AC52","v":null}]
[null,null,null,null,null,null,null,null,null,null,null,null,null,null,{"$f":"IF('All Meals'!C58=\"\",\"\",'All Meals'!C58)","v":null},null,null,null,null,null,{"$f":"Q53*T53","v":null},{"$f":"R53*T53","v":null},{"$f":"S53*T53","v":null},null,null,null,null,null,null,{"$f":"Z53*AC53","v":null},{"$f":"AA53*AC53","v":null},{"$f":"AB53*AC53","v":null}]
[null,null,null,null,null,null,null,null,null,null,null,null,null,null,{"$f":"IF('All Meals'!C59=\"\",\"\",'All Meals'!C59)","v":null},null,null,null,null,null,{"$f":"Q54*T54","v":null},{"$f":"R54*T54","v":null},{"$f":"S54*T54","v":null},null,null,null,null,null,null,{"$f":"Z54*AC54","v":null},{"$f":"AA54*AC54","v":null},{"$f":"AB54*AC54","v":null}]
[null,null,null,null,null,null,null,null,null,null,null,null,null,null,{"$f":"IF('All Meals'!C60=\"\",\"\",'All Meals'!C60)","v":null},null,null,null,null,null,{"$f":"Q55*T55","v":null},{"$f":"R55*T55","v":null},{"$f":"S55*T55","v":null},null,null,null,null,null,null,{"$f":"Z55*AC55","v":null},{"$f":"AA55*AC55","v":null},{"$f":"AB55*AC55","v":null}]
[null,null,null,null,null,null,null,null,null,null,null,null,null,null,{"$f":"IF('All Meals'!C61=\"\",\"\",'All Meals'!C61)","v":null},null,null,null,null,null,{"$f":"Q56*T56","v":null},{"$f":"R56*T56","v":null},{"$f":"S56*T56","v":null},null,null,null,null,null,null,{"$f":"Z56*AC56","v":null},{"$f":"AA56*AC56","v":null},{"$f":"AB56*AC56","v":null}]
[null,null,null,null,null,null,null,null,null,null,null,null,null,null,{"$f":"IF('All Meals'!C62=\"\",\"\",'All Meals'!C62)","v":null},null,null,null,null,null,{"$f":"Q57*T57","v":null},{"$f":"R57*T57","v":null},{"$f":"S57*T57","v":null},null,null,null,null,null,null,{"$f":"Z57*AC57","v":null},{"$f":"AA57*AC57","v":null},{"$f":"AB57*AC57","v":null}]
[]
[null,null,null,null,null,null,null,null,null,null,null,null,null,null,null,null,"Daily Amounts Based on the Average for a 5-day week","'Nutrient Instructions'!A109","'Nutrient Instructions'!A109","'Nutrient Instructions'!A109","'Nutrient Instructions'!A109","'Nutrient Instructions'!A109","'Nutrient Instructions'!A109","'Nutrient Instructions'!A109","'Nutrient Instructions'!A109"]
[null,null,null,null,null,null,null,null,null,null,null,null,null,null,null,null,"Nutrient","Measure",null,"Required Range",null,null,null,null,"Assessment"]
[null,null,null,null,null,null,null,null,null,null,null,null,null,null,null,null,"Calories","Daily Average",null,"400-500 kcal",null,null,null,null,{"$f":"IF(AND(R62>=T67,R62<=U67),\"Estimated calories are within the required range\", IF(AND(R62<T67,R62>=V67), \"Estimated calories are below the calorie minimum but within 25 calories, follow up with State agency\", IF(AND(R62>U67,R62<=W67), \"Estimated calories are above the calorie maximum but within 25 calories, follow up with State agency\", \"Estimated calories are NOT within the required range\")))","v":null}]
[null,null,null,null,null,null,null,null,null,null,null,null,null,null,null,null,null,{"$f":"ROUND(SUM(L68,Q73,Z73),2)","v":null}]
[null,null,null,null,null,null,null,null,null,null,null,null,null,null,null,null,"Saturated Fat","Percent of Calories",null,"Less than 10% of total calories",null,null,null,null,{"$f":"IF(R64<0.1,\"Estimated percent of saturated fat meets the requirement\",IF(AND(R64>=0.1,R64<=0.105),\"Estimated percent of saturated fat is above the requirement by less than a half percent, follow up with State agency\",\"Estimated percent of saturated fat does NOT meet the requirement\"))","v":null}]
[null,null,null,null,null,null,null,null,null,null,null,null,null,null,null,null,null,{"$f":"ROUND(IF(ISERROR(SUM(M68,R73,AA73)*9/R62),0,SUM(M68,R73,AA73)*9/R62),2)","v":null}]
[null,null,null,null,null,null,null,null,null,null,null,null,null,null,null,null,"Sodium","Daily Average",null,"Less than or equal to 540 mg",null,null,null,null,{"$f":"IF(R66<=Y67,\"Estimated sodium level MEETS the requirement\", IF(AND(R66>Y67,R66<=(Y67+40)),\"Estimated sodium level is above the requirement BUT within 40mg, follow up with State agency\",\"Estimated sodium level does NOT meet the requirement\"))","v":null}]
[null,null,null,null,null,null,null,null,null,null,null,null,null,null,null,null,null,{"$f":"SUM(L67,T73,AC73)","v":null}]
[null,null,null,null,null,null,null,null,null,null,"Sodium",{"$f":"SUM(M9,M17,M26,M34,M51)","v":null},null,null,null,null,null,null,null,400,500,375,525,null,540]
[null,null,null,null,null,null,null,null,null,null,"Total_avg_daily for F,M,V",{"$f":"SUM(L13,L20,L30,L40)","v":null},{"$f":"SUM(M13,M20,M30,M40)","v":null},null,null,null,null,null,null,{"$f":"SUM(T8:T57)","v":null},null,null,null,null,null,{"$f":"SUM(Z8:Z57)","v":null},{"$f":"SUM(AA8:AA57)","v":null},null,{"$f":"SUM(AC8:AC57)","v":null}]
[null,null,null,null,null,null,null,null,null,null,null,null,null,null,null,null,"Cal","sat fat",null,"Num_servings",null,null,null,null,null,"cal","sat fat",null,"Num_servings"]
[null,null,null,null,null,null,null,null,null,null,null,null,null,null,null,null,"Total cal","Total fat",null,null,null,null,null,null,null,"Total cal","Total fat"]
[null,null,null,null,null,null,null,null,null,null,null,null,null,null,null,null,{"$f":"SUM(U8:U57)","v":null},{"$f":"SUM(V8:V57)","v":null},null,null,null,null,null,null,null,{"$f":"SUM(AD8:AD57)","v":null},{"$f":"SUM(AE8:AE57)","v":null}]
[null,null,null,null,null,null,null,null,null,null,null,null,null,null,null,null,"avg_day_cal","avg_day_fat","sodium","avg_day_sod",null,null,null,null,null,"avg_day_cal","avg_day_fat","sodium=",{"$f":"SUM(AF8:AF57)","v":null}]
[null,null,null,null,null,null,null,null,null,null,null,null,null,null,null,null,{"$f":"IF(ISERROR(Q71/$T$68),0, (Q71/$T$68))","v":null},{"$f":"IF(ISERROR(R71/$T$68),0,(R71/$T$68))","v":null},{"$f":"SUM(W8:W57)","v":null},{"$f":"IF(ISERROR(S73/$T$68),0,(S73/$T$68))","v":null},null,null,null,null,null,{"$f":"IF(ISERROR(Z71/$T$68),0,(Z71/$T$68))","v":null},{"$f":"IF(ISERROR(AA71/$T$68),0, (AA71/$T$68))","v":null},"avg_day_sod",{"$f":"IF(ISERROR(AC72/$T$68),0, (AC72/$T$68))","v":null}]
[null,null,null,null,null,null,null,null,null,null,null,null,null,null,null,null,"Comments Section"]